{"text_format":"1","workbook":"xlsx","n_sheets":5,"sheets":["Instructions","Journey","FORM KVV 6 11","Tour Report","FareChart"],"not_rendered":{"charts":0,"images":1,"macros":1,"external_links":0,"defined_names":13,"comments":0,"pivot_tables":0},"unopened":[],"bounds":{"document_bytes":16777216,"sheet_cells":100000,"rows_first":2000,"rows_last":500,"rows_between":2000,"halvings":0,"cell_chars":16384,"cell_head_chars":4096},"cells_cut":0,"cells_raw":0,"read":"whole","date_system":"1900"}

{"sheet":"Instructions","index":0,"n_rows":11,"n_cols":2,"rows_kept":11,"cut":false,"hidden":false,"merged":[]}
[]
[]
[]
[null,"Enable macros"]
[null,"Unhide all sheets by clicking button \"unhide all sheets\" above"]
[null,"Password is vermams"]
[null,"Enter Journey details in sheet \"Journey\""]
[null,"TA bill is generated in sheet \"Form KVV 6 11\""]
[null,"Save TA bill in PDF from button in sheet \"Form KVV 6 11\""]
[null,"Save file from button in sheet \"Journey\""]
[null,"All files will be saved in folder named TA in C:\\ drive"]

{"sheet":"Journey","index":1,"n_rows":366,"n_cols":123,"rows_kept":366,"cut":false,"hidden":true,"merged":[[0,0,0,1],[0,2,0,5],[3,2,3,5],[2,2,2,6],[3,8,3,9],[4,0,5,1],[4,2,5,2],[4,3,5,3],[4,4,4,9],[4,10,4,11],[4,21,5,21],[0,12,0,13],[4,23,5,23],[5,4,5,6],[5,7,5,9],[4,13,5,13],[4,14,5,14],[4,15,5,15],[4,16,5,16],[4,17,5,17],[4,18,5,18],[4,12,5,12],[4,20,5,20],[3,11,3,13],[3,16,3,17],[3,18,3,19],[46,5,46,6],[47,5,47,6],[48,5,48,6],[4,19,5,19],[0,14,0,15],[1,12,1,13],[43,5,43,6],[44,5,44,6],[45,5,45,6]]}
["Department:",null,"Physiology",null,null,null,"TRAVELING ALLOWANCE BILL",null,null,null,null,"Start Date","End Date",null,"DA",null,{"$f":"CN4","v":"B"},{"$f":"CU4","v":0.8},null,"District","Kangra",null,"GO",null,null,null,null,null,null,null,null,null,null,null,null,null,null,null,null,null,null,null,null,null,null,null,null,null,null,null,null,null,null,null,null,null,null,null,null,null,null,null,null,null,null,null,null,null,null,null,null,null,null,null,null,null,null,null,null,null,null,null,null,null,null,null,null,null,null,null,null,null,null,null,null,null,null,null,null,null,null,null,null,null,null,null,null,null,null,null,null,null,null,null,null,null,null,null,null,null,null,{"$f":"L2","v":"2014-06-01"},{"$f":"M2","v":"2014-07-01"}]
[null,null,null,null,null,null,null,null,null,null,null,"2014-06-01","2014-07-01",null,"Within",{"$f":"INDEX($DI$7:$DK$11,MATCH($DF$13,$DH$7:$DH$11,0),MATCH(O2,$DI$6:$DK$6,0))","v":200},{"$f":"CO4","v":200},{"$f":"CR4","v":0.25},null,null,null,null,"NGO",null,null,null,null,null,null,null,null,null,null,null,null,null,null,null,null,null,null,null,null,null,null,null,null,null,null,null,null,null,null,null,null,null,null,null,null,null,null,null,null,null,null,null,null,null,null,null,null,null,null,null,null,null,null,null,null,null,null,null,null,null,null,null,null,null,null,null,null,null,null,null,null,null,null,null,null,null,null,null,null,null,null,null,null,null,null,null,null,null,null,null,null,null,null,null,null,null,null,{"$f":"DR1+1","v":"2014-06-02"}]
["Name      :",null,"Madan",null,null,null,null,null,null,null,null,{"$f":"TEXT(L2,\"mmmyy\")","v":"Jun14"},{"$f":"IF(L3=N3,\"\",N3)","v":"Jul14"},{"$f":"TEXT(M2,\"mmmyy\")","v":"Jul14"},"Metro",{"$f":"INDEX($DI$7:$DK$11,MATCH($DF$13,$DH$7:$DH$11,0),MATCH(O3,$DI$6:$DK$6,0))","v":350},{"$f":"CV4","v":2},{"$f":"CS4","v":0.25},null,"HQ","Palampur",null,null,null,null,null,null,null,null,null,null,null,null,null,null,null,null,null,null,null,null,null,null,null,null,null,null,null,null,null,null,null,"",null,null,null,null,null,null,null,null,null,null,null,null,null,null,null,null,null,null,null,null,null,null,null,null,null,null,null,null,null,null,null,null,null,null,null,null,null,null,"BO-2008",null,null,null,null,null,null,null,null,null,null,null,null,null,null,null,null,null,null,null,null,null,null,null,null,null,null,null,null,null,{"$f":"IFERROR(IF(DR2+1>$DS$1,\"\",DR2+1),\"\")","v":"2014-06-03"}]
["Designation :",null,"AP",null,null,null,"Pay",40210,"Grade Pay",null,8600,{"$f":"IF(M2-L2<0,\"Error: Check Dates above\",\"\")","v":""},null,null,"Other",{"$f":"INDEX($DI$7:$DK$11,MATCH($DF$13,$DH$7:$DH$11,0),MATCH(O4,$DI$6:$DK$6,0))","v":300},"Tour programme",null,"Tentative",null,null,null,null,null,null,null,null,null,null,null,null,null,null,null,null,null,null,null,null,null,null,null,null,null,null,null,null,null,null,null,null,null,null,null,null,null,null,null,null,null,null,null,null,null,null,null,null,null,null,null,null,null,null,null,null,null,null,null,null,null,null,null,null,null,null,null,null,null,null,null,null,{"$f":"IF(K4>=CN7,CM7,IF(AND(K4>=CN9,K4<CN8),CM8,IF(AND(K4>=CN10,K4<CN9),CM9,IF(AND(K4>=CN11,K4<CN10),CM10,CM11))))","v":"B"},{"$f":"VLOOKUP($Q$1,$CM$7:$CU$11,3,FALSE)","v":200},{"$f":"VLOOKUP($Q$1,$CM$7:$CU$11,4,FALSE)","v":350},{"$f":"VLOOKUP($Q$1,$CM$7:$CU$11,5,FALSE)","v":300},{"$f":"VLOOKUP($Q$1,$CM$7:$CU$11,6,FALSE)","v":0.25},{"$f":"VLOOKUP($Q$1,$CM$7:$CU$11,7,FALSE)","v":0.25},{"$f":"VLOOKUP($Q$1,$CM$7:$CU$11,8,FALSE)","v":330},0.8,2,null,null,null,null,null,null,null,null,null,null,null,null,null,null,null,null,null,null,null,null,null,"2014-06-04"]
["Journey",null,"No. of days","Rs/day","Date & Time",null,null,null,null,null,"Place",null,"Km","Within/outside","Mode of\nTravel","Class","Fare","Boarding free","Lodging free","DA","Purpose","Amount",null,"DA on free B/L",null,null,null,null,0,1,null,null,null,null,"start","time","START",null,null,null,"Stop","time","STOP","Duration","Daily",null,null,null,null,"Daily_lodging","halt","Halt 1/2 DA","Halt DA","Rail Rs",null,"rate","inci","hlt 1/2 DA","hlt DA","jr DA","rate rl / Rod","inci Rail /Road","mil rate","milag fare","1/2 DA","Jur/Halt 1/2 DA","Jur/Halt DA","Road Km","rate","inci","mile rate","Milage Allow","Max Fare","1/2 DA","Jr DA","Halt 1/2 DA","Halt DA","1 day","inci","milag","1/2 DA","full DA",null,null,null,null,null,null,null,null,null,null,"D","A",null,"in","ci",null,"inci",null,null,null,null,null,null,null,null,null,null,null,null,null,"DA",null,null,null,null,null,null,null,null,"2014-06-05"]
[null,null,null,null,"Departure",null,null,"Arrival",null,null,"From","To",null,null,null,null,null,null,null,null,null,null,"Full DA",null,"Room rent","LTA","TTA","Max",null,null,null,null,null,null,null,null,null,null,null,null,null,null,null,null,null,null,null,null,null,null,null,null,null,null,null,null,null,null,null,null,null,null,null,null,null,null,null,null,null,null,null,null,null,null,null,null,null,null,null,null,null,null,null,null,null,null,{"$f":"VLOOKUP(L2,CH7:CK18,4,FALSE)","v":{"$error":"#N/A"}},null,0,null,"Grade","Pay","Within","Metro","Other","Rail","Dept","Load","Air",null,null,null,null,null,null,null,null,null,null,null,null,null,"Metro","Other","Within","Journey","LT",null,null,null,null,"2014-06-06"]
[{"$f":"IF(B7<>\"\",1,\"\")","v":1},"Start",null,null,"2014-06-01",4,null,"2014-06-02",4,"05","Palampur","Dharamshala",40,null,"Bus","Ordinary",40,null,null,{"$f":"IF((BM7+BN7+BO7=0),0,BM7+BN7+BO7)","v":96},"Attend Conference",{"$f":"IF(ISERROR(Q7+T7+C7*D7),\"\",Q7+T7+C7*D7)","v":136},{"$f":"IF(ISERROR(DN7),\"\",DN7)","v":96},{"$f":"IF(AND(R7=\"No\",S7=\"No\"),W7,IF(AND(R7=\"\",S7=\"\"),W7,IF(AND(R7=\"Yes\",S7=\"Yes\"),W7/4,IF(AND(R7=\"Yes\",S7=\"No\"),W7/2,IF(AND(R7=\"No\",S7=\"Yes\"),W7*3/4)))))","v":96},{"$f":"IF(ISERROR(INDEX($DI$44:$DK$48,MATCH($DF$13,$DH$44:$DH$48,0),MATCH(DE7,$DI$43:$DK$43,0))),\"\",INDEX($DI$44:$DK$48,MATCH($DF$13,$DH$44:$DH$48,0),MATCH(DE7,$DI$43:$DK$43,0)))","v":0},{"$f":"IF(ISERROR(INDEX($DI$51:$DK$55,MATCH($DF$13,$DH$51:$DH$55,0),MATCH(DE7,$DI$50:$DK$50,0))),\"\",INDEX($DI$51:$DK$55,MATCH($DF$13,$DH$51:$DH$55,0),MATCH(DE7,$DI$50:$DK$50,0)))","v":0},{"$f":"IF(ISERROR(INDEX($DI$58:$DK$62,MATCH($DF$13,$DH$58:$DH$62,0),MATCH(DE7,$DI$57:$DK$57,0))),\"\",INDEX($DI$58:$DK$62,MATCH($DF$13,$DH$58:$DH$62,0),MATCH(DE7,$DI$57:$DK$57,0)))","v":0},{"$f":"IF(B7=\"Start\",0,IF(B7=\"Cont.\",0,IF(B7=\"Halt\",0,IF(B7=\"Finish\",0,IF(B7=\"Room rent\",Y7,IF(B7=\"LTA\",Z7,IF(B7=\"TTA\",AA7)))))))","v":0},null,null,null,{"$f":"E7","v":"2014-06-01"},{"$f":"IF(F7=0,0,F7)","v":4},{"$f":"IF(G7=0,\"00\",G7)","v":"00"},{"$f":"IF(K7=0,0,AF7)","v":"2014-06-01"},{"$f":"IF(K7=0,0,AG7&\":\"&AH7)","v":"4:00"},{"$f":"IF(AI7=\"\",0,AI7)","v":"2014-06-01"},{"$f":"IF(H7=0,AF7,H7)","v":"2014-06-02"},{"$f":"IF(I7=0,0,I7)","v":4},{"$f":"IF(J7=0,\"00\",J7)","v":"05"},{"$f":"AL7","v":"2014-06-02"},{"$f":"IF(K7=0,0,AM7&\":\"&AN7)","v":"4:05"},{"$f":"AL7&\" \"&AP7","v":"41792 4:05"},{"$f":"IFERROR(IF(B8=\"\",AO7-AK7+AP7-AJ7,IF(B7=\"To & Fro\",AO7-AK7+AP7-AJ7,IF(B8<>\"Start\",AO7-AK7+$AD$5-AJ7,AO7-AK7+AP7-AJ7))),\"\")","v":1.0034722222222221},{"$f":"MOD(AR7,24)","v":1.0034722222222221},{"$f":"IF(AND(AS7>=0.25,AS7<0.5),0.7,IF(AND(AS7>=0.5,AS7<=1),1,IF(AS7>1,INT(AS7)+IF(AS7-INT(AS7)<0.25,0,IF(AND(AS7-INT(AS7)>=0.25,(AS7-INT(AS7)<1)),0.7,0)))))","v":1},{"$f":"INT(AT7)","v":1},{"$f":"AT7-AU7","v":0},{"$f":"IF(AU7=0,AV7*10000%&\"% daily\",IF(AV7>0,AU7&\"+\"&AV7*10000%&\"%daily\",AU7&\" daily\"))","v":"1 daily"},{"$f":"IF(AND(R7=\"No\",S7=\"No\"),BA7,IF(AND(R7=\"\",S7=\"\"),BA7,IF(AND(R7=\"Yes\",S7=\"Yes\"),BA7/4,IF(AND(R7=\"Yes\",S7=\"No\"),BA7/2,IF(AND(R7=\"No\",S7=\"Yes\"),BA7*3/4)))))","v":0},{"$f":"IF(B7=\"Halt\",AR7,0)","v":0},{"$f":"IF(AND(AY7>0.25,AY7<=0.5),X7*0.7,0)","v":0},{"$f":"IF(AY7>1,INT(AY7)*X7+IF((AY7-INT(AY7))>0.25,X7*0.7,0),0)+IF(AND(AY7<=1,AY7>0.5),X7,0)","v":0},{"$f":"IF(O7<>\"Train\",0,IF(AND(BZ7=\"x\",O7=\"Train\"),Q7*2,Q7))","v":0},{"$f":"IF(OR(B7=\"Halt\",BH7>0),0,BB7)","v":0},{"$f":"IF(AND(O7=\"Train\",Q7>0),$R$2,0)","v":0},{"$f":"IF(BZ7=\"x\",2*M7*BD7,M7*BD7)","v":0},{"$f":"IF(AND(O7=\"Train\",M7>8,B7=\"1day&6<hlt<12hr\",BG7=0),X7*0.7,0)","v":0},{"$f":"IF(AND(O7=\"Train\",M7>8,B7=\"1day&hlt>12hr\"),X7,0)","v":0},{"$f":"IF(AND(BZ7=\"x\",O7=\"Train\",Q7+BE7<=X7),X7*AS7)","v":false},{"$f":"IF(BJ7=0,0,MAX(BD7,BQ7))","v":0},{"$f":"IF(OR(AND(BZ7=\"x\",BO7>0),BM7>0,B7=\"Halt\",CD7>0),0,MAX(BE7,CA7))","v":0},{"$f":"IF(AND(BT7>=BU7,BL7>0),BS7,0)","v":0},{"$f":"IF(OR(B7=\"Halt\",CD7>0),0,CB7)","v":0},{"$f":"IF(OR(AND(BZ7=\"x\",BO7>0),CD7>0,BR7>BV7),0,BV7)","v":0},{"$f":"IF(OR(BF7+BE7>X7,BX7+CA7>X7),0,MAX(AZ7,BF7,BX7))","v":0},{"$f":"IF(OR(BF7+BE7>X7,BX7+CA7>X7),X7,MAX(BH7,BA7,CD7)+BY7+BG7)","v":96},{"$f":"IF(O7=\"Train\",0,IF(AND(BZ7=\"x\",M7>8),M7*2,M7))","v":80},{"$f":"IF(BP7>8,$R$3,0)","v":0.25},{"$f":"IF(BP7>8,BP7*BQ7,0)","v":20},{"$f":"IF(BP7=0,0,IF(O7=\"Spl conveyance\",$Q$3,$R$1))","v":0.8},{"$f":"BP7*BS7","v":64},{"$f":"IF(AND(BP7>0,O7<>\"Dept.Vehicle\"),IF(BZ7=\"x\",MAX(Q7*2,BT7),MAX(Q7,BT7)),0)","v":80},{"$f":"IF(OR(AND(BP7>=32,BZ7=\"x\"),AND(M7>8,BZ7=\"x\",O7=\"Dept.Vehicle\")),X7*0.7,0)","v":67.199999999999989},{"$f":"IF(AND(M7>8,O7<>\"Train\",O7<>\"Dept.Vehicle\",BZ7=\"x\"),IF(AR7>1,INT(AR7)*X7+IF((AR7-INT(AR7))>0.5,X7*0.7,0),0)+IF(AND(AR7<=1,AR7>0.5),X7,0))","v":96},{"$f":"IF(AND(BP7>8,B7=\"1day&6<hlt<12hr\"),X7*0.7,0)","v":0},{"$f":"IF(AND(BP7>8,B7=\"1day&hlt>12hr\"),X7,0)","v":0},{"$f":"IF(AR7>=0.25,\"x\",0)","v":"x"},{"$f":"IF(AND(BZ7=\"x\",OR(BR7+BU7>BW7,BR7>BV7)),BR7,IF(BZ7=0,BR7,0))","v":20},{"$f":"IF(AND(BZ7=\"x\",BP7>8,OR(BR7+BU7>BW7,BR7>BV7)),BU7,IF(BZ7=0,BU7,0))","v":80},{"$f":"IF(AND(BZ7=\"x\",BP7>32,BR7<BV7,BY7<0),BV7,0)","v":0},{"$f":"IF(AND(BZ7=\"x\",IF(BP7>32,BU7,BR7+BU7)<BW7),BW7,0)","v":96},{"$f":"IF(B7=\"Halt\",K7,IF(B7=\"Start\",L7,IF(OR(B7=\"LTA\",B7=\"TTA\",B7=\"Room_rent\"),K7,L7)))","v":"Dharamshala"},null,null,"Jan",{"$f":"CK7&\"-\"&$CI$6&\"-\"&$M$2","v":{"$error":"#N/A"}},"Dept.Vehicle",1,"00","A",10000,250,500,400,0.25,0.25,330,220,null,null,{"$f":"IF(ISERROR(VLOOKUP(K7,FareChart!$B$4:$AB$28,27,FALSE)),0,VLOOKUP(K7,FareChart!$B$4:$AB$28,27,FALSE))","v":1},{"$f":"IF(ISERROR(VLOOKUP(L7,FareChart!$B$4:$AB$28,27,FALSE)),0,VLOOKUP(L7,FareChart!$B$4:$AB$28,27,FALSE))","v":2},{"$f":"IF(CX7<CY7,HLOOKUP(K7,FareChart!$B$3:$AA$28,CY7+1,FALSE),VLOOKUP(K7,FareChart!$B$4:$AA$28,CY7+1,FALSE))","v":40},{"$f":"IF(CX7>CY7,HLOOKUP(K7,FareChart!$B$3:$AA$28,CY7+1,FALSE),VLOOKUP(K7,FareChart!$B$4:$AA$28,CY7+1,FALSE))","v":40},{"$f":"IF(ISERROR(CZ7),\"\",IF(T(CZ7)<>\"\",\"\",CZ7))","v":40},40,{"$f":"IF(OR(B7=\"Start\",B7=\"To & Fro\",B7=\"Cont.\"),\"Journey\",IF(OR(B7=\"Room_rent\",B7=\"LTA\",B7=\"TTA\"),\"LT\",DE7))","v":"Journey"},{"$f":"IF(N7=\"\",\"Within\",N7)","v":"Within"},10000,10001,"A",500,400,250,120,0,{"$f":"INDEX($DI$7:$DM$11,MATCH($DF$13,$DH$7:$DH$11,0),MATCH(DD7,$DI$6:$DM$6,0))","v":96},"Economy","AC Chair Car","Ordinary","2014-06-07"]
[{"$f":"IF(B8<>\"\",1+A7,\"\")","v":""},null,null,null,null,null,null,null,null,null,null,null,null,null,null,null,null,null,null,{"$f":"IF((BM8+BN8+BO8=0),0,BM8+BN8+BO8)","v":0},null,{"$f":"IF(ISERROR(Q8+T8+C8*D8),\"\",Q8+T8+C8*D8)","v":0},{"$f":"IF(ISERROR(DN8),\"\",DN8)","v":200},{"$f":"IF(AND(R8=\"No\",S8=\"No\"),W8,IF(AND(R8=\"\",S8=\"\"),W8,IF(AND(R8=\"Yes\",S8=\"Yes\"),W8/4,IF(AND(R8=\"Yes\",S8=\"No\"),W8/2,IF(AND(R8=\"No\",S8=\"Yes\"),W8*3/4)))))","v":200},{"$f":"IF(ISERROR(INDEX($DI$44:$DK$48,MATCH($DF$13,$DH$44:$DH$48,0),MATCH(DE8,$DI$43:$DK$43,0))),\"\",INDEX($DI$44:$DK$48,MATCH($DF$13,$DH$44:$DH$48,0),MATCH(DE8,$DI$43:$DK$43,0)))","v":0},{"$f":"IF(ISERROR(INDEX($DI$51:$DK$55,MATCH($DF$13,$DH$51:$DH$55,0),MATCH(DE8,$DI$50:$DK$50,0))),\"\",INDEX($DI$51:$DK$55,MATCH($DF$13,$DH$51:$DH$55,0),MATCH(DE8,$DI$50:$DK$50,0)))","v":0},{"$f":"IF(ISERROR(INDEX($DI$58:$DK$62,MATCH($DF$13,$DH$58:$DH$62,0),MATCH(DE8,$DI$57:$DK$57,0))),\"\",INDEX($DI$58:$DK$62,MATCH($DF$13,$DH$58:$DH$62,0),MATCH(DE8,$DI$57:$DK$57,0)))","v":0},{"$f":"IF(B8=\"Start\",0,IF(B8=\"Cont.\",0,IF(B8=\"Halt\",0,IF(B8=\"Finish\",0,IF(B8=\"Room rent\",Y8,IF(B8=\"LTA\",Z8,IF(B8=\"TTA\",AA8)))))))","v":false},null,null,null,{"$f":"E8","v":"00:00:00"},0,"00","00:00:00","00:00:00","00:00:00","00:00:00",0,"00",{"$f":"AL8","v":"00:00:00"},0,"0 0",{"$f":"IF(K8=0,0,IF(OR(B9=\"\",B9=\"To & Fro\"),AO8-AK8+AP8-AJ8,IF(B8=\"To & Fro\",AO7-AK7+AP7-AJ7,IF(AND(B9<>\"Start\",E8<>E7),AO8-AK8+$AD$5-AJ8,AO8-AK8+AP8-AJ8))))","v":0},{"$f":"MOD(AR8,24)","v":0},{"$f":"IF(AND(AS8>=0.25,AS8<0.5),0.7,IF(AND(AS8>=0.5,AS8<=1),1,IF(AS8>1,INT(AS8)+IF(AS8-INT(AS8)<0.25,0,IF(AND(AS8-INT(AS8)>=0.25,(AS8-INT(AS8)<1)),0.7,0)))))","v":false},{"$f":"INT(AT8)","v":0},{"$f":"AT8-AU8","v":0},{"$f":"IF(AU8=0,AV8*10000%&\"% daily\",IF(AV8>0,AU8&\"+\"&AV8*10000%&\"%daily\",AU8&\" daily\"))","v":"0% daily"},0,0,0,{"$f":"IF(AY8>1,INT(AY8)*X8+IF((AY8-INT(AY8))>0.25,X8*0.7,0),0)+IF(AND(AY8<=1,AY8>0.5),X8,0)","v":0},0,0,0,0,0,0,false,{"$f":"IF(BJ8=0,0,MAX(BD8,BQ8))","v":0},0,{"$f":"IF(AND(BT8>BU8,BL8>0),BS8,0)","v":0},0,{"$f":"IF(OR(AND(BZ8=\"x\",BO8>0),CD8>0,BR8>BV8),0,BV8)","v":0},0,0,0,0,{"$f":"IF(BP8>8,BP8*BQ8,0)","v":0},0,{"$f":"BP8*BS8","v":0},0,0,false,0,0,0,{"$f":"IF(AND(BZ8=\"x\",OR(BR8+BU8>BW8,BR8>BV8)),BR8,IF(BZ8=0,BR8,0))","v":0},{"$f":"IF(AND(BZ8=\"x\",BP8>8,OR(BR8+BU8>BW8,BR8>BV8)),BU8,IF(BZ8=0,BU8,0))","v":0},{"$f":"IF(AND(BZ8=\"x\",BP8>32,BR8<BV8,BY8<0),BV8,0)","v":0},{"$f":"IF(AND(BZ8=\"x\",IF(BP8>32,BU8,BR8+BU8)<BW8),BW8,0)","v":0},0,null,null,"Feb",{"$error":"#N/A"},"Spl conveyance",2,"05","B",10000,200,350,300,0.25,0.25,330,220,null,null,{"$f":"IF(ISERROR(VLOOKUP(K8,FareChart!$B$4:$AB$28,27,FALSE)),0,VLOOKUP(K8,FareChart!$B$4:$AB$28,27,FALSE))","v":0},{"$f":"IF(ISERROR(VLOOKUP(L8,FareChart!$B$4:$AB$28,27,FALSE)),0,VLOOKUP(L8,FareChart!$B$4:$AB$28,27,FALSE))","v":0},{"$f":"IF(CX8<CY8,HLOOKUP(K8,FareChart!$B$3:$AA$28,CY8+1,FALSE),VLOOKUP(K8,FareChart!$B$4:$AA$28,CY8+1,FALSE))","v":{"$error":"#N/A"}},{"$f":"IF(CX8>CY8,HLOOKUP(K8,FareChart!$B$3:$AA$28,CY8+1,FALSE),VLOOKUP(K8,FareChart!$B$4:$AA$28,CY8+1,FALSE))","v":{"$error":"#N/A"}},"","","Within","Within",6600,10000,"B",350,300,200,96,0,{"$f":"INDEX($DI$7:$DM$11,MATCH($DF$13,$DH$7:$DH$11,0),MATCH(DD8,$DI$6:$DM$6,0))","v":200},"Business","AC I","AC","2014-06-08"]
[{"$f":"IF(B9<>\"\",1+A8,\"\")","v":""},null,null,null,null,null,null,null,null,null,null,null,null,null,null,null,null,null,null,0,null,0,200,200,0,0,0,false,null,null,null,"00:00:00",0,"00","00:00:00","00:00:00","00:00:00","00:00:00",0,"00","00:00:00",0,"0 0",0,0,false,0,0,"0% daily",0,0,0,0,0,0,0,0,0,0,false,0,0,0,0,0,0,0,0,0,0,0,0,0,0,false,0,0,0,0,0,0,0,0,null,null,"Mar",{"$error":"#N/A"},"Train",3,10,"C",6600,180,250,200,0.25,0.25,330,220,null,null,{"$f":"IF(ISERROR(VLOOKUP(K9,FareChart!$B$4:$AB$28,27,FALSE)),0,VLOOKUP(K9,FareChart!$B$4:$AB$28,27,FALSE))","v":0},{"$f":"IF(ISERROR(VLOOKUP(L9,FareChart!$B$4:$AB$28,27,FALSE)),0,VLOOKUP(L9,FareChart!$B$4:$AB$28,27,FALSE))","v":0},{"$f":"IF(CX9<CY9,HLOOKUP(K9,FareChart!$B$3:$AA$28,CY9+1,FALSE),VLOOKUP(K9,FareChart!$B$4:$AA$28,CY9+1,FALSE))","v":{"$error":"#N/A"}},{"$f":"IF(CX9>CY9,HLOOKUP(K9,FareChart!$B$3:$AA$28,CY9+1,FALSE),VLOOKUP(K9,FareChart!$B$4:$AA$28,CY9+1,FALSE))","v":{"$error":"#N/A"}},"","","Within","Within",5000,6600,"C",250,200,180,84,0,200,null,"AC II","Deluxe","2014-06-09"]
["",null,null,null,null,null,null,null,null,null,null,null,null,null,null,null,null,null,null,0,null,0,200,200,0,0,0,false,null,null,null,"00:00:00",0,"00","00:00:00","00:00:00","00:00:00","00:00:00",0,"00","00:00:00",0,"0 0",0,0,false,0,0,"0% daily",0,0,0,0,0,0,0,0,0,0,false,0,0,0,0,0,0,0,0,0,0,0,0,0,0,false,0,0,0,0,0,0,0,0,null,null,"Apr",{"$error":"#N/A"},"Bus",4,15,"D",5000,160,250,200,0.25,0.25,330,220,null,null,{"$f":"IF(ISERROR(VLOOKUP(K10,FareChart!$B$4:$AB$28,27,FALSE)),0,VLOOKUP(K10,FareChart!$B$4:$AB$28,27,FALSE))","v":0},{"$f":"IF(ISERROR(VLOOKUP(L10,FareChart!$B$4:$AB$28,27,FALSE)),0,VLOOKUP(L10,FareChart!$B$4:$AB$28,27,FALSE))","v":0},{"$f":"IF(CX10<CY10,HLOOKUP(K10,FareChart!$B$3:$AA$28,CY10+1,FALSE),VLOOKUP(K10,FareChart!$B$4:$AA$28,CY10+1,FALSE))","v":{"$error":"#N/A"}},{"$f":"IF(CX10>CY10,HLOOKUP(K10,FareChart!$B$3:$AA$28,CY10+1,FALSE),VLOOKUP(K10,FareChart!$B$4:$AA$28,CY10+1,FALSE))","v":{"$error":"#N/A"}},"","","Within","Within",3000,5000,"D",250,200,160,72,0,200,null,"Three AC",null,"2014-06-10"]
["",null,null,null,null,null,null,null,null,null,null,null,null,null,null,null,null,null,null,0,null,0,200,200,0,0,0,false,null,null,null,"00:00:00",0,"00","00:00:00","00:00:00","00:00:00","00:00:00",0,"00","00:00:00",0,"0 0",0,0,false,0,0,"0% daily",0,0,0,0,0,0,0,0,0,0,false,0,0,0,0,0,0,0,0,0,0,0,0,0,0,false,0,0,0,0,0,0,0,0,null,null,"May",{"$error":"#N/A"},"Public conveyance",5,20,"E",3000,130,250,200,0.2,0.18,170,170,null,null,{"$f":"IF(ISERROR(VLOOKUP(K11,FareChart!$B$4:$AB$28,27,FALSE)),0,VLOOKUP(K11,FareChart!$B$4:$AB$28,27,FALSE))","v":0},{"$f":"IF(ISERROR(VLOOKUP(L11,FareChart!$B$4:$AB$28,27,FALSE)),0,VLOOKUP(L11,FareChart!$B$4:$AB$28,27,FALSE))","v":0},{"$f":"IF(CX11<CY11,HLOOKUP(K11,FareChart!$B$3:$AA$28,CY11+1,FALSE),VLOOKUP(K11,FareChart!$B$4:$AA$28,CY11+1,FALSE))","v":{"$error":"#N/A"}},{"$f":"IF(CX11>CY11,HLOOKUP(K11,FareChart!$B$3:$AA$28,CY11+1,FALSE),VLOOKUP(K11,FareChart!$B$4:$AA$28,CY11+1,FALSE))","v":{"$error":"#N/A"}},"","","Within","Within",1300,3000,"E",250,200,130,60,0,200,null,"Slipper",null,"2014-06-11"]
["",null,null,null,null,null,null,null,null,null,null,null,null,null,null,null,null,null,null,0,null,0,200,200,0,0,0,false,null,null,null,"00:00:00",0,"00","00:00:00","00:00:00","00:00:00","00:00:00",0,"00","00:00:00",0,"0 0",0,0,false,0,0,"0% daily",0,0,0,0,0,0,0,0,0,0,false,0,0,0,0,0,0,0,0,0,0,0,0,0,0,false,0,0,0,0,0,0,0,0,null,null,"Jun",{"$error":"#N/A"},"Auto Rickshaw",6,25,null,null,null,null,null,null,null,null,null,null,null,{"$f":"IF(ISERROR(VLOOKUP(K12,FareChart!$B$4:$AB$28,27,FALSE)),0,VLOOKUP(K12,FareChart!$B$4:$AB$28,27,FALSE))","v":0},{"$f":"IF(ISERROR(VLOOKUP(L12,FareChart!$B$4:$AB$28,27,FALSE)),0,VLOOKUP(L12,FareChart!$B$4:$AB$28,27,FALSE))","v":0},{"$f":"IF(CX12<CY12,HLOOKUP(K12,FareChart!$B$3:$AA$28,CY12+1,FALSE),VLOOKUP(K12,FareChart!$B$4:$AA$28,CY12+1,FALSE))","v":{"$error":"#N/A"}},{"$f":"IF(CX12>CY12,HLOOKUP(K12,FareChart!$B$3:$AA$28,CY12+1,FALSE),VLOOKUP(K12,FareChart!$B$4:$AA$28,CY12+1,FALSE))","v":{"$error":"#N/A"}},"","","Within","Within",null,null,null,null,null,null,null,null,200,null,null,null,"2014-06-12"]
["",null,null,null,null,null,null,null,null,null,null,null,null,null,null,null,null,null,null,0,null,0,200,200,0,0,0,false,null,null,null,"00:00:00",0,"00","00:00:00","00:00:00","00:00:00","00:00:00",0,"00","00:00:00",0,"0 0",0,0,false,0,0,"0% daily",0,0,0,0,0,0,0,0,0,0,false,0,0,0,0,0,0,0,0,0,0,0,0,0,0,false,0,0,0,0,0,0,0,0,null,null,"Jul",{"$error":"#N/A"},"Streamer",7,30,null,null,null,null,null,null,null,null,null,null,null,{"$f":"IF(ISERROR(VLOOKUP(K13,FareChart!$B$4:$AB$28,27,FALSE)),0,VLOOKUP(K13,FareChart!$B$4:$AB$28,27,FALSE))","v":0},{"$f":"IF(ISERROR(VLOOKUP(L13,FareChart!$B$4:$AB$28,27,FALSE)),0,VLOOKUP(L13,FareChart!$B$4:$AB$28,27,FALSE))","v":0},{"$f":"IF(CX13<CY13,HLOOKUP(K13,FareChart!$B$3:$AA$28,CY13+1,FALSE),VLOOKUP(K13,FareChart!$B$4:$AA$28,CY13+1,FALSE))","v":{"$error":"#N/A"}},{"$f":"IF(CX13>CY13,HLOOKUP(K13,FareChart!$B$3:$AA$28,CY13+1,FALSE),VLOOKUP(K13,FareChart!$B$4:$AA$28,CY13+1,FALSE))","v":{"$error":"#N/A"}},"","","Within","Within",{"$f":"IF(K4>=DF7,\"A\",IF(AND(K4>=DF8,K4<DG8),\"B\",IF(AND(K4>=DF9,K4<DG9),\"C\",IF(AND(K4>=DF10,K4<DG10),\"D\",IF(AND(K4>=DF11,K4<DG11),\"E\")))))","v":"B"},null,null,null,null,null,null,null,200,null,null,null,"2014-06-13"]
["",null,null,null,null,null,null,null,null,null,null,null,null,null,null,null,null,null,null,0,null,0,200,200,0,0,0,false,null,null,null,"00:00:00",0,"00","00:00:00","00:00:00","00:00:00","00:00:00",0,"00","00:00:00",0,"0 0",0,0,false,0,0,"0% daily",0,0,0,0,0,0,0,0,0,0,false,0,0,0,0,0,0,0,0,0,0,0,0,0,0,false,0,0,0,0,0,0,0,0,null,null,"Aug",{"$error":"#N/A"},"Boat",8,35,null,null,null,null,null,null,null,null,null,null,null,{"$f":"IF(ISERROR(VLOOKUP(K14,FareChart!$B$4:$AB$28,27,FALSE)),0,VLOOKUP(K14,FareChart!$B$4:$AB$28,27,FALSE))","v":0},{"$f":"IF(ISERROR(VLOOKUP(L14,FareChart!$B$4:$AB$28,27,FALSE)),0,VLOOKUP(L14,FareChart!$B$4:$AB$28,27,FALSE))","v":0},{"$f":"IF(CX14<CY14,HLOOKUP(K14,FareChart!$B$3:$AA$28,CY14+1,FALSE),VLOOKUP(K14,FareChart!$B$4:$AA$28,CY14+1,FALSE))","v":{"$error":"#N/A"}},{"$f":"IF(CX14>CY14,HLOOKUP(K14,FareChart!$B$3:$AA$28,CY14+1,FALSE),VLOOKUP(K14,FareChart!$B$4:$AA$28,CY14+1,FALSE))","v":{"$error":"#N/A"}},"","","Within","Within",null,null,null,null,null,null,null,null,200,null,null,null,"2014-06-14"]
["",null,null,null,null,null,null,null,null,null,null,null,null,null,null,null,null,null,null,0,null,0,200,200,0,0,0,false,null,null,null,"00:00:00",0,"00","00:00:00","00:00:00","00:00:00","00:00:00",0,"00","00:00:00",0,"0 0",0,0,false,0,0,"0% daily",0,0,0,0,0,0,0,0,0,0,false,0,0,0,0,0,0,0,0,0,0,0,0,0,0,false,0,0,0,0,0,0,0,0,null,null,"Sep",{"$error":"#N/A"},"Taxi",9,40,null,null,null,null,null,null,null,null,null,null,null,{"$f":"IF(ISERROR(VLOOKUP(K15,FareChart!$B$4:$AB$28,27,FALSE)),0,VLOOKUP(K15,FareChart!$B$4:$AB$28,27,FALSE))","v":0},{"$f":"IF(ISERROR(VLOOKUP(L15,FareChart!$B$4:$AB$28,27,FALSE)),0,VLOOKUP(L15,FareChart!$B$4:$AB$28,27,FALSE))","v":0},{"$f":"IF(CX15<CY15,HLOOKUP(K15,FareChart!$B$3:$AA$28,CY15+1,FALSE),VLOOKUP(K15,FareChart!$B$4:$AA$28,CY15+1,FALSE))","v":{"$error":"#N/A"}},{"$f":"IF(CX15>CY15,HLOOKUP(K15,FareChart!$B$3:$AA$28,CY15+1,FALSE),VLOOKUP(K15,FareChart!$B$4:$AA$28,CY15+1,FALSE))","v":{"$error":"#N/A"}},"","","Within","Within",null,null,null,null,null,null,null,null,200,null,null,null,"2014-06-15"]
["",null,null,null,null,null,null,null,null,null,null,null,null,null,null,null,null,null,null,0,null,0,200,200,0,0,0,false,null,null,null,"00:00:00",0,"00","00:00:00","00:00:00","00:00:00","00:00:00",0,"00","00:00:00",0,"0 0",0,0,false,0,0,"0% daily",0,0,0,0,0,0,0,0,0,0,false,0,0,0,0,0,0,0,0,0,0,0,0,0,0,false,0,0,0,0,0,0,0,0,null,null,"Oct",{"$error":"#N/A"},"Motor cycle",10,45,null,null,null,null,null,null,null,null,null,null,null,{"$f":"IF(ISERROR(VLOOKUP(K16,FareChart!$B$4:$AB$28,27,FALSE)),0,VLOOKUP(K16,FareChart!$B$4:$AB$28,27,FALSE))","v":0},{"$f":"IF(ISERROR(VLOOKUP(L16,FareChart!$B$4:$AB$28,27,FALSE)),0,VLOOKUP(L16,FareChart!$B$4:$AB$28,27,FALSE))","v":0},{"$f":"IF(CX16<CY16,HLOOKUP(K16,FareChart!$B$3:$AA$28,CY16+1,FALSE),VLOOKUP(K16,FareChart!$B$4:$AA$28,CY16+1,FALSE))","v":{"$error":"#N/A"}},{"$f":"IF(CX16>CY16,HLOOKUP(K16,FareChart!$B$3:$AA$28,CY16+1,FALSE),VLOOKUP(K16,FareChart!$B$4:$AA$28,CY16+1,FALSE))","v":{"$error":"#N/A"}},"","","Within","Within",null,null,null,null,null,null,null,null,200,null,null,null,"2014-06-16"]
["",null,null,null,null,null,null,null,null,null,null,null,null,null,null,null,null,null,null,0,null,0,200,200,0,0,0,false,null,null,null,"00:00:00",0,"00","00:00:00","00:00:00","00:00:00","00:00:00",0,"00","00:00:00",0,"0 0",0,0,false,0,0,"0% daily",0,0,0,0,0,0,0,0,0,0,false,0,0,0,0,0,0,0,0,0,0,0,0,0,0,false,0,0,0,0,0,0,0,0,null,null,"Nov",{"$error":"#N/A"},"Lorry",11,50,0,{"$f":"IF(CM17=0,\"\",CONCATENATE(CS19,CS20,CS21,CS22,CS23,CS24,CS25,CS26,CS27))","v":""},null,null,null,null,null,null,null,null,null,{"$f":"IF(ISERROR(VLOOKUP(K17,FareChart!$B$4:$AB$28,27,FALSE)),0,VLOOKUP(K17,FareChart!$B$4:$AB$28,27,FALSE))","v":0},{"$f":"IF(ISERROR(VLOOKUP(L17,FareChart!$B$4:$AB$28,27,FALSE)),0,VLOOKUP(L17,FareChart!$B$4:$AB$28,27,FALSE))","v":0},{"$f":"IF(CX17<CY17,HLOOKUP(K17,FareChart!$B$3:$AA$28,CY17+1,FALSE),VLOOKUP(K17,FareChart!$B$4:$AA$28,CY17+1,FALSE))","v":{"$error":"#N/A"}},{"$f":"IF(CX17>CY17,HLOOKUP(K17,FareChart!$B$3:$AA$28,CY17+1,FALSE),VLOOKUP(K17,FareChart!$B$4:$AA$28,CY17+1,FALSE))","v":{"$error":"#N/A"}},"","","Within","Within",null,null,null,null,null,null,null,null,200,null,null,null,"2014-06-17"]
[null,null,null,null,null,null,null,null,null,null,null,null,null,null,null,null,null,null,null,null,"No","Yes",null,null,null,null,null,null,null,null,null,null,null,null,null,null,null,null,null,null,null,null,null,null,{"$f":"IF(#REF!>=15,0.7,IF(AND(#REF!>15,#REF!>100),1,IF(AND(#REF!>200,#REF!>300),2,IF(AND(#REF!>300,#REF!>400),3,IF(AND(#REF!>400,#REF!>500),4,IF(AND(#REF!>500,#REF!>600),5))))))","v":{"$error":"#REF!"}},null,null,null,null,null,null,null,null,null,null,null,null,null,null,null,null,null,null,null,null,null,null,null,null,null,null,null,null,null,null,null,null,null,null,null,null,null,null,null,null,"Dec",{"$error":"#N/A"},"AIR",12,55,0,null,"Ten",null,null,null,{"$f":"IF(CM17>999999999,0,ROUND(CM17/1000000000,9))","v":0},null,null,null,null,0,0,{"$error":"#N/A"},{"$error":"#N/A"},"","","Within","Within",null,null,null,null,null,null,null,null,200,null,null,null,"2014-06-18"]
[null,null,null,null,null,null,null,null,null,null,null,null,null,null,null,null,null,null,null,null,"No","No",null,null,null,null,null,null,null,null,null,null,null,null,null,null,null,null,null,null,null,null,null,null,{"$f":"IF(#REF!>=15,0.7,IF(AND(#REF!>15,#REF!>100),1,IF(AND(#REF!>200,#REF!>300),2,IF(AND(#REF!>300,#REF!>400),3,IF(AND(#REF!>400,#REF!>500),4,IF(AND(#REF!>500,#REF!>600),5))))))","v":{"$error":"#REF!"}},null,null,null,null,null,null,null,null,null,null,null,null,null,null,null,null,null,null,null,null,null,null,null,null,null,null,null,null,null,null,null,null,null,null,null,null,null,null,null,null,null,{"$error":"#N/A"},null,13,"Within",1,"One","Eleven","Ten",null,{"$f":"IF(ISERROR(VALUE(MID(CS18,3,1)))=TRUE,0,VALUE(MID(CS18,3,1)))","v":0},{"$f":"\"( Rupees \"&IF(CR19=0,\"\",IF(CR19=1,VLOOKUP(CR20,CM18:CP27,3,FALSE)&\" Crore \",VLOOKUP(CR19,CM18:CP27,4,FALSE)))","v":"( Rupees "},null,null,null,null,0,0,{"$error":"#N/A"},{"$error":"#N/A"},"","","Within","Within",null,null,null,null,null,null,null,null,200,null,null,null,"2014-06-19"]
[null,null,null,null,null,null,null,null,null,null,null,null,null,null,null,null,null,null,null,null,null,null,null,null,null,null,null,null,null,null,null,null,null,null,null,null,null,null,null,null,null,null,null,null,{"$f":"IF(#REF!>=15,0.7,IF(AND(#REF!>15,#REF!>100),1,IF(AND(#REF!>200,#REF!>300),2,IF(AND(#REF!>300,#REF!>400),3,IF(AND(#REF!>400,#REF!>500),4,IF(AND(#REF!>500,#REF!>600),5))))))","v":{"$error":"#REF!"}},null,null,null,null,null,null,null,null,null,null,null,null,null,null,null,null,null,null,null,null,null,null,null,null,null,null,null,null,null,null,null,null,null,null,null,null,null,null,null,null,null,{"$error":"#N/A"},null,14,"Metro",2,"Two","Twelve","Twenty",null,{"$f":"IF(ISERROR(VALUE(MID(CS18,4,1)))=TRUE,0,VALUE(MID(CS18,4,1)))","v":0},{"$f":"IF(AND(CR20=0,CR19=0),\"\",IF(CR19=1,\"\",VLOOKUP(CR20,CM18:CP27,2,FALSE)&\" Crore \"))","v":""},null,null,null,null,0,0,{"$error":"#N/A"},{"$error":"#N/A"},"","","Within","Within",null,null,null,null,null,null,null,null,200,null,null,null,"2014-06-20"]
[null,null,null,null,null,null,null,null,null,null,null,null,null,null,null,null,null,null,null,null,null,null,null,null,null,null,null,null,null,null,null,null,null,null,null,null,null,null,null,null,null,null,null,null,{"$f":"IF(#REF!>=15,0.7,IF(AND(#REF!>15,#REF!>100),1,IF(AND(#REF!>200,#REF!>300),2,IF(AND(#REF!>300,#REF!>400),3,IF(AND(#REF!>400,#REF!>500),4,IF(AND(#REF!>500,#REF!>600),5))))))","v":{"$error":"#REF!"}},null,null,null,null,null,null,null,null,null,null,null,null,null,null,null,null,null,null,null,null,null,null,null,null,null,null,null,null,null,null,null,null,null,null,null,null,null,null,null,null,"Start",{"$error":"#N/A"},null,15,"Other",3,"Three","Thirteen","Thirty",null,{"$f":"IF(ISERROR(VALUE(MID(CS18,5,1)))=TRUE,0,VALUE(MID(CS18,5,1)))","v":0},{"$f":"IF(CR21=0,\"\",IF(CR21=1,VLOOKUP(CR22,CM18:CP27,3,FALSE)&\" Lakh \",VLOOKUP(CR21,CM18:CP27,4,FALSE)))","v":""},null,null,null,null,0,0,{"$error":"#N/A"},{"$error":"#N/A"},"","","Within","Within",null,null,null,null,null,null,null,null,200,null,null,null,"2014-06-21"]
[null,null,null,null,null,null,null,null,null,null,null,null,null,null,null,null,null,null,null,null,null,null,null,null,null,null,null,null,null,null,null,null,null,null,null,null,null,null,null,null,null,null,null,null,{"$f":"IF(#REF!>=15,0.7,IF(AND(#REF!>15,#REF!>100),1,IF(AND(#REF!>200,#REF!>300),2,IF(AND(#REF!>300,#REF!>400),3,IF(AND(#REF!>400,#REF!>500),4,IF(AND(#REF!>500,#REF!>600),5))))))","v":{"$error":"#REF!"}},null,null,null,null,null,null,null,null,null,null,null,null,null,null,null,null,null,null,null,null,null,null,null,null,null,null,null,null,null,null,null,null,null,null,null,null,null,null,null,null,"Halt",{"$error":"#N/A"},null,16,null,4,"Four","Fourteen","Forty",null,{"$f":"IF(ISERROR(VALUE(MID(CS18,6,1)))=TRUE,0,VALUE(MID(CS18,6,1)))","v":0},{"$f":"IF(AND(CR22=0,CR21=0),\"\",IF(CR21=1,\"\",VLOOKUP(CR22,CM18:CP27,2,FALSE)&\" Lakh \"))","v":""},null,null,null,null,0,0,{"$error":"#N/A"},{"$error":"#N/A"},"","","Within","Within",null,null,null,null,null,null,null,null,200,null,null,null,"2014-06-22"]
[null,null,null,null,null,null,null,null,null,null,null,null,null,null,null,null,null,null,null,null,null,null,null,null,null,null,null,null,null,null,null,null,null,null,null,null,null,null,null,null,null,null,null,null,{"$f":"IF(#REF!>=15,0.7,IF(AND(#REF!>15,#REF!>100),1,IF(AND(#REF!>200,#REF!>300),2,IF(AND(#REF!>300,#REF!>400),3,IF(AND(#REF!>400,#REF!>500),4,IF(AND(#REF!>500,#REF!>600),5))))))","v":{"$error":"#REF!"}},null,null,null,null,null,null,null,null,null,null,null,null,null,null,null,null,null,null,null,null,null,null,null,null,null,null,null,null,null,null,null,null,null,null,null,null,null,null,null,null,"To & Fro",{"$error":"#N/A"},null,17,null,5,"Five","Fifteen","Fifty",null,{"$f":"IF(ISERROR(VALUE(MID(CS18,7,1)))=TRUE,0,VALUE(MID(CS18,7,1)))","v":0},{"$f":"IF(CR23=0,\"\",IF(CR23=1,VLOOKUP(CR24,CM18:CP27,3,FALSE)&\" Thousand \",VLOOKUP(CR23,CM18:CP27,4,FALSE)))","v":""},null,null,null,null,0,0,{"$error":"#N/A"},{"$error":"#N/A"},"","","Within","Within",null,null,null,null,null,null,null,null,200,null,null,null,"2014-06-23"]
[null,null,null,null,null,null,null,null,null,null,null,null,null,null,null,null,null,null,null,null,null,null,null,null,null,null,null,null,null,null,null,null,null,null,null,null,null,null,null,null,null,null,null,null,{"$f":"IF(#REF!>=15,0.7,IF(AND(#REF!>15,#REF!>100),1,IF(AND(#REF!>200,#REF!>300),2,IF(AND(#REF!>300,#REF!>400),3,IF(AND(#REF!>400,#REF!>500),4,IF(AND(#REF!>500,#REF!>600),5))))))","v":{"$error":"#REF!"}},null,null,null,null,null,null,null,null,null,null,null,null,null,null,null,null,null,null,null,null,null,null,null,null,null,null,null,null,null,null,null,null,null,null,null,null,null,null,null,null,"Room_rent",{"$error":"#N/A"},null,18,null,6,"Six","Sixteen","Sixty",null,{"$f":"IF(ISERROR(VALUE(MID(CS18,8,1)))=TRUE,0,VALUE(MID(CS18,8,1)))","v":0},{"$f":"IF(AND(CR24=0,CR23=0),\"\",IF(CR23=1,\"\",VLOOKUP(CR24,CM18:CP27,2,FALSE)&\" Thousand \"))","v":""},null,null,null,null,0,0,{"$error":"#N/A"},{"$error":"#N/A"},"","","Within","Within",null,null,null,null,null,null,null,null,200,null,null,null,"2014-06-24"]
[null,null,null,null,null,null,null,null,null,null,null,null,null,null,null,null,null,null,null,null,null,null,null,null,null,null,null,null,null,null,null,null,null,null,null,null,null,null,null,null,null,null,null,null,{"$f":"IF(#REF!>=15,0.7,IF(AND(#REF!>15,#REF!>100),1,IF(AND(#REF!>200,#REF!>300),2,IF(AND(#REF!>300,#REF!>400),3,IF(AND(#REF!>400,#REF!>500),4,IF(AND(#REF!>500,#REF!>600),5))))))","v":{"$error":"#REF!"}},null,null,null,null,null,null,null,null,null,null,null,null,null,null,null,null,null,null,null,null,null,null,null,null,null,null,null,null,null,null,null,null,null,null,null,null,null,null,null,null,"LTA",{"$error":"#N/A"},null,19,null,7,"Seven","Seventeen","Seventy",null,{"$f":"IF(ISERROR(VALUE(MID(CS18,9,1)))=TRUE,0,VALUE(MID(CS18,9,1)))","v":0},{"$f":"IF(CR25=0,\"\",VLOOKUP(CR25,CM18:CP27,2)&IF(AND(CR26=0,CR27=0),\" Hundred \",\" Hundred and \"))","v":""},null,null,null,null,0,0,{"$error":"#N/A"},{"$error":"#N/A"},"","","Within","Within",null,null,null,null,null,null,null,null,200,null,null,null,"2014-06-25"]
[null,null,null,null,null,null,null,null,null,null,null,null,null,null,null,null,null,null,null,null,null,null,null,null,null,null,null,null,null,null,null,null,null,null,null,null,null,null,null,null,null,null,null,null,{"$f":"IF(#REF!>=15,0.7,IF(AND(#REF!>15,#REF!>100),1,IF(AND(#REF!>200,#REF!>300),2,IF(AND(#REF!>300,#REF!>400),3,IF(AND(#REF!>400,#REF!>500),4,IF(AND(#REF!>500,#REF!>600),5))))))","v":{"$error":"#REF!"}},null,null,null,null,null,null,null,null,null,null,null,null,null,null,null,null,null,null,null,null,null,null,null,null,null,null,null,null,null,null,null,null,null,null,null,null,null,null,null,null,"TTA",{"$error":"#N/A"},null,20,null,8,"Eight","Eighteen","Eighty",null,{"$f":"IF(ISERROR(VALUE(MID(CS18,10,1)))=TRUE,0,VALUE(MID(CS18,10,1)))","v":0},{"$f":"IF(CR26=0,\"\",IF(CR26=1,VLOOKUP(CR27,CM18:CP27,3,FALSE),VLOOKUP(CR26,CM18:CP27,4,FALSE)))","v":""},null,null,null,null,0,0,{"$error":"#N/A"},{"$error":"#N/A"},"","","Within","Within",null,null,null,null,null,null,null,null,200,null,null,null,"2014-06-26"]
[null,null,null,null,null,null,null,null,null,null,null,null,null,null,null,null,null,null,null,null,null,null,null,null,null,null,null,null,null,null,null,null,null,null,null,null,null,null,null,null,null,null,null,null,{"$f":"IF(#REF!>=15,0.7,IF(AND(#REF!>15,#REF!>100),1,IF(AND(#REF!>200,#REF!>300),2,IF(AND(#REF!>300,#REF!>400),3,IF(AND(#REF!>400,#REF!>500),4,IF(AND(#REF!>500,#REF!>600),5))))))","v":{"$error":"#REF!"}},null,null,null,null,null,null,null,null,null,null,null,null,null,null,null,null,null,null,null,null,null,null,null,null,null,null,null,null,null,null,null,null,null,null,null,null,null,null,null,null,"Cont.",{"$error":"#N/A"},null,21,null,9,"Nine","Nineteen","Ninety",null,{"$f":"IF(ISERROR(VALUE(MID(CS18,11,1)))=TRUE,0,VALUE(MID(CS18,11,1)))","v":0},{"$f":"IF(CR26=1,\"\",VLOOKUP(CR27,CM18:CP27,2,FALSE))&\" Only )\"","v":" Only )"},null,null,null,null,0,0,{"$error":"#N/A"},{"$error":"#N/A"},"","","Within","Within",null,null,null,null,null,null,null,null,200,null,null,null,"2014-06-27"]
[null,null,null,null,null,null,null,null,null,null,null,null,null,null,null,null,null,null,null,null,null,null,null,null,null,null,null,null,null,null,null,null,null,null,null,null,null,null,null,null,null,null,null,null,{"$f":"IF(#REF!>=15,0.7,IF(AND(#REF!>15,#REF!>100),1,IF(AND(#REF!>200,#REF!>300),2,IF(AND(#REF!>300,#REF!>400),3,IF(AND(#REF!>400,#REF!>500),4,IF(AND(#REF!>500,#REF!>600),5))))))","v":{"$error":"#REF!"}},null,null,null,null,null,null,null,null,null,null,null,null,null,null,null,null,null,null,null,null,null,null,null,null,null,null,null,null,null,null,null,null,null,null,null,null,null,null,null,null,null,{"$error":"#N/A"},null,22,null,null,null,null,null,null,null,null,null,null,null,null,0,0,{"$error":"#N/A"},{"$error":"#N/A"},"","","Within","Within",null,null,null,null,null,null,null,null,200,null,null,null,"2014-06-28"]
[null,null,null,null,null,null,null,null,null,null,null,null,null,null,null,null,null,null,null,null,null,null,null,null,null,null,null,null,null,null,null,null,null,null,null,null,null,null,null,null,null,null,null,null,{"$f":"IF(#REF!>=15,0.7,IF(AND(#REF!>15,#REF!>100),1,IF(AND(#REF!>200,#REF!>300),2,IF(AND(#REF!>300,#REF!>400),3,IF(AND(#REF!>400,#REF!>500),4,IF(AND(#REF!>500,#REF!>600),5))))))","v":{"$error":"#REF!"}},null,null,null,null,null,null,null,null,null,null,null,null,null,null,null,null,null,null,null,null,null,null,null,null,null,null,null,null,null,null,null,null,null,null,null,null,null,null,null,null,"in",{"$error":"#N/A"},null,23,null,null,null,null,null,null,null,null,null,null,null,null,0,0,{"$error":"#N/A"},{"$error":"#N/A"},"","","Within","Within",null,null,null,null,null,null,null,null,200,null,null,null,"2014-06-29"]
[null,null,null,null,null,null,null,null,null,null,null,null,null,null,null,null,null,null,null,null,null,null,null,null,null,null,null,null,null,null,null,null,null,null,null,null,null,null,null,null,null,null,null,null,{"$f":"IF(#REF!>=15,0.7,IF(AND(#REF!>15,#REF!>100),1,IF(AND(#REF!>200,#REF!>300),2,IF(AND(#REF!>300,#REF!>400),3,IF(AND(#REF!>400,#REF!>500),4,IF(AND(#REF!>500,#REF!>600),5))))))","v":{"$error":"#REF!"}},null,null,null,null,null,null,null,null,null,null,null,null,null,null,null,null,null,null,null,null,null,null,null,null,null,null,null,null,null,null,null,null,null,null,null,null,null,null,null,null,"out",{"$error":"#N/A"},null,24,null,null,null,null,null,null,null,null,null,null,null,null,0,0,{"$error":"#N/A"},{"$error":"#N/A"},"","","Within","Within",null,null,null,null,null,null,null,null,200,null,null,null,"2014-06-30"]
[null,null,null,null,null,null,null,null,null,null,null,null,null,null,null,null,null,null,null,null,null,null,null,null,null,null,null,null,null,null,null,null,null,null,null,null,null,null,null,null,null,null,null,null,{"$f":"IF(#REF!>=15,0.7,IF(AND(#REF!>15,#REF!>100),1,IF(AND(#REF!>200,#REF!>300),2,IF(AND(#REF!>300,#REF!>400),3,IF(AND(#REF!>400,#REF!>500),4,IF(AND(#REF!>500,#REF!>600),5))))))","v":{"$error":"#REF!"}},null,null,null,null,null,null,null,null,null,null,null,null,null,null,null,null,null,null,null,null,null,null,null,null,null,null,null,null,null,null,null,null,null,null,null,null,null,null,null,null,null,{"$error":"#N/A"},null,25,null,null,null,null,null,null,null,null,null,null,null,null,0,0,{"$error":"#N/A"},{"$error":"#N/A"},"","","Within","Within",null,null,null,null,null,null,null,null,200,null,null,null,"2014-07-01"]
[null,null,null,null,null,null,null,null,null,null,null,null,null,null,null,null,null,null,null,null,null,null,null,null,null,null,null,null,null,null,null,null,null,null,null,null,null,null,null,null,null,null,null,null,{"$f":"IF(#REF!>=15,0.7,IF(AND(#REF!>15,#REF!>100),1,IF(AND(#REF!>200,#REF!>300),2,IF(AND(#REF!>300,#REF!>400),3,IF(AND(#REF!>400,#REF!>500),4,IF(AND(#REF!>500,#REF!>600),5))))))","v":{"$error":"#REF!"}},null,null,null,null,null,null,null,null,null,null,null,null,null,null,null,null,null,null,null,null,null,null,null,null,null,null,null,null,null,null,null,null,null,null,null,null,null,null,null,null,null,{"$error":"#N/A"},null,26,null,null,null,null,null,null,null,null,null,null,null,null,0,0,{"$error":"#N/A"},{"$error":"#N/A"},"","","Within","Within",null,null,null,null,null,null,null,null,200,null,null,null,""]
[null,null,null,null,null,null,null,null,null,null,null,null,null,null,null,null,null,null,null,null,null,null,null,null,null,null,null,null,null,null,null,null,null,null,null,null,null,null,null,null,null,null,null,null,{"$f":"IF(#REF!>=15,0.7,IF(AND(#REF!>15,#REF!>100),1,IF(AND(#REF!>200,#REF!>300),2,IF(AND(#REF!>300,#REF!>400),3,IF(AND(#REF!>400,#REF!>500),4,IF(AND(#REF!>500,#REF!>600),5))))))","v":{"$error":"#REF!"}},null,null,null,null,null,null,null,null,null,null,null,null,null,null,null,null,null,null,null,null,null,null,null,null,null,null,null,null,null,null,null,null,null,null,null,null,null,null,null,null,null,{"$error":"#N/A"},null,27,null,null,null,null,null,null,null,null,null,null,null,null,0,0,{"$error":"#N/A"},{"$error":"#N/A"},"","","Within","Within",null,null,null,null,null,null,null,null,200,null,null,null,""]
[null,null,null,null,null,null,null,null,null,null,null,null,null,null,null,null,null,null,null,null,null,null,null,null,null,null,null,null,null,null,null,null,null,null,null,null,null,null,null,null,null,null,null,null,{"$f":"IF(#REF!>=15,0.7,IF(AND(#REF!>15,#REF!>100),1,IF(AND(#REF!>200,#REF!>300),2,IF(AND(#REF!>300,#REF!>400),3,IF(AND(#REF!>400,#REF!>500),4,IF(AND(#REF!>500,#REF!>600),5))))))","v":{"$error":"#REF!"}},null,null,null,null,null,null,null,null,null,null,null,null,null,null,null,null,null,null,null,null,null,null,null,null,null,null,null,null,null,null,null,null,null,null,null,null,null,null,null,null,null,{"$error":"#N/A"},null,28,null,null,null,null,null,null,null,null,null,null,null,null,0,0,{"$error":"#N/A"},{"$error":"#N/A"},"","","Within","Within",null,null,null,null,null,null,null,null,200,null,null,null,""]
[null,null,null,null,null,null,null,null,null,null,null,null,null,null,null,null,null,null,null,null,null,null,null,null,null,null,null,null,null,null,null,null,null,null,null,null,null,null,null,null,null,null,null,null,{"$f":"IF(#REF!>=15,0.7,IF(AND(#REF!>15,#REF!>100),1,IF(AND(#REF!>200,#REF!>300),2,IF(AND(#REF!>300,#REF!>400),3,IF(AND(#REF!>400,#REF!>500),4,IF(AND(#REF!>500,#REF!>600),5))))))","v":{"$error":"#REF!"}},null,null,null,null,null,null,null,null,null,null,null,null,null,null,null,null,null,null,null,null,null,null,null,null,null,null,null,null,null,null,null,null,null,null,null,null,null,null,null,null,null,{"$f":"IF(CK35=\"\",\"\",CK35&\"-\"&$CI$6&\"-\"&$M$2)","v":{"$error":"#N/A"}},null,{"$f":"IF(AND(L2=\"Feb\",(M2/4-ROUND(M2/4,0))<>0),\"\",29)","v":29},null,null,null,null,null,null,null,null,null,null,null,null,0,0,{"$error":"#N/A"},{"$error":"#N/A"},"","","Within","Within",null,null,null,null,null,null,null,null,200,null,null,null,{"$f":"IFERROR(IF(DR34+1>$DS$1,\"\",DR34+1),\"\")","v":""}]
[null,null,null,null,null,null,null,null,null,null,null,null,null,null,null,null,null,null,null,null,null,null,null,null,null,null,null,null,null,null,null,null,null,null,null,null,null,null,null,null,null,null,null,null,{"$f":"IF(#REF!>=15,0.7,IF(AND(#REF!>15,#REF!>100),1,IF(AND(#REF!>200,#REF!>300),2,IF(AND(#REF!>300,#REF!>400),3,IF(AND(#REF!>400,#REF!>500),4,IF(AND(#REF!>500,#REF!>600),5))))))","v":{"$error":"#REF!"}},null,null,null,null,null,null,null,null,null,null,null,null,null,null,null,null,null,null,null,null,null,null,null,null,null,null,null,null,null,null,null,null,null,null,null,null,null,null,null,null,null,{"$f":"IF(CK36=\"\",\"\",CK36&\"-\"&$CI$6&\"-\"&$M$2)","v":{"$error":"#N/A"}},null,{"$f":"IF(L2=\"Feb\",\"\",30)","v":30},null,null,null,null,null,null,null,null,null,null,null,null,0,0,{"$error":"#N/A"},{"$error":"#N/A"},"","","Within","Within",null,null,null,null,null,null,null,null,200,null,null,null,""]
[null,null,null,null,null,null,null,null,null,null,null,null,null,null,null,null,null,null,null,null,null,null,null,null,null,null,null,null,null,null,null,null,null,null,null,null,null,null,null,null,null,null,null,null,{"$f":"IF(#REF!>=15,0.7,IF(AND(#REF!>15,#REF!>100),1,IF(AND(#REF!>200,#REF!>300),2,IF(AND(#REF!>300,#REF!>400),3,IF(AND(#REF!>400,#REF!>500),4,IF(AND(#REF!>500,#REF!>600),5))))))","v":{"$error":"#REF!"}},null,null,null,null,null,null,null,null,null,null,null,null,null,null,null,null,null,null,null,null,null,null,null,null,null,null,null,null,null,null,null,null,null,null,null,null,null,null,null,null,null,{"$f":"IF(CK37=\"\",\"\",CK37&\"-\"&$CI$6&\"-\"&$M$2)","v":""},null,{"$f":"IF(OR(L2=\"Jan\",L2=\"Mar\",L2=\"May\",L2=\"Jul\",L2=\"Aug\",L2=\"Oct\",L2=\"Dec\"),31,\"\")","v":""},null,null,null,null,null,null,null,null,null,null,null,null,0,0,{"$error":"#N/A"},{"$error":"#N/A"},"","","Within","Within",null,null,null,null,null,null,null,null,200,null,null,null,""]
[null,null,null,null,null,null,null,null,null,null,null,null,null,null,null,null,null,null,null,null,null,null,null,null,null,null,null,null,null,null,null,null,null,null,null,null,null,null,null,null,null,null,null,null,{"$f":"IF(#REF!>=15,0.7,IF(AND(#REF!>15,#REF!>100),1,IF(AND(#REF!>200,#REF!>300),2,IF(AND(#REF!>300,#REF!>400),3,IF(AND(#REF!>400,#REF!>500),4,IF(AND(#REF!>500,#REF!>600),5))))))","v":{"$error":"#REF!"}},null,null,null,null,null,null,null,null,null,null,null,null,null,null,null,null,null,null,null,null,null,null,null,null,null,null,null,null,null,null,null,null,null,null,null,null,null,null,null,null,null,null,null,null,null,null,null,null,null,null,null,null,null,null,null,null,0,0,{"$error":"#N/A"},{"$error":"#N/A"},"","","Within","Within",null,null,null,null,null,null,null,null,200,null,null,null,""]
[null,null,null,null,null,null,null,null,null,null,null,null,null,null,null,null,null,null,null,null,null,null,null,null,null,null,null,null,null,null,null,null,null,null,null,null,null,null,null,null,null,null,null,null,{"$f":"IF(#REF!>=15,0.7,IF(AND(#REF!>15,#REF!>100),1,IF(AND(#REF!>200,#REF!>300),2,IF(AND(#REF!>300,#REF!>400),3,IF(AND(#REF!>400,#REF!>500),4,IF(AND(#REF!>500,#REF!>600),5))))))","v":{"$error":"#REF!"}},null,null,null,null,null,null,null,null,null,null,null,null,null,null,null,null,null,null,null,null,null,null,null,null,null,null,null,null,null,null,null,null,null,null,null,null,null,null,null,null,null,null,null,null,null,null,null,null,null,null,null,null,null,null,null,null,0,0,{"$error":"#N/A"},{"$error":"#N/A"},"","","Within","Within",null,null,null,null,null,null,null,null,200,null,null,null,""]
[null,null,null,null,null,null,null,null,null,null,null,null,null,null,null,null,null,null,null,null,null,null,null,null,null,null,null,null,null,null,null,null,null,null,null,null,null,null,null,null,null,null,null,null,{"$f":"IF(#REF!>=15,0.7,IF(AND(#REF!>15,#REF!>100),1,IF(AND(#REF!>200,#REF!>300),2,IF(AND(#REF!>300,#REF!>400),3,IF(AND(#REF!>400,#REF!>500),4,IF(AND(#REF!>500,#REF!>600),5))))))","v":{"$error":"#REF!"}},null,null,null,null,null,null,null,null,null,null,null,null,null,null,null,null,null,null,null,null,null,null,null,null,null,null,null,null,null,null,null,null,null,null,null,null,null,null,null,null,null,null,null,null,null,null,null,null,null,null,null,null,null,null,null,null,0,0,{"$error":"#N/A"},{"$error":"#N/A"},"","","Within","Within",null,null,null,null,null,null,null,null,200,null,null,null,""]
[null,null,null,null,null,null,null,null,null,null,null,null,null,null,null,null,null,null,null,null,null,null,null,null,null,null,null,null,null,null,null,null,null,null,null,null,null,null,null,null,null,null,null,null,{"$f":"IF(#REF!>=15,0.7,IF(AND(#REF!>15,#REF!>100),1,IF(AND(#REF!>200,#REF!>300),2,IF(AND(#REF!>300,#REF!>400),3,IF(AND(#REF!>400,#REF!>500),4,IF(AND(#REF!>500,#REF!>600),5))))))","v":{"$error":"#REF!"}},null,null,null,null,null,null,null,null,null,null,null,null,null,null,null,null,null,null,null,null,null,null,null,null,null,null,null,null,null,null,null,null,null,null,null,null,null,null,null,null,null,null,null,null,null,null,null,null,null,null,null,null,null,null,null,null,0,0,{"$error":"#N/A"},{"$error":"#N/A"},"","","Within","Within",null,null,null,null,null,null,null,null,200,null,null,null,""]
[null,null,null,null,null,null,null,null,null,null,null,null,null,null,null,null,null,null,null,null,null,null,null,null,null,null,null,null,null,null,null,null,null,null,null,null,null,null,null,null,null,null,null,null,{"$f":"IF(#REF!>=15,0.7,IF(AND(#REF!>15,#REF!>100),1,IF(AND(#REF!>200,#REF!>300),2,IF(AND(#REF!>300,#REF!>400),3,IF(AND(#REF!>400,#REF!>500),4,IF(AND(#REF!>500,#REF!>600),5))))))","v":{"$error":"#REF!"}},null,null,null,null,null,null,null,null,null,null,null,null,null,null,null,null,null,null,null,null,null,null,null,null,null,null,null,null,null,null,null,null,null,null,null,null,null,null,null,null,null,null,null,null,null,null,null,null,null,null,null,null,null,null,null,null,0,0,{"$error":"#N/A"},{"$error":"#N/A"},"","","Within","Within",null,null,null,"Room rent",null,null,null,null,200,null,null,null,""]
[null,null,null,null,null,null,null,null,null,null,null,null,null,null,null,null,null,null,null,null,"Purpose ",null,null,null,null,null,null,null,null,null,null,null,null,null,null,null,null,null,null,null,null,null,null,null,null,null,null,null,null,null,null,null,null,null,null,null,null,null,null,null,null,null,null,null,null,null,null,null,null,null,null,null,null,null,null,null,null,null,null,null,null,null,null,null,null,null,null,null,null,null,null,null,null,null,null,null,null,null,null,null,null,null,null,null,null,null,null,null,null,null,null,null,"Metro","Other","Within",null,null,null,null,null,null,""]
[null,null,null,null,null,null,null,null,null,null,null,null,null,null,null,null,null,null,null,null,"Attend Conference",{"$f":"FareChart!B4","v":"Palampur"},null,null,null,null,null,null,null,null,null,null,null,null,null,null,null,null,null,null,null,null,null,null,null,null,null,null,null,null,null,null,null,null,null,null,null,null,null,null,null,null,null,null,null,null,null,null,null,null,null,null,null,null,null,null,null,null,null,null,null,null,null,null,null,null,null,null,null,null,null,null,null,null,null,null,null,null,null,null,null,null,null,null,null,null,null,null,null,null,null,"A",5000,1600,null,null,null,null,null,null,null,""]
[null,null,null,null,null,null,null,null,null,null,null,null,null,null,null,null,{"$f":"IF(O45>0,DAY(O45),\"\")","v":""},null,null,null,"Office inspection",{"$f":"FareChart!B5","v":"Dharamshala"},null,null,null,null,null,null,null,null,null,null,null,null,null,null,null,null,null,null,null,null,null,null,null,null,null,null,null,null,null,null,null,null,null,null,null,null,null,null,null,null,null,null,null,null,null,null,null,null,null,null,null,null,null,null,null,null,null,null,null,null,null,null,null,null,null,null,null,null,null,null,null,null,null,null,null,null,null,null,null,null,null,null,null,null,null,null,null,null,null,"B",3000,1200,null,null,null,null,null,null,null,""]
[null,"Advance TA drawn",null,null,null,null,null,null,null,null,null,null,null,null,null,null,"",null,null,null,"Court case",{"$f":"FareChart!B6","v":"Baijnath"},null,null,null,null,null,null,null,null,null,null,null,null,null,null,null,null,null,null,null,null,null,null,null,null,null,null,null,null,null,null,null,null,null,null,null,null,null,null,null,null,null,null,null,null,null,null,null,null,null,null,null,null,null,null,null,null,null,null,null,null,null,null,null,null,null,null,null,null,null,null,null,null,null,null,null,null,null,null,null,null,null,null,null,null,null,null,null,null,null,"C",1500,800,null,null,null,null,null,null,null,""]
[null,"Head",null,null,null,null,null,null,null,null,null,null,null,null,null,null,"",null,null,null,"Meeting",{"$f":"FareChart!B7","v":"Paprola"},null,null,null,null,null,null,null,null,null,null,null,null,null,null,null,null,null,null,null,null,null,null,null,null,null,null,null,null,null,null,null,null,null,null,null,null,null,null,null,null,null,null,null,null,null,null,null,null,null,null,null,null,null,null,null,null,null,null,null,null,null,null,null,null,null,null,null,null,null,null,null,null,null,null,null,null,null,null,null,null,null,null,null,null,null,null,null,null,null,"D",1000,600,null,null,null,null,null,null,null,""]
[null,null,null,null,null,null,null,null,null,null,null,null,null,null,null,null,"",null,null,null,"Attend Training",{"$f":"FareChart!B8","v":"Nagrota"},null,null,null,null,null,null,null,null,null,null,null,null,null,null,null,null,null,null,null,null,null,null,null,null,null,null,null,null,null,null,null,null,null,null,null,null,null,null,null,null,null,null,null,null,null,null,null,null,null,null,null,null,null,null,null,null,null,null,null,null,null,null,null,null,null,null,null,null,null,null,null,null,null,null,null,null,null,null,null,null,null,null,null,null,null,null,null,null,null,"E",1000,500,null,null,null,null,null,null,null,""]
[null,null,null,null,null,null,null,null,null,null,null,null,null,null,null,null,"",null,null,null,"External Examination",{"$f":"FareChart!B9","v":"Bajaura"},null,null,null,null,null,null,null,null,null,null,null,null,null,null,null,null,null,null,null,null,null,null,null,null,null,null,null,null,null,null,null,null,null,null,null,null,null,null,null,null,null,null,null,null,null,null,null,null,null,null,null,null,null,null,null,null,null,null,null,null,null,null,null,null,null,null,null,null,null,null,null,null,null,null,null,null,null,null,null,null,null,null,null,null,null,null,null,null,null,null,"LTA",null,null,null,null,null,null,null,null,""]
[null,null,null,null,null,null,null,null,null,null,null,null,null,null,null,null,"",null,null,null,"Viva-Voce Examination",{"$f":"FareChart!B10","v":"Dhaulakuan"},null,null,null,null,null,null,null,null,null,null,null,null,null,null,null,null,null,null,null,null,null,null,null,null,null,null,null,null,null,null,null,null,null,null,null,null,null,null,null,null,null,null,null,null,null,null,null,null,null,null,null,null,null,null,null,null,null,null,null,null,null,null,null,null,null,null,null,null,null,null,null,null,null,null,null,null,null,null,null,null,null,null,null,null,null,null,null,null,null,null,"Metro","Other","Within",null,null,null,null,null,null,""]
[null,null,null,null,null,null,null,null,null,null,null,null,null,null,null,null,"",null,null,null,"Attend workshop",{"$f":"FareChart!B11","v":"Berthin"},null,null,null,null,null,null,null,null,null,null,null,null,null,null,null,null,null,null,null,null,null,null,null,null,null,null,null,null,null,null,null,null,null,null,null,null,null,null,null,null,null,null,null,null,null,null,null,null,null,null,null,null,null,null,null,null,null,null,null,null,null,null,null,null,null,null,null,null,null,null,null,null,null,null,null,null,null,null,null,null,null,null,null,null,null,null,null,null,null,"A",500,null,null,null,null,null,null,null,null,""]
[null,null,null,null,null,null,null,null,null,null,null,null,null,null,null,null,"",null,null,null,null,{"$f":"FareChart!B12","v":"Shimla"},null,null,null,null,null,null,null,null,null,null,null,null,null,null,null,null,null,null,null,null,null,null,null,null,null,null,null,null,null,null,null,null,null,null,null,null,null,null,null,null,null,null,null,null,null,null,null,null,null,null,null,null,null,null,null,null,null,null,null,null,null,null,null,null,null,null,null,null,null,null,null,null,null,null,null,null,null,null,null,null,null,null,null,null,null,null,null,null,null,"B",500,null,null,null,null,null,null,null,null,""]
[null,null,null,null,null,null,null,null,null,null,null,null,null,null,null,null,"",null,null,null,null,{"$f":"FareChart!B13","v":"Kukumseri"},null,null,null,null,null,null,null,null,null,null,null,null,null,null,null,null,null,null,null,null,null,null,null,null,null,null,null,null,null,null,null,null,null,null,null,null,null,null,null,null,null,null,null,null,null,null,null,null,null,null,null,null,null,null,null,null,null,null,null,null,null,null,null,null,null,null,null,null,null,null,null,null,null,null,null,null,null,null,null,null,null,null,null,null,null,null,null,null,null,"C",500,null,null,null,null,null,null,null,null,""]
[null,null,null,null,null,null,null,null,null,null,null,null,null,null,null,null,"",null,null,null,null,{"$f":"FareChart!B14","v":"Delhi"},null,null,null,null,null,null,null,null,null,null,null,null,null,null,null,null,null,null,null,null,null,null,null,null,null,null,null,null,null,null,null,null,null,null,null,null,null,null,null,null,null,null,null,null,null,null,null,null,null,null,null,null,null,null,null,null,null,null,null,null,null,null,null,null,null,null,null,null,null,null,null,null,null,null,null,null,null,null,null,null,null,null,null,null,null,null,null,null,null,"D",250,null,null,null,null,null,null,null,null,""]
[null,null,null,null,null,null,null,null,null,null,null,null,null,null,null,null,null,null,null,null,null,{"$f":"FareChart!B15","v":"Chamba"},null,null,null,null,null,null,null,null,null,null,null,null,null,null,null,null,null,null,null,null,null,null,null,null,null,null,null,null,null,null,null,null,null,null,null,null,null,null,null,null,null,null,null,null,null,null,null,null,null,null,null,null,null,null,null,null,null,null,null,null,null,null,null,null,null,null,null,null,null,null,null,null,null,null,null,null,null,null,null,null,null,null,null,null,null,null,null,null,null,"E",250,null,null,null,null,null,null,null,null,""]
[null,null,null,null,null,null,null,null,null,null,null,null,null,null,null,null,null,null,null,null,null,{"$f":"FareChart!B16","v":"Mandi"},null,null,null,null,null,null,null,null,null,null,null,null,null,null,null,null,null,null,null,null,null,null,null,null,null,null,null,null,null,null,null,null,null,null,null,null,null,null,null,null,null,null,null,null,null,null,null,null,null,null,null,null,null,null,null,null,null,null,null,null,null,null,null,null,null,null,null,null,null,null,null,null,null,null,null,null,null,null,null,null,null,null,null,null,null,null,null,null,null,null,"TTA",null,null,null,null,null,null,null,null,""]
[null,null,null,null,null,null,null,null,null,null,null,null,null,null,null,null,null,null,null,null,null,{"$f":"FareChart!B17","v":"Solan"},null,null,null,null,null,null,null,null,null,null,null,null,null,null,null,null,null,null,null,null,null,null,null,null,null,null,null,null,null,null,null,null,null,null,null,null,null,null,null,null,null,null,null,null,null,null,null,null,null,null,null,null,null,null,null,null,null,null,null,null,null,null,null,null,null,null,null,null,null,null,null,null,null,null,null,null,null,null,null,null,null,null,null,null,null,null,null,null,null,null,"Metro","Other","Within",null,null,null,null,null,null,""]
[null,null,null,null,null,null,null,null,null,null,null,null,null,null,null,null,null,null,null,null,".",{"$f":"FareChart!B18","v":"Hamirpur"},null,null,null,null,null,null,null,null,null,null,null,null,null,null,null,null,null,null,null,null,null,null,null,null,null,null,null,null,null,null,null,null,null,null,null,null,null,null,null,null,null,null,null,null,null,null,null,null,null,null,null,null,null,null,null,null,null,null,null,null,null,null,null,null,null,null,null,null,null,null,null,null,null,null,null,null,null,null,null,null,null,null,null,null,null,null,null,null,null,"A",200,null,null,null,null,null,null,null,null,""]
[null,null,null,null,null,null,null,null,null,null,null,null,null,null,null,null,null,null,null,null,".",{"$f":"FareChart!B19","v":"Una"},null,null,null,null,null,null,null,null,null,null,null,null,null,null,null,null,null,null,null,null,null,null,null,null,null,null,null,null,null,null,null,null,null,null,null,null,null,null,null,null,null,null,null,null,null,null,null,null,null,null,null,null,null,null,null,null,null,null,null,null,null,null,null,null,null,null,null,null,null,null,null,null,null,null,null,null,null,null,null,null,null,null,null,null,null,null,null,null,null,"B",200,null,null,null,null,null,null,null,null,""]
[{"$f":"IF(L3=0,0,VLOOKUP(L3,A62:B68,2,FALSE))","v":{"$error":"#N/A"}},{"$f":"IF(A60+28=CK37,CK37,IF(A60+28=CK36,CK36,0))","v":{"$error":"#N/A"}},null,null,{"$f":"CK37","v":""},null,null,null,null,null,null,null,null,null,null,null,null,null,null,null,".",{"$f":"FareChart!B20","v":"Pathankot"},null,null,null,null,null,null,null,null,null,null,null,null,null,null,null,null,null,null,null,null,null,null,null,null,null,null,null,null,null,null,null,null,null,null,null,null,null,null,null,null,null,null,null,null,null,null,null,null,null,null,null,null,null,null,null,null,null,null,null,null,null,null,null,null,null,null,null,null,null,null,null,null,null,null,null,null,null,null,null,null,null,null,null,null,null,null,null,null,null,"C",200,null,null,null,null,null,null,null,null,""]
[{"$f":"\"-\"&L2&\"-\"&M2","v":"-41791-41821"},null,null,null,null,null,null,null,null,null,null,null,null,null,null,null,null,null,null,null,".",{"$f":"FareChart!B21","v":"Bilaspur"},null,null,null,null,null,null,null,null,null,null,null,null,null,null,null,null,null,null,null,null,null,null,null,null,null,null,null,null,null,null,null,null,null,null,null,null,null,null,null,null,null,null,null,null,null,null,null,null,null,null,null,null,null,null,null,null,null,null,null,null,null,null,null,null,null,null,null,null,null,null,null,null,null,null,null,null,null,null,null,null,null,null,null,null,null,null,null,null,null,"D",100,null,null,null,null,null,null,null,null,""]
["Sunday",8,null,null,null,null,null,null,null,null,null,null,null,null,null,null,null,null,null,null,".",{"$f":"FareChart!B22","v":"Nahan"},null,null,null,null,null,null,null,null,null,null,null,null,null,null,null,null,null,null,null,null,null,null,null,null,null,null,null,null,null,null,null,null,null,null,null,null,null,null,null,null,null,null,null,null,null,null,null,null,null,null,null,null,null,null,null,null,null,null,null,null,null,null,null,null,null,null,null,null,null,null,null,null,null,null,null,null,null,null,null,null,null,null,null,null,null,null,null,null,null,"E",100,null,null,null,null,null,null,null,null,""]
["Monday",7,null,null,null,null,null,null,null,null,null,null,null,null,null,null,null,null,null,null,".",{"$f":"FareChart!B23","v":0},null,null,null,null,null,null,null,null,null,null,null,null,null,null,null,null,null,null,null,null,null,null,null,null,null,null,null,null,null,null,null,null,null,null,null,null,null,null,null,null,null,null,null,null,null,null,null,null,null,null,null,null,null,null,null,null,null,null,null,null,null,null,null,null,null,null,null,null,null,null,null,null,null,null,null,null,null,null,null,null,null,null,null,null,null,null,null,null,null,null,null,null,null,null,null,null,null,null,null,""]
["Tuesday",6,null,null,null,null,null,null,null,null,null,null,null,null,null,null,null,null,null,null,".",{"$f":"FareChart!B24","v":0},null,null,null,null,null,null,null,null,null,null,null,null,null,null,null,null,null,null,null,null,null,null,null,null,null,null,null,null,null,null,null,null,null,null,null,null,null,null,null,null,null,null,null,null,null,null,null,null,null,null,null,null,null,null,null,null,null,null,null,null,null,null,null,null,null,null,null,null,null,null,null,null,null,null,null,null,null,null,null,null,null,null,null,null,null,null,null,null,null,null,null,null,null,null,null,null,null,null,null,""]
["Wednesday",5,null,null,null,null,null,null,null,null,null,null,null,null,null,null,null,null,null,null,".",{"$f":"FareChart!B25","v":0},null,null,null,null,null,null,null,null,null,null,null,null,null,null,null,null,null,null,null,null,null,null,null,null,null,null,null,null,null,null,null,null,null,null,null,null,null,null,null,null,null,null,null,null,null,null,null,null,null,null,null,null,null,null,null,null,null,null,null,null,null,null,null,null,null,null,null,null,null,null,null,null,null,null,null,null,null,null,null,null,null,null,null,null,null,null,null,null,null,null,null,null,null,null,null,null,null,null,null,""]
["Thursday",4,null,null,null,null,null,null,null,null,null,null,null,null,null,null,null,null,null,null,".",{"$f":"FareChart!B26","v":0},null,null,null,null,null,null,null,null,null,null,null,null,null,null,null,null,null,null,null,null,null,null,null,null,null,null,null,null,null,null,null,null,null,null,null,null,null,null,null,null,null,null,null,null,null,null,null,null,null,null,null,null,null,null,null,null,null,null,null,null,null,null,null,null,null,null,null,null,null,null,null,null,null,null,null,null,null,null,null,null,null,null,null,null,null,null,null,null,null,null,null,null,null,null,null,null,null,null,null,""]
["Friday",3,null,null,null,null,null,null,null,null,null,null,null,null,null,null,null,null,null,null,".",{"$f":"FareChart!B27","v":0},null,null,null,null,null,null,null,null,null,null,null,null,null,null,null,null,null,null,null,null,null,null,null,null,null,null,null,null,null,null,null,null,null,null,null,null,null,null,null,null,null,null,null,null,null,null,null,null,null,null,null,null,null,null,null,null,null,null,null,null,null,null,null,null,null,null,null,null,null,null,null,null,null,null,null,null,null,null,null,null,null,null,null,null,null,null,null,null,null,null,null,null,null,null,null,null,null,null,null,""]
["Saturday",2,null,null,null,null,null,null,null,null,null,null,null,null,null,null,null,null,null,null,".",{"$f":"FareChart!B28","v":0},null,null,null,null,null,null,null,null,null,null,null,null,null,null,null,null,null,null,null,null,null,null,null,null,null,null,null,null,null,null,null,null,null,null,null,null,null,null,null,null,null,null,null,null,null,null,null,null,null,null,null,null,null,null,null,null,null,null,null,null,null,null,null,null,null,null,null,null,null,null,null,null,null,null,null,null,null,null,null,null,null,null,null,null,null,null,null,null,null,null,null,null,null,null,null,null,null,null,null,{"$f":"IFERROR(IF(DR67+1>$DS$1,\"\",DR67+1),\"\")","v":""}]
[null,null,null,null,null,null,null,null,null,null,null,null,null,null,null,null,null,null,null,null,null,null,null,null,null,null,null,null,null,null,null,null,null,null,null,null,null,null,null,null,null,null,null,null,null,null,null,null,null,null,null,null,null,null,null,null,null,null,null,null,null,null,null,null,null,null,null,null,null,null,null,null,null,null,null,null,null,null,null,null,null,null,null,null,null,null,null,null,null,null,null,null,null,null,null,null,null,null,null,null,null,null,null,null,null,null,null,null,null,null,null,null,null,null,null,null,null,null,null,null,null,""]
[null,null,null,null,null,null,null,null,null,null,null,null,null,null,null,null,null,null,null,null,null,null,null,null,null,null,null,null,null,null,null,null,null,null,null,null,null,null,null,null,null,null,null,null,null,null,null,null,null,null,null,null,null,null,null,null,null,null,null,null,null,null,null,null,null,null,null,null,null,null,null,null,null,null,null,null,null,null,null,null,null,null,null,null,null,null,null,null,null,null,null,null,null,null,null,null,null,null,null,null,null,null,null,null,null,null,null,null,null,null,null,null,null,null,null,null,null,null,null,null,null,""]
[null,null,null,null,null,null,null,null,null,null,null,null,null,null,null,null,null,null,null,null,null,null,null,null,null,null,null,null,null,null,null,null,null,null,null,null,null,null,null,null,null,null,null,null,null,null,null,null,null,null,null,null,null,null,null,null,null,null,null,null,null,null,null,null,null,null,null,null,null,null,null,null,null,null,null,null,null,null,null,null,null,null,null,null,null,null,null,null,null,null,null,null,null,null,null,null,null,null,null,null,null,null,null,null,null,null,null,null,null,null,null,null,null,null,null,null,null,null,null,null,null,""]
[null,null,null,null,null,null,null,null,null,null,null,null,null,null,null,null,null,null,null,null,null,null,null,null,null,null,null,null,null,null,null,null,null,null,null,null,null,null,null,null,null,null,null,null,null,null,null,null,null,null,null,null,null,null,null,null,null,null,null,null,null,null,null,null,null,null,null,null,null,null,null,null,null,null,null,null,null,null,null,null,null,null,null,null,null,null,null,null,null,null,null,null,null,null,null,null,null,null,null,null,null,null,null,null,null,null,null,null,null,null,null,null,null,null,null,null,null,null,null,null,null,""]
[null,null,null,null,null,null,null,null,null,null,null,null,null,null,null,null,null,null,null,null,null,null,null,null,null,null,null,null,null,null,null,null,null,null,null,null,null,null,null,null,null,null,null,null,null,null,null,null,null,null,null,null,null,null,null,null,null,null,null,null,null,null,null,null,null,null,null,null,null,null,null,null,null,null,null,null,null,null,null,null,null,null,null,null,null,null,null,null,null,null,null,null,null,null,null,null,null,null,null,null,null,null,null,null,null,null,null,null,null,null,null,null,null,null,null,null,null,null,null,null,null,""]
[null,null,null,null,null,null,null,null,null,null,null,null,null,null,null,null,null,null,null,null,null,null,null,null,null,null,null,null,null,null,null,null,null,null,null,null,null,null,null,null,null,null,null,null,null,null,null,null,null,null,null,null,null,null,null,null,null,null,null,null,null,null,null,null,null,null,null,null,null,null,null,null,null,null,null,null,null,null,null,null,null,null,null,null,null,null,null,null,null,null,null,null,null,null,null,null,null,null,null,null,null,null,null,null,null,null,null,null,null,null,null,null,null,null,null,null,null,null,null,null,null,""]
[null,null,null,null,null,null,null,null,null,null,null,null,null,null,null,null,null,null,null,null,null,null,null,null,null,null,null,null,null,null,null,null,null,null,null,null,null,null,null,null,null,null,null,null,null,null,null,null,null,null,null,null,null,null,null,null,null,null,null,null,null,null,null,null,null,null,null,null,null,null,null,null,null,null,null,null,null,null,null,null,null,null,null,null,null,null,null,null,null,null,null,null,null,null,null,null,null,null,null,null,null,null,null,null,null,null,null,null,null,null,null,null,null,null,null,null,null,null,null,null,null,""]
[null,null,null,null,null,null,null,null,null,null,null,null,null,null,null,null,null,null,null,null,null,null,null,null,null,null,null,null,null,null,null,null,null,null,null,null,null,null,null,null,null,null,null,null,null,null,null,null,null,null,null,null,null,null,null,null,null,null,null,null,null,null,null,null,null,null,null,null,null,null,null,null,null,null,null,null,null,null,null,null,null,null,null,null,null,null,null,null,null,null,null,null,null,null,null,null,null,null,null,null,null,null,null,null,null,null,null,null,null,null,null,null,null,null,null,null,null,null,null,null,null,""]
[null,null,null,null,null,null,null,null,null,null,null,null,null,null,null,null,null,null,null,null,null,null,null,null,null,null,null,null,null,null,null,null,null,null,null,null,null,null,null,null,null,null,null,null,null,null,null,null,null,null,null,null,null,null,null,null,null,null,null,null,null,null,null,null,null,null,null,null,null,null,null,null,null,null,null,null,null,null,null,null,null,null,null,null,null,null,null,null,null,null,null,null,null,null,null,null,null,null,null,null,null,null,null,null,null,null,null,null,null,null,null,null,null,null,null,null,null,null,null,null,null,""]
[null,null,null,null,null,null,null,null,null,null,null,null,null,null,null,null,null,null,null,null,null,null,null,null,null,null,null,null,null,null,null,null,null,null,null,null,null,null,null,null,null,null,null,null,null,null,null,null,null,null,null,null,null,null,null,null,null,null,null,null,null,null,null,null,null,null,null,null,null,null,null,null,null,null,null,null,null,null,null,null,null,null,null,null,null,null,null,null,null,null,null,null,null,null,null,null,null,null,null,null,null,null,null,null,null,null,null,null,null,null,null,null,null,null,null,null,null,null,null,null,null,""]
[null,null,null,null,null,null,null,null,null,null,null,null,null,null,null,null,null,null,null,null,null,null,null,null,null,null,null,null,null,null,null,null,null,null,null,null,null,null,null,null,null,null,null,null,null,null,null,null,null,null,null,null,null,null,null,null,null,null,null,null,null,null,null,null,null,null,null,null,null,null,null,null,null,null,null,null,null,null,null,null,null,null,null,null,null,null,null,null,null,null,null,null,null,null,null,null,null,null,null,null,null,null,null,null,null,null,null,null,null,null,null,null,null,null,null,null,null,null,null,null,null,""]
[null,null,null,null,null,null,null,null,null,null,null,null,null,null,null,null,null,null,null,null,null,null,null,null,null,null,null,null,null,null,null,null,null,null,null,null,null,null,null,null,null,null,null,null,null,null,null,null,null,null,null,null,null,null,null,null,null,null,null,null,null,null,null,null,null,null,null,null,null,null,null,null,null,null,null,null,null,null,null,null,null,null,null,null,null,null,null,null,null,null,null,null,null,null,null,null,null,null,null,null,null,null,null,null,null,null,null,null,null,null,null,null,null,null,null,null,null,null,null,null,null,""]
[null,null,null,null,null,null,null,null,null,null,null,null,null,null,null,null,null,null,null,null,null,null,null,null,null,null,null,null,null,null,null,null,null,null,null,null,null,null,null,null,null,null,null,null,null,null,null,null,null,null,null,null,null,null,null,null,null,null,null,null,null,null,null,null,null,null,null,null,null,null,null,null,null,null,null,null,null,null,null,null,null,null,null,null,null,null,null,null,null,null,null,null,null,null,null,null,null,null,null,null,null,null,null,null,null,null,null,null,null,null,null,null,null,null,null,null,null,null,null,null,null,""]
[null,null,null,null,null,null,null,null,null,null,null,null,null,null,null,null,null,null,null,null,null,null,null,null,null,null,null,null,null,null,null,null,null,null,null,null,null,null,null,null,null,null,null,null,null,null,null,null,null,null,null,null,null,null,null,null,null,null,null,null,null,null,null,null,null,null,null,null,null,null,null,null,null,null,null,null,null,null,null,null,null,null,null,null,null,null,null,null,null,null,null,null,null,null,null,null,null,null,null,null,null,null,null,null,null,null,null,null,null,null,null,null,null,null,null,null,null,null,null,null,null,""]
[null,null,null,null,null,null,null,null,null,null,null,null,null,null,null,null,null,null,null,null,null,null,null,null,null,null,null,null,null,null,null,null,null,null,null,null,null,null,null,null,null,null,null,null,null,null,null,null,null,null,null,null,null,null,null,null,null,null,null,null,null,null,null,null,null,null,null,null,null,null,null,null,null,null,null,null,null,null,null,null,null,null,null,null,null,null,null,null,null,null,null,null,null,null,null,null,null,null,null,null,null,null,null,null,null,null,null,null,null,null,null,null,null,null,null,null,null,null,null,null,null,""]
[null,null,null,null,null,null,null,null,null,null,null,null,null,null,null,null,null,null,null,null,null,null,null,null,null,null,null,null,null,null,null,null,null,null,null,null,null,null,null,null,null,null,null,null,null,null,null,null,null,null,null,null,null,null,null,null,null,null,null,null,null,null,null,null,null,null,null,null,null,null,null,null,null,null,null,null,null,null,null,null,null,null,null,null,null,null,null,null,null,null,null,null,null,null,null,null,null,null,null,null,null,null,null,null,null,null,null,null,null,null,null,null,null,null,null,null,null,null,null,null,null,""]
[null,null,null,null,null,null,null,null,null,null,null,null,null,null,null,null,null,null,null,null,null,null,null,null,null,null,null,null,null,null,null,null,null,null,null,null,null,null,null,null,null,null,null,null,null,null,null,null,null,null,null,null,null,null,null,null,null,null,null,null,null,null,null,null,null,null,null,null,null,null,null,null,null,null,null,null,null,null,null,null,null,null,null,null,null,null,null,null,null,null,null,null,null,null,null,null,null,null,null,null,null,null,null,null,null,null,null,null,null,null,null,null,null,null,null,null,null,null,null,null,null,""]
[null,null,null,null,null,null,null,null,null,null,null,null,null,null,null,null,null,null,null,null,null,null,null,null,null,null,null,null,null,null,null,null,null,null,null,null,null,null,null,null,null,null,null,null,null,null,null,null,null,null,null,null,null,null,null,null,null,null,null,null,null,null,null,null,null,null,null,null,null,null,null,null,null,null,null,null,null,null,null,null,null,null,null,null,null,null,null,null,null,null,null,null,null,null,null,null,null,null,null,null,null,null,null,null,null,null,null,null,null,null,null,null,null,null,null,null,null,null,null,null,null,""]
[null,null,null,null,null,null,null,null,null,null,null,null,null,null,null,null,null,null,null,null,null,null,null,null,null,null,null,null,null,null,null,null,null,null,null,null,null,null,null,null,null,null,null,null,null,null,null,null,null,null,null,null,null,null,null,null,null,null,null,null,null,null,null,null,null,null,null,null,null,null,null,null,null,null,null,null,null,null,null,null,null,null,null,null,null,null,null,null,null,null,null,null,null,null,null,null,null,null,null,null,null,null,null,null,null,null,null,null,null,null,null,null,null,null,null,null,null,null,null,null,null,""]
[null,null,null,null,null,null,null,null,null,null,null,null,null,null,null,null,null,null,null,null,null,null,null,null,null,null,null,null,null,null,null,null,null,null,null,null,null,null,null,null,null,null,null,null,null,null,null,null,null,null,null,null,null,null,null,null,null,null,null,null,null,null,null,null,null,null,null,null,null,null,null,null,null,null,null,null,null,null,null,null,null,null,null,null,null,null,null,null,null,null,null,null,null,null,null,null,null,null,null,null,null,null,null,null,null,null,null,null,null,null,null,null,null,null,null,null,null,null,null,null,null,""]
[null,null,null,null,null,null,null,null,null,null,null,null,null,null,null,null,null,null,null,null,null,null,null,null,null,null,null,null,null,null,null,null,null,null,null,null,null,null,null,null,null,null,null,null,null,null,null,null,null,null,null,null,null,null,null,null,null,null,null,null,null,null,null,null,null,null,null,null,null,null,null,null,null,null,null,null,null,null,null,null,null,null,null,null,null,null,null,null,null,null,null,null,null,null,null,null,null,null,null,null,null,null,null,null,null,null,null,null,null,null,null,null,null,null,null,null,null,null,null,null,null,""]
[null,null,null,null,null,null,null,null,null,null,null,null,null,null,null,null,null,null,null,null,null,null,null,null,null,null,null,null,null,null,null,null,null,null,null,null,null,null,null,null,null,null,null,null,null,null,null,null,null,null,null,null,null,null,null,null,null,null,null,null,null,null,null,null,null,null,null,null,null,null,null,null,null,null,null,null,null,null,null,null,null,null,null,null,null,null,null,null,null,null,null,null,null,null,null,null,null,null,null,null,null,null,null,null,null,null,null,null,null,null,null,null,null,null,null,null,null,null,null,null,null,""]
[null,null,null,null,null,null,null,null,null,null,null,null,null,null,null,null,null,null,null,null,null,null,null,null,null,null,null,null,null,null,null,null,null,null,null,null,null,null,null,null,null,null,null,null,null,null,null,null,null,null,null,null,null,null,null,null,null,null,null,null,null,null,null,null,null,null,null,null,null,null,null,null,null,null,null,null,null,null,null,null,null,null,null,null,null,null,null,null,null,null,null,null,null,null,null,null,null,null,null,null,null,null,null,null,null,null,null,null,null,null,null,null,null,null,null,null,null,null,null,null,null,""]
[null,null,null,null,null,null,null,null,null,null,null,null,null,null,null,null,null,null,null,null,null,null,null,null,null,null,null,null,null,null,null,null,null,null,null,null,null,null,null,null,null,null,null,null,null,null,null,null,null,null,null,null,null,null,null,null,null,null,null,null,null,null,null,null,null,null,null,null,null,null,null,null,null,null,null,null,null,null,null,null,null,null,null,null,null,null,null,null,null,null,null,null,null,null,null,null,null,null,null,null,null,null,null,null,null,null,null,null,null,null,null,null,null,null,null,null,null,null,null,null,null,""]
[null,null,null,null,null,null,null,null,null,null,null,null,null,null,null,null,null,null,null,null,null,null,null,null,null,null,null,null,null,null,null,null,null,null,null,null,null,null,null,null,null,null,null,null,null,null,null,null,null,null,null,null,null,null,null,null,null,null,null,null,null,null,null,null,null,null,null,null,null,null,null,null,null,null,null,null,null,null,null,null,null,null,null,null,null,null,null,null,null,null,null,null,null,null,null,null,null,null,null,null,null,null,null,null,null,null,null,null,null,null,null,null,null,null,null,null,null,null,null,null,null,""]
[null,null,null,null,null,null,null,null,null,null,null,null,null,null,null,null,null,null,null,null,null,null,null,null,null,null,null,null,null,null,null,null,null,null,null,null,null,null,null,null,null,null,null,null,null,null,null,null,null,null,null,null,null,null,null,null,null,null,null,null,null,null,null,null,null,null,null,null,null,null,null,null,null,null,null,null,null,null,null,null,null,null,null,null,null,null,null,null,null,null,null,null,null,null,null,null,null,null,null,null,null,null,null,null,null,null,null,null,null,null,null,null,null,null,null,null,null,null,null,null,null,""]
[null,null,null,null,null,null,null,null,null,null,null,null,null,null,null,null,null,null,null,null,null,null,null,null,null,null,null,null,null,null,null,null,null,null,null,null,null,null,null,null,null,null,null,null,null,null,null,null,null,null,null,null,null,null,null,null,null,null,null,null,null,null,null,null,null,null,null,null,null,null,null,null,null,null,null,null,null,null,null,null,null,null,null,null,null,null,null,null,null,null,null,null,null,null,null,null,null,null,null,null,null,null,null,null,null,null,null,null,null,null,null,null,null,null,null,null,null,null,null,null,null,""]
[null,null,null,null,null,null,null,null,null,null,null,null,null,null,null,null,null,null,null,null,null,null,null,null,null,null,null,null,null,null,null,null,null,null,null,null,null,null,null,null,null,null,null,null,null,null,null,null,null,null,null,null,null,null,null,null,null,null,null,null,null,null,null,null,null,null,null,null,null,null,null,null,null,null,null,null,null,null,null,null,null,null,null,null,null,null,null,null,null,null,null,null,null,null,null,null,null,null,null,null,null,null,null,null,null,null,null,null,null,null,null,null,null,null,null,null,null,null,null,null,null,""]
[null,null,null,null,null,null,null,null,null,null,null,null,null,null,null,null,null,null,null,null,null,null,null,null,null,null,null,null,null,null,null,null,null,null,null,null,null,null,null,null,null,null,null,null,null,null,null,null,null,null,null,null,null,null,null,null,null,null,null,null,null,null,null,null,null,null,null,null,null,null,null,null,null,null,null,null,null,null,null,null,null,null,null,null,null,null,null,null,null,null,null,null,null,null,null,null,null,null,null,null,null,null,null,null,null,null,null,null,null,null,null,null,null,null,null,null,null,null,null,null,null,""]
[null,null,null,null,null,null,null,null,null,null,null,null,null,null,null,null,null,null,null,null,null,null,null,null,null,null,null,null,null,null,null,null,null,null,null,null,null,null,null,null,null,null,null,null,null,null,null,null,null,null,null,null,null,null,null,null,null,null,null,null,null,null,null,null,null,null,null,null,null,null,null,null,null,null,null,null,null,null,null,null,null,null,null,null,null,null,null,null,null,null,null,null,null,null,null,null,null,null,null,null,null,null,null,null,null,null,null,null,null,null,null,null,null,null,null,null,null,null,null,null,null,""]
[null,null,null,null,null,null,null,null,null,null,null,null,null,null,null,null,null,null,null,null,null,null,null,null,null,null,null,null,null,null,null,null,null,null,null,null,null,null,null,null,null,null,null,null,null,null,null,null,null,null,null,null,null,null,null,null,null,null,null,null,null,null,null,null,null,null,null,null,null,null,null,null,null,null,null,null,null,null,null,null,null,null,null,null,null,null,null,null,null,null,null,null,null,null,null,null,null,null,null,null,null,null,null,null,null,null,null,null,null,null,null,null,null,null,null,null,null,null,null,null,null,""]
[null,null,null,null,null,null,null,null,null,null,null,null,null,null,null,null,null,null,null,null,null,null,null,null,null,null,null,null,null,null,null,null,null,null,null,null,null,null,null,null,null,null,null,null,null,null,null,null,null,null,null,null,null,null,null,null,null,null,null,null,null,null,null,null,null,null,null,null,null,null,null,null,null,null,null,null,null,null,null,null,null,null,null,null,null,null,null,null,null,null,null,null,null,null,null,null,null,null,null,null,null,null,null,null,null,null,null,null,null,null,null,null,null,null,null,null,null,null,null,null,null,""]
[null,null,null,null,null,null,null,null,null,null,null,null,null,null,null,null,null,null,null,null,null,null,null,null,null,null,null,null,null,null,null,null,null,null,null,null,null,null,null,null,null,null,null,null,null,null,null,null,null,null,null,null,null,null,null,null,null,null,null,null,null,null,null,null,null,null,null,null,null,null,null,null,null,null,null,null,null,null,null,null,null,null,null,null,null,null,null,null,null,null,null,null,null,null,null,null,null,null,null,null,null,null,null,null,null,null,null,null,null,null,null,null,null,null,null,null,null,null,null,null,null,""]
[null,null,null,null,null,null,null,null,null,null,null,null,null,null,null,null,null,null,null,null,null,null,null,null,null,null,null,null,null,null,null,null,null,null,null,null,null,null,null,null,null,null,null,null,null,null,null,null,null,null,null,null,null,null,null,null,null,null,null,null,null,null,null,null,null,null,null,null,null,null,null,null,null,null,null,null,null,null,null,null,null,null,null,null,null,null,null,null,null,null,null,null,null,null,null,null,null,null,null,null,null,null,null,null,null,null,null,null,null,null,null,null,null,null,null,null,null,null,null,null,null,""]
[null,null,null,null,null,null,null,null,null,null,null,null,null,null,null,null,null,null,null,null,null,null,null,null,null,null,null,null,null,null,null,null,null,null,null,null,null,null,null,null,null,null,null,null,null,null,null,null,null,null,null,null,null,null,null,null,null,null,null,null,null,null,null,null,null,null,null,null,null,null,null,null,null,null,null,null,null,null,null,null,null,null,null,null,null,null,null,null,null,null,null,null,null,null,null,null,null,null,null,null,null,null,null,null,null,null,null,null,null,null,null,null,null,null,null,null,null,null,null,null,null,""]
[null,null,null,null,null,null,null,null,null,null,null,null,null,null,null,null,null,null,null,null,null,null,null,null,null,null,null,null,null,null,null,null,null,null,null,null,null,null,null,null,null,null,null,null,null,null,null,null,null,null,null,null,null,null,null,null,null,null,null,null,null,null,null,null,null,null,null,null,null,null,null,null,null,null,null,null,null,null,null,null,null,null,null,null,null,null,null,null,null,null,null,null,null,null,null,null,null,null,null,null,null,null,null,null,null,null,null,null,null,null,null,null,null,null,null,null,null,null,null,null,null,""]
[null,null,null,null,null,null,null,null,null,null,null,null,null,null,null,null,null,null,null,null,null,null,null,null,null,null,null,null,null,null,null,null,null,null,null,null,null,null,null,null,null,null,null,null,null,null,null,null,null,null,null,null,null,null,null,null,null,null,null,null,null,null,null,null,null,null,null,null,null,null,null,null,null,null,null,null,null,null,null,null,null,null,null,null,null,null,null,null,null,null,null,null,null,null,null,null,null,null,null,null,null,null,null,null,null,null,null,null,null,null,null,null,null,null,null,null,null,null,null,null,null,""]
[null,null,null,null,null,null,null,null,null,null,null,null,null,null,null,null,null,null,null,null,null,null,null,null,null,null,null,null,null,null,null,null,null,null,null,null,null,null,null,null,null,null,null,null,null,null,null,null,null,null,null,null,null,null,null,null,null,null,null,null,null,null,null,null,null,null,null,null,null,null,null,null,null,null,null,null,null,null,null,null,null,null,null,null,null,null,null,null,null,null,null,null,null,null,null,null,null,null,null,null,null,null,null,null,null,null,null,null,null,null,null,null,null,null,null,null,null,null,null,null,null,""]
[null,null,null,null,null,null,null,null,null,null,null,null,null,null,null,null,null,null,null,null,null,null,null,null,null,null,null,null,null,null,null,null,null,null,null,null,null,null,null,null,null,null,null,null,null,null,null,null,null,null,null,null,null,null,null,null,null,null,null,null,null,null,null,null,null,null,null,null,null,null,null,null,null,null,null,null,null,null,null,null,null,null,null,null,null,null,null,null,null,null,null,null,null,null,null,null,null,null,null,null,null,null,null,null,null,null,null,null,null,null,null,null,null,null,null,null,null,null,null,null,null,""]
[null,null,null,null,null,null,null,null,null,null,null,null,null,null,null,null,null,null,null,null,null,null,null,null,null,null,null,null,null,null,null,null,null,null,null,null,null,null,null,null,null,null,null,null,null,null,null,null,null,null,null,null,null,null,null,null,null,null,null,null,null,null,null,null,null,null,null,null,null,null,null,null,null,null,null,null,null,null,null,null,null,null,null,null,null,null,null,null,null,null,null,null,null,null,null,null,null,null,null,null,null,null,null,null,null,null,null,null,null,null,null,null,null,null,null,null,null,null,null,null,null,""]
[null,null,null,null,null,null,null,null,null,null,null,null,null,null,null,null,null,null,null,null,null,null,null,null,null,null,null,null,null,null,null,null,null,null,null,null,null,null,null,null,null,null,null,null,null,null,null,null,null,null,null,null,null,null,null,null,null,null,null,null,null,null,null,null,null,null,null,null,null,null,null,null,null,null,null,null,null,null,null,null,null,null,null,null,null,null,null,null,null,null,null,null,null,null,null,null,null,null,null,null,null,null,null,null,null,null,null,null,null,null,null,null,null,null,null,null,null,null,null,null,null,""]
[null,null,null,null,null,null,null,null,null,null,null,null,null,null,null,null,null,null,null,null,null,null,null,null,null,null,null,null,null,null,null,null,null,null,null,null,null,null,null,null,null,null,null,null,null,null,null,null,null,null,null,null,null,null,null,null,null,null,null,null,null,null,null,null,null,null,null,null,null,null,null,null,null,null,null,null,null,null,null,null,null,null,null,null,null,null,null,null,null,null,null,null,null,null,null,null,null,null,null,null,null,null,null,null,null,null,null,null,null,null,null,null,null,null,null,null,null,null,null,null,null,""]
[null,null,null,null,null,null,null,null,null,null,null,null,null,null,null,null,null,null,null,null,null,null,null,null,null,null,null,null,null,null,null,null,null,null,null,null,null,null,null,null,null,null,null,null,null,null,null,null,null,null,null,null,null,null,null,null,null,null,null,null,null,null,null,null,null,null,null,null,null,null,null,null,null,null,null,null,null,null,null,null,null,null,null,null,null,null,null,null,null,null,null,null,null,null,null,null,null,null,null,null,null,null,null,null,null,null,null,null,null,null,null,null,null,null,null,null,null,null,null,null,null,""]
[null,null,null,null,null,null,null,null,null,null,null,null,null,null,null,null,null,null,null,null,null,null,null,null,null,null,null,null,null,null,null,null,null,null,null,null,null,null,null,null,null,null,null,null,null,null,null,null,null,null,null,null,null,null,null,null,null,null,null,null,null,null,null,null,null,null,null,null,null,null,null,null,null,null,null,null,null,null,null,null,null,null,null,null,null,null,null,null,null,null,null,null,null,null,null,null,null,null,null,null,null,null,null,null,null,null,null,null,null,null,null,null,null,null,null,null,null,null,null,null,null,""]
[null,null,null,null,null,null,null,null,null,null,null,null,null,null,null,null,null,null,null,null,null,null,null,null,null,null,null,null,null,null,null,null,null,null,null,null,null,null,null,null,null,null,null,null,null,null,null,null,null,null,null,null,null,null,null,null,null,null,null,null,null,null,null,null,null,null,null,null,null,null,null,null,null,null,null,null,null,null,null,null,null,null,null,null,null,null,null,null,null,null,null,null,null,null,null,null,null,null,null,null,null,null,null,null,null,null,null,null,null,null,null,null,null,null,null,null,null,null,null,null,null,""]
[null,null,null,null,null,null,null,null,null,null,null,null,null,null,null,null,null,null,null,null,null,null,null,null,null,null,null,null,null,null,null,null,null,null,null,null,null,null,null,null,null,null,null,null,null,null,null,null,null,null,null,null,null,null,null,null,null,null,null,null,null,null,null,null,null,null,null,null,null,null,null,null,null,null,null,null,null,null,null,null,null,null,null,null,null,null,null,null,null,null,null,null,null,null,null,null,null,null,null,null,null,null,null,null,null,null,null,null,null,null,null,null,null,null,null,null,null,null,null,null,null,""]
[null,null,null,null,null,null,null,null,null,null,null,null,null,null,null,null,null,null,null,null,null,null,null,null,null,null,null,null,null,null,null,null,null,null,null,null,null,null,null,null,null,null,null,null,null,null,null,null,null,null,null,null,null,null,null,null,null,null,null,null,null,null,null,null,null,null,null,null,null,null,null,null,null,null,null,null,null,null,null,null,null,null,null,null,null,null,null,null,null,null,null,null,null,null,null,null,null,null,null,null,null,null,null,null,null,null,null,null,null,null,null,null,null,null,null,null,null,null,null,null,null,""]
[null,null,null,null,null,null,null,null,null,null,null,null,null,null,null,null,null,null,null,null,null,null,null,null,null,null,null,null,null,null,null,null,null,null,null,null,null,null,null,null,null,null,null,null,null,null,null,null,null,null,null,null,null,null,null,null,null,null,null,null,null,null,null,null,null,null,null,null,null,null,null,null,null,null,null,null,null,null,null,null,null,null,null,null,null,null,null,null,null,null,null,null,null,null,null,null,null,null,null,null,null,null,null,null,null,null,null,null,null,null,null,null,null,null,null,null,null,null,null,null,null,""]
[null,null,null,null,null,null,null,null,null,null,null,null,null,null,null,null,null,null,null,null,null,null,null,null,null,null,null,null,null,null,null,null,null,null,null,null,null,null,null,null,null,null,null,null,null,null,null,null,null,null,null,null,null,null,null,null,null,null,null,null,null,null,null,null,null,null,null,null,null,null,null,null,null,null,null,null,null,null,null,null,null,null,null,null,null,null,null,null,null,null,null,null,null,null,null,null,null,null,null,null,null,null,null,null,null,null,null,null,null,null,null,null,null,null,null,null,null,null,null,null,null,""]
[null,null,null,null,null,null,null,null,null,null,null,null,null,null,null,null,null,null,null,null,null,null,null,null,null,null,null,null,null,null,null,null,null,null,null,null,null,null,null,null,null,null,null,null,null,null,null,null,null,null,null,null,null,null,null,null,null,null,null,null,null,null,null,null,null,null,null,null,null,null,null,null,null,null,null,null,null,null,null,null,null,null,null,null,null,null,null,null,null,null,null,null,null,null,null,null,null,null,null,null,null,null,null,null,null,null,null,null,null,null,null,null,null,null,null,null,null,null,null,null,null,""]
[null,null,null,null,null,null,null,null,null,null,null,null,null,null,null,null,null,null,null,null,null,null,null,null,null,null,null,null,null,null,null,null,null,null,null,null,null,null,null,null,null,null,null,null,null,null,null,null,null,null,null,null,null,null,null,null,null,null,null,null,null,null,null,null,null,null,null,null,null,null,null,null,null,null,null,null,null,null,null,null,null,null,null,null,null,null,null,null,null,null,null,null,null,null,null,null,null,null,null,null,null,null,null,null,null,null,null,null,null,null,null,null,null,null,null,null,null,null,null,null,null,""]
[null,null,null,null,null,null,null,null,null,null,null,null,null,null,null,null,null,null,null,null,null,null,null,null,null,null,null,null,null,null,null,null,null,null,null,null,null,null,null,null,null,null,null,null,null,null,null,null,null,null,null,null,null,null,null,null,null,null,null,null,null,null,null,null,null,null,null,null,null,null,null,null,null,null,null,null,null,null,null,null,null,null,null,null,null,null,null,null,null,null,null,null,null,null,null,null,null,null,null,null,null,null,null,null,null,null,null,null,null,null,null,null,null,null,null,null,null,null,null,null,null,""]
[null,null,null,null,null,null,null,null,null,null,null,null,null,null,null,null,null,null,null,null,null,null,null,null,null,null,null,null,null,null,null,null,null,null,null,null,null,null,null,null,null,null,null,null,null,null,null,null,null,null,null,null,null,null,null,null,null,null,null,null,null,null,null,null,null,null,null,null,null,null,null,null,null,null,null,null,null,null,null,null,null,null,null,null,null,null,null,null,null,null,null,null,null,null,null,null,null,null,null,null,null,null,null,null,null,null,null,null,null,null,null,null,null,null,null,null,null,null,null,null,null,""]
[null,null,null,null,null,null,null,null,null,null,null,null,null,null,null,null,null,null,null,null,null,null,null,null,null,null,null,null,null,null,null,null,null,null,null,null,null,null,null,null,null,null,null,null,null,null,null,null,null,null,null,null,null,null,null,null,null,null,null,null,null,null,null,null,null,null,null,null,null,null,null,null,null,null,null,null,null,null,null,null,null,null,null,null,null,null,null,null,null,null,null,null,null,null,null,null,null,null,null,null,null,null,null,null,null,null,null,null,null,null,null,null,null,null,null,null,null,null,null,null,null,""]
[null,null,null,null,null,null,null,null,null,null,null,null,null,null,null,null,null,null,null,null,null,null,null,null,null,null,null,null,null,null,null,null,null,null,null,null,null,null,null,null,null,null,null,null,null,null,null,null,null,null,null,null,null,null,null,null,null,null,null,null,null,null,null,null,null,null,null,null,null,null,null,null,null,null,null,null,null,null,null,null,null,null,null,null,null,null,null,null,null,null,null,null,null,null,null,null,null,null,null,null,null,null,null,null,null,null,null,null,null,null,null,null,null,null,null,null,null,null,null,null,null,""]
[null,null,null,null,null,null,null,null,null,null,null,null,null,null,null,null,null,null,null,null,null,null,null,null,null,null,null,null,null,null,null,null,null,null,null,null,null,null,null,null,null,null,null,null,null,null,null,null,null,null,null,null,null,null,null,null,null,null,null,null,null,null,null,null,null,null,null,null,null,null,null,null,null,null,null,null,null,null,null,null,null,null,null,null,null,null,null,null,null,null,null,null,null,null,null,null,null,null,null,null,null,null,null,null,null,null,null,null,null,null,null,null,null,null,null,null,null,null,null,null,null,""]
[null,null,null,null,null,null,null,null,null,null,null,null,null,null,null,null,null,null,null,null,null,null,null,null,null,null,null,null,null,null,null,null,null,null,null,null,null,null,null,null,null,null,null,null,null,null,null,null,null,null,null,null,null,null,null,null,null,null,null,null,null,null,null,null,null,null,null,null,null,null,null,null,null,null,null,null,null,null,null,null,null,null,null,null,null,null,null,null,null,null,null,null,null,null,null,null,null,null,null,null,null,null,null,null,null,null,null,null,null,null,null,null,null,null,null,null,null,null,null,null,null,""]
[null,null,null,null,null,null,null,null,null,null,null,null,null,null,null,null,null,null,null,null,null,null,null,null,null,null,null,null,null,null,null,null,null,null,null,null,null,null,null,null,null,null,null,null,null,null,null,null,null,null,null,null,null,null,null,null,null,null,null,null,null,null,null,null,null,null,null,null,null,null,null,null,null,null,null,null,null,null,null,null,null,null,null,null,null,null,null,null,null,null,null,null,null,null,null,null,null,null,null,null,null,null,null,null,null,null,null,null,null,null,null,null,null,null,null,null,null,null,null,null,null,""]
[null,null,null,null,null,null,null,null,null,null,null,null,null,null,null,null,null,null,null,null,null,null,null,null,null,null,null,null,null,null,null,null,null,null,null,null,null,null,null,null,null,null,null,null,null,null,null,null,null,null,null,null,null,null,null,null,null,null,null,null,null,null,null,null,null,null,null,null,null,null,null,null,null,null,null,null,null,null,null,null,null,null,null,null,null,null,null,null,null,null,null,null,null,null,null,null,null,null,null,null,null,null,null,null,null,null,null,null,null,null,null,null,null,null,null,null,null,null,null,null,null,""]
[null,null,null,null,null,null,null,null,null,null,null,null,null,null,null,null,null,null,null,null,null,null,null,null,null,null,null,null,null,null,null,null,null,null,null,null,null,null,null,null,null,null,null,null,null,null,null,null,null,null,null,null,null,null,null,null,null,null,null,null,null,null,null,null,null,null,null,null,null,null,null,null,null,null,null,null,null,null,null,null,null,null,null,null,null,null,null,null,null,null,null,null,null,null,null,null,null,null,null,null,null,null,null,null,null,null,null,null,null,null,null,null,null,null,null,null,null,null,null,null,null,""]
[null,null,null,null,null,null,null,null,null,null,null,null,null,null,null,null,null,null,null,null,null,null,null,null,null,null,null,null,null,null,null,null,null,null,null,null,null,null,null,null,null,null,null,null,null,null,null,null,null,null,null,null,null,null,null,null,null,null,null,null,null,null,null,null,null,null,null,null,null,null,null,null,null,null,null,null,null,null,null,null,null,null,null,null,null,null,null,null,null,null,null,null,null,null,null,null,null,null,null,null,null,null,null,null,null,null,null,null,null,null,null,null,null,null,null,null,null,null,null,null,null,""]
[null,null,null,null,null,null,null,null,null,null,null,null,null,null,null,null,null,null,null,null,null,null,null,null,null,null,null,null,null,null,null,null,null,null,null,null,null,null,null,null,null,null,null,null,null,null,null,null,null,null,null,null,null,null,null,null,null,null,null,null,null,null,null,null,null,null,null,null,null,null,null,null,null,null,null,null,null,null,null,null,null,null,null,null,null,null,null,null,null,null,null,null,null,null,null,null,null,null,null,null,null,null,null,null,null,null,null,null,null,null,null,null,null,null,null,null,null,null,null,null,null,""]
[null,null,null,null,null,null,null,null,null,null,null,null,null,null,null,null,null,null,null,null,null,null,null,null,null,null,null,null,null,null,null,null,null,null,null,null,null,null,null,null,null,null,null,null,null,null,null,null,null,null,null,null,null,null,null,null,null,null,null,null,null,null,null,null,null,null,null,null,null,null,null,null,null,null,null,null,null,null,null,null,null,null,null,null,null,null,null,null,null,null,null,null,null,null,null,null,null,null,null,null,null,null,null,null,null,null,null,null,null,null,null,null,null,null,null,null,null,null,null,null,null,""]
[null,null,null,null,null,null,null,null,null,null,null,null,null,null,null,null,null,null,null,null,null,null,null,null,null,null,null,null,null,null,null,null,null,null,null,null,null,null,null,null,null,null,null,null,null,null,null,null,null,null,null,null,null,null,null,null,null,null,null,null,null,null,null,null,null,null,null,null,null,null,null,null,null,null,null,null,null,null,null,null,null,null,null,null,null,null,null,null,null,null,null,null,null,null,null,null,null,null,null,null,null,null,null,null,null,null,null,null,null,null,null,null,null,null,null,null,null,null,null,null,null,{"$f":"IFERROR(IF(DR131+1>$DS$1,\"\",DR131+1),\"\")","v":""}]
[null,null,null,null,null,null,null,null,null,null,null,null,null,null,null,null,null,null,null,null,null,null,null,null,null,null,null,null,null,null,null,null,null,null,null,null,null,null,null,null,null,null,null,null,null,null,null,null,null,null,null,null,null,null,null,null,null,null,null,null,null,null,null,null,null,null,null,null,null,null,null,null,null,null,null,null,null,null,null,null,null,null,null,null,null,null,null,null,null,null,null,null,null,null,null,null,null,null,null,null,null,null,null,null,null,null,null,null,null,null,null,null,null,null,null,null,null,null,null,null,null,""]
[null,null,null,null,null,null,null,null,null,null,null,null,null,null,null,null,null,null,null,null,null,null,null,null,null,null,null,null,null,null,null,null,null,null,null,null,null,null,null,null,null,null,null,null,null,null,null,null,null,null,null,null,null,null,null,null,null,null,null,null,null,null,null,null,null,null,null,null,null,null,null,null,null,null,null,null,null,null,null,null,null,null,null,null,null,null,null,null,null,null,null,null,null,null,null,null,null,null,null,null,null,null,null,null,null,null,null,null,null,null,null,null,null,null,null,null,null,null,null,null,null,""]
[null,null,null,null,null,null,null,null,null,null,null,null,null,null,null,null,null,null,null,null,null,null,null,null,null,null,null,null,null,null,null,null,null,null,null,null,null,null,null,null,null,null,null,null,null,null,null,null,null,null,null,null,null,null,null,null,null,null,null,null,null,null,null,null,null,null,null,null,null,null,null,null,null,null,null,null,null,null,null,null,null,null,null,null,null,null,null,null,null,null,null,null,null,null,null,null,null,null,null,null,null,null,null,null,null,null,null,null,null,null,null,null,null,null,null,null,null,null,null,null,null,""]
[null,null,null,null,null,null,null,null,null,null,null,null,null,null,null,null,null,null,null,null,null,null,null,null,null,null,null,null,null,null,null,null,null,null,null,null,null,null,null,null,null,null,null,null,null,null,null,null,null,null,null,null,null,null,null,null,null,null,null,null,null,null,null,null,null,null,null,null,null,null,null,null,null,null,null,null,null,null,null,null,null,null,null,null,null,null,null,null,null,null,null,null,null,null,null,null,null,null,null,null,null,null,null,null,null,null,null,null,null,null,null,null,null,null,null,null,null,null,null,null,null,""]
[null,null,null,null,null,null,null,null,null,null,null,null,null,null,null,null,null,null,null,null,null,null,null,null,null,null,null,null,null,null,null,null,null,null,null,null,null,null,null,null,null,null,null,null,null,null,null,null,null,null,null,null,null,null,null,null,null,null,null,null,null,null,null,null,null,null,null,null,null,null,null,null,null,null,null,null,null,null,null,null,null,null,null,null,null,null,null,null,null,null,null,null,null,null,null,null,null,null,null,null,null,null,null,null,null,null,null,null,null,null,null,null,null,null,null,null,null,null,null,null,null,""]
[null,null,null,null,null,null,null,null,null,null,null,null,null,null,null,null,null,null,null,null,null,null,null,null,null,null,null,null,null,null,null,null,null,null,null,null,null,null,null,null,null,null,null,null,null,null,null,null,null,null,null,null,null,null,null,null,null,null,null,null,null,null,null,null,null,null,null,null,null,null,null,null,null,null,null,null,null,null,null,null,null,null,null,null,null,null,null,null,null,null,null,null,null,null,null,null,null,null,null,null,null,null,null,null,null,null,null,null,null,null,null,null,null,null,null,null,null,null,null,null,null,""]
[null,null,null,null,null,null,null,null,null,null,null,null,null,null,null,null,null,null,null,null,null,null,null,null,null,null,null,null,null,null,null,null,null,null,null,null,null,null,null,null,null,null,null,null,null,null,null,null,null,null,null,null,null,null,null,null,null,null,null,null,null,null,null,null,null,null,null,null,null,null,null,null,null,null,null,null,null,null,null,null,null,null,null,null,null,null,null,null,null,null,null,null,null,null,null,null,null,null,null,null,null,null,null,null,null,null,null,null,null,null,null,null,null,null,null,null,null,null,null,null,null,""]
[null,null,null,null,null,null,null,null,null,null,null,null,null,null,null,null,null,null,null,null,null,null,null,null,null,null,null,null,null,null,null,null,null,null,null,null,null,null,null,null,null,null,null,null,null,null,null,null,null,null,null,null,null,null,null,null,null,null,null,null,null,null,null,null,null,null,null,null,null,null,null,null,null,null,null,null,null,null,null,null,null,null,null,null,null,null,null,null,null,null,null,null,null,null,null,null,null,null,null,null,null,null,null,null,null,null,null,null,null,null,null,null,null,null,null,null,null,null,null,null,null,""]
[null,null,null,null,null,null,null,null,null,null,null,null,null,null,null,null,null,null,null,null,null,null,null,null,null,null,null,null,null,null,null,null,null,null,null,null,null,null,null,null,null,null,null,null,null,null,null,null,null,null,null,null,null,null,null,null,null,null,null,null,null,null,null,null,null,null,null,null,null,null,null,null,null,null,null,null,null,null,null,null,null,null,null,null,null,null,null,null,null,null,null,null,null,null,null,null,null,null,null,null,null,null,null,null,null,null,null,null,null,null,null,null,null,null,null,null,null,null,null,null,null,""]
[null,null,null,null,null,null,null,null,null,null,null,null,null,null,null,null,null,null,null,null,null,null,null,null,null,null,null,null,null,null,null,null,null,null,null,null,null,null,null,null,null,null,null,null,null,null,null,null,null,null,null,null,null,null,null,null,null,null,null,null,null,null,null,null,null,null,null,null,null,null,null,null,null,null,null,null,null,null,null,null,null,null,null,null,null,null,null,null,null,null,null,null,null,null,null,null,null,null,null,null,null,null,null,null,null,null,null,null,null,null,null,null,null,null,null,null,null,null,null,null,null,""]
[null,null,null,null,null,null,null,null,null,null,null,null,null,null,null,null,null,null,null,null,null,null,null,null,null,null,null,null,null,null,null,null,null,null,null,null,null,null,null,null,null,null,null,null,null,null,null,null,null,null,null,null,null,null,null,null,null,null,null,null,null,null,null,null,null,null,null,null,null,null,null,null,null,null,null,null,null,null,null,null,null,null,null,null,null,null,null,null,null,null,null,null,null,null,null,null,null,null,null,null,null,null,null,null,null,null,null,null,null,null,null,null,null,null,null,null,null,null,null,null,null,""]
[null,null,null,null,null,null,null,null,null,null,null,null,null,null,null,null,null,null,null,null,null,null,null,null,null,null,null,null,null,null,null,null,null,null,null,null,null,null,null,null,null,null,null,null,null,null,null,null,null,null,null,null,null,null,null,null,null,null,null,null,null,null,null,null,null,null,null,null,null,null,null,null,null,null,null,null,null,null,null,null,null,null,null,null,null,null,null,null,null,null,null,null,null,null,null,null,null,null,null,null,null,null,null,null,null,null,null,null,null,null,null,null,null,null,null,null,null,null,null,null,null,""]
[null,null,null,null,null,null,null,null,null,null,null,null,null,null,null,null,null,null,null,null,null,null,null,null,null,null,null,null,null,null,null,null,null,null,null,null,null,null,null,null,null,null,null,null,null,null,null,null,null,null,null,null,null,null,null,null,null,null,null,null,null,null,null,null,null,null,null,null,null,null,null,null,null,null,null,null,null,null,null,null,null,null,null,null,null,null,null,null,null,null,null,null,null,null,null,null,null,null,null,null,null,null,null,null,null,null,null,null,null,null,null,null,null,null,null,null,null,null,null,null,null,""]
[null,null,null,null,null,null,null,null,null,null,null,null,null,null,null,null,null,null,null,null,null,null,null,null,null,null,null,null,null,null,null,null,null,null,null,null,null,null,null,null,null,null,null,null,null,null,null,null,null,null,null,null,null,null,null,null,null,null,null,null,null,null,null,null,null,null,null,null,null,null,null,null,null,null,null,null,null,null,null,null,null,null,null,null,null,null,null,null,null,null,null,null,null,null,null,null,null,null,null,null,null,null,null,null,null,null,null,null,null,null,null,null,null,null,null,null,null,null,null,null,null,""]
[null,null,null,null,null,null,null,null,null,null,null,null,null,null,null,null,null,null,null,null,null,null,null,null,null,null,null,null,null,null,null,null,null,null,null,null,null,null,null,null,null,null,null,null,null,null,null,null,null,null,null,null,null,null,null,null,null,null,null,null,null,null,null,null,null,null,null,null,null,null,null,null,null,null,null,null,null,null,null,null,null,null,null,null,null,null,null,null,null,null,null,null,null,null,null,null,null,null,null,null,null,null,null,null,null,null,null,null,null,null,null,null,null,null,null,null,null,null,null,null,null,""]
[null,null,null,null,null,null,null,null,null,null,null,null,null,null,null,null,null,null,null,null,null,null,null,null,null,null,null,null,null,null,null,null,null,null,null,null,null,null,null,null,null,null,null,null,null,null,null,null,null,null,null,null,null,null,null,null,null,null,null,null,null,null,null,null,null,null,null,null,null,null,null,null,null,null,null,null,null,null,null,null,null,null,null,null,null,null,null,null,null,null,null,null,null,null,null,null,null,null,null,null,null,null,null,null,null,null,null,null,null,null,null,null,null,null,null,null,null,null,null,null,null,""]
[null,null,null,null,null,null,null,null,null,null,null,null,null,null,null,null,null,null,null,null,null,null,null,null,null,null,null,null,null,null,null,null,null,null,null,null,null,null,null,null,null,null,null,null,null,null,null,null,null,null,null,null,null,null,null,null,null,null,null,null,null,null,null,null,null,null,null,null,null,null,null,null,null,null,null,null,null,null,null,null,null,null,null,null,null,null,null,null,null,null,null,null,null,null,null,null,null,null,null,null,null,null,null,null,null,null,null,null,null,null,null,null,null,null,null,null,null,null,null,null,null,""]
[null,null,null,null,null,null,null,null,null,null,null,null,null,null,null,null,null,null,null,null,null,null,null,null,null,null,null,null,null,null,null,null,null,null,null,null,null,null,null,null,null,null,null,null,null,null,null,null,null,null,null,null,null,null,null,null,null,null,null,null,null,null,null,null,null,null,null,null,null,null,null,null,null,null,null,null,null,null,null,null,null,null,null,null,null,null,null,null,null,null,null,null,null,null,null,null,null,null,null,null,null,null,null,null,null,null,null,null,null,null,null,null,null,null,null,null,null,null,null,null,null,""]
[null,null,null,null,null,null,null,null,null,null,null,null,null,null,null,null,null,null,null,null,null,null,null,null,null,null,null,null,null,null,null,null,null,null,null,null,null,null,null,null,null,null,null,null,null,null,null,null,null,null,null,null,null,null,null,null,null,null,null,null,null,null,null,null,null,null,null,null,null,null,null,null,null,null,null,null,null,null,null,null,null,null,null,null,null,null,null,null,null,null,null,null,null,null,null,null,null,null,null,null,null,null,null,null,null,null,null,null,null,null,null,null,null,null,null,null,null,null,null,null,null,""]
[null,null,null,null,null,null,null,null,null,null,null,null,null,null,null,null,null,null,null,null,null,null,null,null,null,null,null,null,null,null,null,null,null,null,null,null,null,null,null,null,null,null,null,null,null,null,null,null,null,null,null,null,null,null,null,null,null,null,null,null,null,null,null,null,null,null,null,null,null,null,null,null,null,null,null,null,null,null,null,null,null,null,null,null,null,null,null,null,null,null,null,null,null,null,null,null,null,null,null,null,null,null,null,null,null,null,null,null,null,null,null,null,null,null,null,null,null,null,null,null,null,""]
[null,null,null,null,null,null,null,null,null,null,null,null,null,null,null,null,null,null,null,null,null,null,null,null,null,null,null,null,null,null,null,null,null,null,null,null,null,null,null,null,null,null,null,null,null,null,null,null,null,null,null,null,null,null,null,null,null,null,null,null,null,null,null,null,null,null,null,null,null,null,null,null,null,null,null,null,null,null,null,null,null,null,null,null,null,null,null,null,null,null,null,null,null,null,null,null,null,null,null,null,null,null,null,null,null,null,null,null,null,null,null,null,null,null,null,null,null,null,null,null,null,""]
[null,null,null,null,null,null,null,null,null,null,null,null,null,null,null,null,null,null,null,null,null,null,null,null,null,null,null,null,null,null,null,null,null,null,null,null,null,null,null,null,null,null,null,null,null,null,null,null,null,null,null,null,null,null,null,null,null,null,null,null,null,null,null,null,null,null,null,null,null,null,null,null,null,null,null,null,null,null,null,null,null,null,null,null,null,null,null,null,null,null,null,null,null,null,null,null,null,null,null,null,null,null,null,null,null,null,null,null,null,null,null,null,null,null,null,null,null,null,null,null,null,""]
[null,null,null,null,null,null,null,null,null,null,null,null,null,null,null,null,null,null,null,null,null,null,null,null,null,null,null,null,null,null,null,null,null,null,null,null,null,null,null,null,null,null,null,null,null,null,null,null,null,null,null,null,null,null,null,null,null,null,null,null,null,null,null,null,null,null,null,null,null,null,null,null,null,null,null,null,null,null,null,null,null,null,null,null,null,null,null,null,null,null,null,null,null,null,null,null,null,null,null,null,null,null,null,null,null,null,null,null,null,null,null,null,null,null,null,null,null,null,null,null,null,""]
[null,null,null,null,null,null,null,null,null,null,null,null,null,null,null,null,null,null,null,null,null,null,null,null,null,null,null,null,null,null,null,null,null,null,null,null,null,null,null,null,null,null,null,null,null,null,null,null,null,null,null,null,null,null,null,null,null,null,null,null,null,null,null,null,null,null,null,null,null,null,null,null,null,null,null,null,null,null,null,null,null,null,null,null,null,null,null,null,null,null,null,null,null,null,null,null,null,null,null,null,null,null,null,null,null,null,null,null,null,null,null,null,null,null,null,null,null,null,null,null,null,""]
[null,null,null,null,null,null,null,null,null,null,null,null,null,null,null,null,null,null,null,null,null,null,null,null,null,null,null,null,null,null,null,null,null,null,null,null,null,null,null,null,null,null,null,null,null,null,null,null,null,null,null,null,null,null,null,null,null,null,null,null,null,null,null,null,null,null,null,null,null,null,null,null,null,null,null,null,null,null,null,null,null,null,null,null,null,null,null,null,null,null,null,null,null,null,null,null,null,null,null,null,null,null,null,null,null,null,null,null,null,null,null,null,null,null,null,null,null,null,null,null,null,""]
[null,null,null,null,null,null,null,null,null,null,null,null,null,null,null,null,null,null,null,null,null,null,null,null,null,null,null,null,null,null,null,null,null,null,null,null,null,null,null,null,null,null,null,null,null,null,null,null,null,null,null,null,null,null,null,null,null,null,null,null,null,null,null,null,null,null,null,null,null,null,null,null,null,null,null,null,null,null,null,null,null,null,null,null,null,null,null,null,null,null,null,null,null,null,null,null,null,null,null,null,null,null,null,null,null,null,null,null,null,null,null,null,null,null,null,null,null,null,null,null,null,""]
[null,null,null,null,null,null,null,null,null,null,null,null,null,null,null,null,null,null,null,null,null,null,null,null,null,null,null,null,null,null,null,null,null,null,null,null,null,null,null,null,null,null,null,null,null,null,null,null,null,null,null,null,null,null,null,null,null,null,null,null,null,null,null,null,null,null,null,null,null,null,null,null,null,null,null,null,null,null,null,null,null,null,null,null,null,null,null,null,null,null,null,null,null,null,null,null,null,null,null,null,null,null,null,null,null,null,null,null,null,null,null,null,null,null,null,null,null,null,null,null,null,""]
[null,null,null,null,null,null,null,null,null,null,null,null,null,null,null,null,null,null,null,null,null,null,null,null,null,null,null,null,null,null,null,null,null,null,null,null,null,null,null,null,null,null,null,null,null,null,null,null,null,null,null,null,null,null,null,null,null,null,null,null,null,null,null,null,null,null,null,null,null,null,null,null,null,null,null,null,null,null,null,null,null,null,null,null,null,null,null,null,null,null,null,null,null,null,null,null,null,null,null,null,null,null,null,null,null,null,null,null,null,null,null,null,null,null,null,null,null,null,null,null,null,""]
[null,null,null,null,null,null,null,null,null,null,null,null,null,null,null,null,null,null,null,null,null,null,null,null,null,null,null,null,null,null,null,null,null,null,null,null,null,null,null,null,null,null,null,null,null,null,null,null,null,null,null,null,null,null,null,null,null,null,null,null,null,null,null,null,null,null,null,null,null,null,null,null,null,null,null,null,null,null,null,null,null,null,null,null,null,null,null,null,null,null,null,null,null,null,null,null,null,null,null,null,null,null,null,null,null,null,null,null,null,null,null,null,null,null,null,null,null,null,null,null,null,""]
[null,null,null,null,null,null,null,null,null,null,null,null,null,null,null,null,null,null,null,null,null,null,null,null,null,null,null,null,null,null,null,null,null,null,null,null,null,null,null,null,null,null,null,null,null,null,null,null,null,null,null,null,null,null,null,null,null,null,null,null,null,null,null,null,null,null,null,null,null,null,null,null,null,null,null,null,null,null,null,null,null,null,null,null,null,null,null,null,null,null,null,null,null,null,null,null,null,null,null,null,null,null,null,null,null,null,null,null,null,null,null,null,null,null,null,null,null,null,null,null,null,""]
[null,null,null,null,null,null,null,null,null,null,null,null,null,null,null,null,null,null,null,null,null,null,null,null,null,null,null,null,null,null,null,null,null,null,null,null,null,null,null,null,null,null,null,null,null,null,null,null,null,null,null,null,null,null,null,null,null,null,null,null,null,null,null,null,null,null,null,null,null,null,null,null,null,null,null,null,null,null,null,null,null,null,null,null,null,null,null,null,null,null,null,null,null,null,null,null,null,null,null,null,null,null,null,null,null,null,null,null,null,null,null,null,null,null,null,null,null,null,null,null,null,""]
[null,null,null,null,null,null,null,null,null,null,null,null,null,null,null,null,null,null,null,null,null,null,null,null,null,null,null,null,null,null,null,null,null,null,null,null,null,null,null,null,null,null,null,null,null,null,null,null,null,null,null,null,null,null,null,null,null,null,null,null,null,null,null,null,null,null,null,null,null,null,null,null,null,null,null,null,null,null,null,null,null,null,null,null,null,null,null,null,null,null,null,null,null,null,null,null,null,null,null,null,null,null,null,null,null,null,null,null,null,null,null,null,null,null,null,null,null,null,null,null,null,""]
[null,null,null,null,null,null,null,null,null,null,null,null,null,null,null,null,null,null,null,null,null,null,null,null,null,null,null,null,null,null,null,null,null,null,null,null,null,null,null,null,null,null,null,null,null,null,null,null,null,null,null,null,null,null,null,null,null,null,null,null,null,null,null,null,null,null,null,null,null,null,null,null,null,null,null,null,null,null,null,null,null,null,null,null,null,null,null,null,null,null,null,null,null,null,null,null,null,null,null,null,null,null,null,null,null,null,null,null,null,null,null,null,null,null,null,null,null,null,null,null,null,""]
[null,null,null,null,null,null,null,null,null,null,null,null,null,null,null,null,null,null,null,null,null,null,null,null,null,null,null,null,null,null,null,null,null,null,null,null,null,null,null,null,null,null,null,null,null,null,null,null,null,null,null,null,null,null,null,null,null,null,null,null,null,null,null,null,null,null,null,null,null,null,null,null,null,null,null,null,null,null,null,null,null,null,null,null,null,null,null,null,null,null,null,null,null,null,null,null,null,null,null,null,null,null,null,null,null,null,null,null,null,null,null,null,null,null,null,null,null,null,null,null,null,""]
[null,null,null,null,null,null,null,null,null,null,null,null,null,null,null,null,null,null,null,null,null,null,null,null,null,null,null,null,null,null,null,null,null,null,null,null,null,null,null,null,null,null,null,null,null,null,null,null,null,null,null,null,null,null,null,null,null,null,null,null,null,null,null,null,null,null,null,null,null,null,null,null,null,null,null,null,null,null,null,null,null,null,null,null,null,null,null,null,null,null,null,null,null,null,null,null,null,null,null,null,null,null,null,null,null,null,null,null,null,null,null,null,null,null,null,null,null,null,null,null,null,""]
[null,null,null,null,null,null,null,null,null,null,null,null,null,null,null,null,null,null,null,null,null,null,null,null,null,null,null,null,null,null,null,null,null,null,null,null,null,null,null,null,null,null,null,null,null,null,null,null,null,null,null,null,null,null,null,null,null,null,null,null,null,null,null,null,null,null,null,null,null,null,null,null,null,null,null,null,null,null,null,null,null,null,null,null,null,null,null,null,null,null,null,null,null,null,null,null,null,null,null,null,null,null,null,null,null,null,null,null,null,null,null,null,null,null,null,null,null,null,null,null,null,""]
[null,null,null,null,null,null,null,null,null,null,null,null,null,null,null,null,null,null,null,null,null,null,null,null,null,null,null,null,null,null,null,null,null,null,null,null,null,null,null,null,null,null,null,null,null,null,null,null,null,null,null,null,null,null,null,null,null,null,null,null,null,null,null,null,null,null,null,null,null,null,null,null,null,null,null,null,null,null,null,null,null,null,null,null,null,null,null,null,null,null,null,null,null,null,null,null,null,null,null,null,null,null,null,null,null,null,null,null,null,null,null,null,null,null,null,null,null,null,null,null,null,""]
[null,null,null,null,null,null,null,null,null,null,null,null,null,null,null,null,null,null,null,null,null,null,null,null,null,null,null,null,null,null,null,null,null,null,null,null,null,null,null,null,null,null,null,null,null,null,null,null,null,null,null,null,null,null,null,null,null,null,null,null,null,null,null,null,null,null,null,null,null,null,null,null,null,null,null,null,null,null,null,null,null,null,null,null,null,null,null,null,null,null,null,null,null,null,null,null,null,null,null,null,null,null,null,null,null,null,null,null,null,null,null,null,null,null,null,null,null,null,null,null,null,""]
[null,null,null,null,null,null,null,null,null,null,null,null,null,null,null,null,null,null,null,null,null,null,null,null,null,null,null,null,null,null,null,null,null,null,null,null,null,null,null,null,null,null,null,null,null,null,null,null,null,null,null,null,null,null,null,null,null,null,null,null,null,null,null,null,null,null,null,null,null,null,null,null,null,null,null,null,null,null,null,null,null,null,null,null,null,null,null,null,null,null,null,null,null,null,null,null,null,null,null,null,null,null,null,null,null,null,null,null,null,null,null,null,null,null,null,null,null,null,null,null,null,""]
[null,null,null,null,null,null,null,null,null,null,null,null,null,null,null,null,null,null,null,null,null,null,null,null,null,null,null,null,null,null,null,null,null,null,null,null,null,null,null,null,null,null,null,null,null,null,null,null,null,null,null,null,null,null,null,null,null,null,null,null,null,null,null,null,null,null,null,null,null,null,null,null,null,null,null,null,null,null,null,null,null,null,null,null,null,null,null,null,null,null,null,null,null,null,null,null,null,null,null,null,null,null,null,null,null,null,null,null,null,null,null,null,null,null,null,null,null,null,null,null,null,""]
[null,null,null,null,null,null,null,null,null,null,null,null,null,null,null,null,null,null,null,null,null,null,null,null,null,null,null,null,null,null,null,null,null,null,null,null,null,null,null,null,null,null,null,null,null,null,null,null,null,null,null,null,null,null,null,null,null,null,null,null,null,null,null,null,null,null,null,null,null,null,null,null,null,null,null,null,null,null,null,null,null,null,null,null,null,null,null,null,null,null,null,null,null,null,null,null,null,null,null,null,null,null,null,null,null,null,null,null,null,null,null,null,null,null,null,null,null,null,null,null,null,""]
[null,null,null,null,null,null,null,null,null,null,null,null,null,null,null,null,null,null,null,null,null,null,null,null,null,null,null,null,null,null,null,null,null,null,null,null,null,null,null,null,null,null,null,null,null,null,null,null,null,null,null,null,null,null,null,null,null,null,null,null,null,null,null,null,null,null,null,null,null,null,null,null,null,null,null,null,null,null,null,null,null,null,null,null,null,null,null,null,null,null,null,null,null,null,null,null,null,null,null,null,null,null,null,null,null,null,null,null,null,null,null,null,null,null,null,null,null,null,null,null,null,""]
[null,null,null,null,null,null,null,null,null,null,null,null,null,null,null,null,null,null,null,null,null,null,null,null,null,null,null,null,null,null,null,null,null,null,null,null,null,null,null,null,null,null,null,null,null,null,null,null,null,null,null,null,null,null,null,null,null,null,null,null,null,null,null,null,null,null,null,null,null,null,null,null,null,null,null,null,null,null,null,null,null,null,null,null,null,null,null,null,null,null,null,null,null,null,null,null,null,null,null,null,null,null,null,null,null,null,null,null,null,null,null,null,null,null,null,null,null,null,null,null,null,""]
[null,null,null,null,null,null,null,null,null,null,null,null,null,null,null,null,null,null,null,null,null,null,null,null,null,null,null,null,null,null,null,null,null,null,null,null,null,null,null,null,null,null,null,null,null,null,null,null,null,null,null,null,null,null,null,null,null,null,null,null,null,null,null,null,null,null,null,null,null,null,null,null,null,null,null,null,null,null,null,null,null,null,null,null,null,null,null,null,null,null,null,null,null,null,null,null,null,null,null,null,null,null,null,null,null,null,null,null,null,null,null,null,null,null,null,null,null,null,null,null,null,""]
[null,null,null,null,null,null,null,null,null,null,null,null,null,null,null,null,null,null,null,null,null,null,null,null,null,null,null,null,null,null,null,null,null,null,null,null,null,null,null,null,null,null,null,null,null,null,null,null,null,null,null,null,null,null,null,null,null,null,null,null,null,null,null,null,null,null,null,null,null,null,null,null,null,null,null,null,null,null,null,null,null,null,null,null,null,null,null,null,null,null,null,null,null,null,null,null,null,null,null,null,null,null,null,null,null,null,null,null,null,null,null,null,null,null,null,null,null,null,null,null,null,""]
[null,null,null,null,null,null,null,null,null,null,null,null,null,null,null,null,null,null,null,null,null,null,null,null,null,null,null,null,null,null,null,null,null,null,null,null,null,null,null,null,null,null,null,null,null,null,null,null,null,null,null,null,null,null,null,null,null,null,null,null,null,null,null,null,null,null,null,null,null,null,null,null,null,null,null,null,null,null,null,null,null,null,null,null,null,null,null,null,null,null,null,null,null,null,null,null,null,null,null,null,null,null,null,null,null,null,null,null,null,null,null,null,null,null,null,null,null,null,null,null,null,""]
[null,null,null,null,null,null,null,null,null,null,null,null,null,null,null,null,null,null,null,null,null,null,null,null,null,null,null,null,null,null,null,null,null,null,null,null,null,null,null,null,null,null,null,null,null,null,null,null,null,null,null,null,null,null,null,null,null,null,null,null,null,null,null,null,null,null,null,null,null,null,null,null,null,null,null,null,null,null,null,null,null,null,null,null,null,null,null,null,null,null,null,null,null,null,null,null,null,null,null,null,null,null,null,null,null,null,null,null,null,null,null,null,null,null,null,null,null,null,null,null,null,""]
[null,null,null,null,null,null,null,null,null,null,null,null,null,null,null,null,null,null,null,null,null,null,null,null,null,null,null,null,null,null,null,null,null,null,null,null,null,null,null,null,null,null,null,null,null,null,null,null,null,null,null,null,null,null,null,null,null,null,null,null,null,null,null,null,null,null,null,null,null,null,null,null,null,null,null,null,null,null,null,null,null,null,null,null,null,null,null,null,null,null,null,null,null,null,null,null,null,null,null,null,null,null,null,null,null,null,null,null,null,null,null,null,null,null,null,null,null,null,null,null,null,""]
[null,null,null,null,null,null,null,null,null,null,null,null,null,null,null,null,null,null,null,null,null,null,null,null,null,null,null,null,null,null,null,null,null,null,null,null,null,null,null,null,null,null,null,null,null,null,null,null,null,null,null,null,null,null,null,null,null,null,null,null,null,null,null,null,null,null,null,null,null,null,null,null,null,null,null,null,null,null,null,null,null,null,null,null,null,null,null,null,null,null,null,null,null,null,null,null,null,null,null,null,null,null,null,null,null,null,null,null,null,null,null,null,null,null,null,null,null,null,null,null,null,""]
[null,null,null,null,null,null,null,null,null,null,null,null,null,null,null,null,null,null,null,null,null,null,null,null,null,null,null,null,null,null,null,null,null,null,null,null,null,null,null,null,null,null,null,null,null,null,null,null,null,null,null,null,null,null,null,null,null,null,null,null,null,null,null,null,null,null,null,null,null,null,null,null,null,null,null,null,null,null,null,null,null,null,null,null,null,null,null,null,null,null,null,null,null,null,null,null,null,null,null,null,null,null,null,null,null,null,null,null,null,null,null,null,null,null,null,null,null,null,null,null,null,""]
[null,null,null,null,null,null,null,null,null,null,null,null,null,null,null,null,null,null,null,null,null,null,null,null,null,null,null,null,null,null,null,null,null,null,null,null,null,null,null,null,null,null,null,null,null,null,null,null,null,null,null,null,null,null,null,null,null,null,null,null,null,null,null,null,null,null,null,null,null,null,null,null,null,null,null,null,null,null,null,null,null,null,null,null,null,null,null,null,null,null,null,null,null,null,null,null,null,null,null,null,null,null,null,null,null,null,null,null,null,null,null,null,null,null,null,null,null,null,null,null,null,""]
[null,null,null,null,null,null,null,null,null,null,null,null,null,null,null,null,null,null,null,null,null,null,null,null,null,null,null,null,null,null,null,null,null,null,null,null,null,null,null,null,null,null,null,null,null,null,null,null,null,null,null,null,null,null,null,null,null,null,null,null,null,null,null,null,null,null,null,null,null,null,null,null,null,null,null,null,null,null,null,null,null,null,null,null,null,null,null,null,null,null,null,null,null,null,null,null,null,null,null,null,null,null,null,null,null,null,null,null,null,null,null,null,null,null,null,null,null,null,null,null,null,""]
[null,null,null,null,null,null,null,null,null,null,null,null,null,null,null,null,null,null,null,null,null,null,null,null,null,null,null,null,null,null,null,null,null,null,null,null,null,null,null,null,null,null,null,null,null,null,null,null,null,null,null,null,null,null,null,null,null,null,null,null,null,null,null,null,null,null,null,null,null,null,null,null,null,null,null,null,null,null,null,null,null,null,null,null,null,null,null,null,null,null,null,null,null,null,null,null,null,null,null,null,null,null,null,null,null,null,null,null,null,null,null,null,null,null,null,null,null,null,null,null,null,""]
[null,null,null,null,null,null,null,null,null,null,null,null,null,null,null,null,null,null,null,null,null,null,null,null,null,null,null,null,null,null,null,null,null,null,null,null,null,null,null,null,null,null,null,null,null,null,null,null,null,null,null,null,null,null,null,null,null,null,null,null,null,null,null,null,null,null,null,null,null,null,null,null,null,null,null,null,null,null,null,null,null,null,null,null,null,null,null,null,null,null,null,null,null,null,null,null,null,null,null,null,null,null,null,null,null,null,null,null,null,null,null,null,null,null,null,null,null,null,null,null,null,""]
[null,null,null,null,null,null,null,null,null,null,null,null,null,null,null,null,null,null,null,null,null,null,null,null,null,null,null,null,null,null,null,null,null,null,null,null,null,null,null,null,null,null,null,null,null,null,null,null,null,null,null,null,null,null,null,null,null,null,null,null,null,null,null,null,null,null,null,null,null,null,null,null,null,null,null,null,null,null,null,null,null,null,null,null,null,null,null,null,null,null,null,null,null,null,null,null,null,null,null,null,null,null,null,null,null,null,null,null,null,null,null,null,null,null,null,null,null,null,null,null,null,""]
[null,null,null,null,null,null,null,null,null,null,null,null,null,null,null,null,null,null,null,null,null,null,null,null,null,null,null,null,null,null,null,null,null,null,null,null,null,null,null,null,null,null,null,null,null,null,null,null,null,null,null,null,null,null,null,null,null,null,null,null,null,null,null,null,null,null,null,null,null,null,null,null,null,null,null,null,null,null,null,null,null,null,null,null,null,null,null,null,null,null,null,null,null,null,null,null,null,null,null,null,null,null,null,null,null,null,null,null,null,null,null,null,null,null,null,null,null,null,null,null,null,""]
[null,null,null,null,null,null,null,null,null,null,null,null,null,null,null,null,null,null,null,null,null,null,null,null,null,null,null,null,null,null,null,null,null,null,null,null,null,null,null,null,null,null,null,null,null,null,null,null,null,null,null,null,null,null,null,null,null,null,null,null,null,null,null,null,null,null,null,null,null,null,null,null,null,null,null,null,null,null,null,null,null,null,null,null,null,null,null,null,null,null,null,null,null,null,null,null,null,null,null,null,null,null,null,null,null,null,null,null,null,null,null,null,null,null,null,null,null,null,null,null,null,""]
[null,null,null,null,null,null,null,null,null,null,null,null,null,null,null,null,null,null,null,null,null,null,null,null,null,null,null,null,null,null,null,null,null,null,null,null,null,null,null,null,null,null,null,null,null,null,null,null,null,null,null,null,null,null,null,null,null,null,null,null,null,null,null,null,null,null,null,null,null,null,null,null,null,null,null,null,null,null,null,null,null,null,null,null,null,null,null,null,null,null,null,null,null,null,null,null,null,null,null,null,null,null,null,null,null,null,null,null,null,null,null,null,null,null,null,null,null,null,null,null,null,""]
[null,null,null,null,null,null,null,null,null,null,null,null,null,null,null,null,null,null,null,null,null,null,null,null,null,null,null,null,null,null,null,null,null,null,null,null,null,null,null,null,null,null,null,null,null,null,null,null,null,null,null,null,null,null,null,null,null,null,null,null,null,null,null,null,null,null,null,null,null,null,null,null,null,null,null,null,null,null,null,null,null,null,null,null,null,null,null,null,null,null,null,null,null,null,null,null,null,null,null,null,null,null,null,null,null,null,null,null,null,null,null,null,null,null,null,null,null,null,null,null,null,""]
[null,null,null,null,null,null,null,null,null,null,null,null,null,null,null,null,null,null,null,null,null,null,null,null,null,null,null,null,null,null,null,null,null,null,null,null,null,null,null,null,null,null,null,null,null,null,null,null,null,null,null,null,null,null,null,null,null,null,null,null,null,null,null,null,null,null,null,null,null,null,null,null,null,null,null,null,null,null,null,null,null,null,null,null,null,null,null,null,null,null,null,null,null,null,null,null,null,null,null,null,null,null,null,null,null,null,null,null,null,null,null,null,null,null,null,null,null,null,null,null,null,""]
[null,null,null,null,null,null,null,null,null,null,null,null,null,null,null,null,null,null,null,null,null,null,null,null,null,null,null,null,null,null,null,null,null,null,null,null,null,null,null,null,null,null,null,null,null,null,null,null,null,null,null,null,null,null,null,null,null,null,null,null,null,null,null,null,null,null,null,null,null,null,null,null,null,null,null,null,null,null,null,null,null,null,null,null,null,null,null,null,null,null,null,null,null,null,null,null,null,null,null,null,null,null,null,null,null,null,null,null,null,null,null,null,null,null,null,null,null,null,null,null,null,""]
[null,null,null,null,null,null,null,null,null,null,null,null,null,null,null,null,null,null,null,null,null,null,null,null,null,null,null,null,null,null,null,null,null,null,null,null,null,null,null,null,null,null,null,null,null,null,null,null,null,null,null,null,null,null,null,null,null,null,null,null,null,null,null,null,null,null,null,null,null,null,null,null,null,null,null,null,null,null,null,null,null,null,null,null,null,null,null,null,null,null,null,null,null,null,null,null,null,null,null,null,null,null,null,null,null,null,null,null,null,null,null,null,null,null,null,null,null,null,null,null,null,""]
[null,null,null,null,null,null,null,null,null,null,null,null,null,null,null,null,null,null,null,null,null,null,null,null,null,null,null,null,null,null,null,null,null,null,null,null,null,null,null,null,null,null,null,null,null,null,null,null,null,null,null,null,null,null,null,null,null,null,null,null,null,null,null,null,null,null,null,null,null,null,null,null,null,null,null,null,null,null,null,null,null,null,null,null,null,null,null,null,null,null,null,null,null,null,null,null,null,null,null,null,null,null,null,null,null,null,null,null,null,null,null,null,null,null,null,null,null,null,null,null,null,""]
[null,null,null,null,null,null,null,null,null,null,null,null,null,null,null,null,null,null,null,null,null,null,null,null,null,null,null,null,null,null,null,null,null,null,null,null,null,null,null,null,null,null,null,null,null,null,null,null,null,null,null,null,null,null,null,null,null,null,null,null,null,null,null,null,null,null,null,null,null,null,null,null,null,null,null,null,null,null,null,null,null,null,null,null,null,null,null,null,null,null,null,null,null,null,null,null,null,null,null,null,null,null,null,null,null,null,null,null,null,null,null,null,null,null,null,null,null,null,null,null,null,{"$f":"IFERROR(IF(DR195+1>$DS$1,\"\",DR195+1),\"\")","v":""}]
[null,null,null,null,null,null,null,null,null,null,null,null,null,null,null,null,null,null,null,null,null,null,null,null,null,null,null,null,null,null,null,null,null,null,null,null,null,null,null,null,null,null,null,null,null,null,null,null,null,null,null,null,null,null,null,null,null,null,null,null,null,null,null,null,null,null,null,null,null,null,null,null,null,null,null,null,null,null,null,null,null,null,null,null,null,null,null,null,null,null,null,null,null,null,null,null,null,null,null,null,null,null,null,null,null,null,null,null,null,null,null,null,null,null,null,null,null,null,null,null,null,""]
[null,null,null,null,null,null,null,null,null,null,null,null,null,null,null,null,null,null,null,null,null,null,null,null,null,null,null,null,null,null,null,null,null,null,null,null,null,null,null,null,null,null,null,null,null,null,null,null,null,null,null,null,null,null,null,null,null,null,null,null,null,null,null,null,null,null,null,null,null,null,null,null,null,null,null,null,null,null,null,null,null,null,null,null,null,null,null,null,null,null,null,null,null,null,null,null,null,null,null,null,null,null,null,null,null,null,null,null,null,null,null,null,null,null,null,null,null,null,null,null,null,""]
[null,null,null,null,null,null,null,null,null,null,null,null,null,null,null,null,null,null,null,null,null,null,null,null,null,null,null,null,null,null,null,null,null,null,null,null,null,null,null,null,null,null,null,null,null,null,null,null,null,null,null,null,null,null,null,null,null,null,null,null,null,null,null,null,null,null,null,null,null,null,null,null,null,null,null,null,null,null,null,null,null,null,null,null,null,null,null,null,null,null,null,null,null,null,null,null,null,null,null,null,null,null,null,null,null,null,null,null,null,null,null,null,null,null,null,null,null,null,null,null,null,""]
[null,null,null,null,null,null,null,null,null,null,null,null,null,null,null,null,null,null,null,null,null,null,null,null,null,null,null,null,null,null,null,null,null,null,null,null,null,null,null,null,null,null,null,null,null,null,null,null,null,null,null,null,null,null,null,null,null,null,null,null,null,null,null,null,null,null,null,null,null,null,null,null,null,null,null,null,null,null,null,null,null,null,null,null,null,null,null,null,null,null,null,null,null,null,null,null,null,null,null,null,null,null,null,null,null,null,null,null,null,null,null,null,null,null,null,null,null,null,null,null,null,""]
[null,null,null,null,null,null,null,null,null,null,null,null,null,null,null,null,null,null,null,null,null,null,null,null,null,null,null,null,null,null,null,null,null,null,null,null,null,null,null,null,null,null,null,null,null,null,null,null,null,null,null,null,null,null,null,null,null,null,null,null,null,null,null,null,null,null,null,null,null,null,null,null,null,null,null,null,null,null,null,null,null,null,null,null,null,null,null,null,null,null,null,null,null,null,null,null,null,null,null,null,null,null,null,null,null,null,null,null,null,null,null,null,null,null,null,null,null,null,null,null,null,""]
[null,null,null,null,null,null,null,null,null,null,null,null,null,null,null,null,null,null,null,null,null,null,null,null,null,null,null,null,null,null,null,null,null,null,null,null,null,null,null,null,null,null,null,null,null,null,null,null,null,null,null,null,null,null,null,null,null,null,null,null,null,null,null,null,null,null,null,null,null,null,null,null,null,null,null,null,null,null,null,null,null,null,null,null,null,null,null,null,null,null,null,null,null,null,null,null,null,null,null,null,null,null,null,null,null,null,null,null,null,null,null,null,null,null,null,null,null,null,null,null,null,""]
[null,null,null,null,null,null,null,null,null,null,null,null,null,null,null,null,null,null,null,null,null,null,null,null,null,null,null,null,null,null,null,null,null,null,null,null,null,null,null,null,null,null,null,null,null,null,null,null,null,null,null,null,null,null,null,null,null,null,null,null,null,null,null,null,null,null,null,null,null,null,null,null,null,null,null,null,null,null,null,null,null,null,null,null,null,null,null,null,null,null,null,null,null,null,null,null,null,null,null,null,null,null,null,null,null,null,null,null,null,null,null,null,null,null,null,null,null,null,null,null,null,""]
[null,null,null,null,null,null,null,null,null,null,null,null,null,null,null,null,null,null,null,null,null,null,null,null,null,null,null,null,null,null,null,null,null,null,null,null,null,null,null,null,null,null,null,null,null,null,null,null,null,null,null,null,null,null,null,null,null,null,null,null,null,null,null,null,null,null,null,null,null,null,null,null,null,null,null,null,null,null,null,null,null,null,null,null,null,null,null,null,null,null,null,null,null,null,null,null,null,null,null,null,null,null,null,null,null,null,null,null,null,null,null,null,null,null,null,null,null,null,null,null,null,""]
[null,null,null,null,null,null,null,null,null,null,null,null,null,null,null,null,null,null,null,null,null,null,null,null,null,null,null,null,null,null,null,null,null,null,null,null,null,null,null,null,null,null,null,null,null,null,null,null,null,null,null,null,null,null,null,null,null,null,null,null,null,null,null,null,null,null,null,null,null,null,null,null,null,null,null,null,null,null,null,null,null,null,null,null,null,null,null,null,null,null,null,null,null,null,null,null,null,null,null,null,null,null,null,null,null,null,null,null,null,null,null,null,null,null,null,null,null,null,null,null,null,""]
[null,null,null,null,null,null,null,null,null,null,null,null,null,null,null,null,null,null,null,null,null,null,null,null,null,null,null,null,null,null,null,null,null,null,null,null,null,null,null,null,null,null,null,null,null,null,null,null,null,null,null,null,null,null,null,null,null,null,null,null,null,null,null,null,null,null,null,null,null,null,null,null,null,null,null,null,null,null,null,null,null,null,null,null,null,null,null,null,null,null,null,null,null,null,null,null,null,null,null,null,null,null,null,null,null,null,null,null,null,null,null,null,null,null,null,null,null,null,null,null,null,""]
[null,null,null,null,null,null,null,null,null,null,null,null,null,null,null,null,null,null,null,null,null,null,null,null,null,null,null,null,null,null,null,null,null,null,null,null,null,null,null,null,null,null,null,null,null,null,null,null,null,null,null,null,null,null,null,null,null,null,null,null,null,null,null,null,null,null,null,null,null,null,null,null,null,null,null,null,null,null,null,null,null,null,null,null,null,null,null,null,null,null,null,null,null,null,null,null,null,null,null,null,null,null,null,null,null,null,null,null,null,null,null,null,null,null,null,null,null,null,null,null,null,""]
[null,null,null,null,null,null,null,null,null,null,null,null,null,null,null,null,null,null,null,null,null,null,null,null,null,null,null,null,null,null,null,null,null,null,null,null,null,null,null,null,null,null,null,null,null,null,null,null,null,null,null,null,null,null,null,null,null,null,null,null,null,null,null,null,null,null,null,null,null,null,null,null,null,null,null,null,null,null,null,null,null,null,null,null,null,null,null,null,null,null,null,null,null,null,null,null,null,null,null,null,null,null,null,null,null,null,null,null,null,null,null,null,null,null,null,null,null,null,null,null,null,""]
[null,null,null,null,null,null,null,null,null,null,null,null,null,null,null,null,null,null,null,null,null,null,null,null,null,null,null,null,null,null,null,null,null,null,null,null,null,null,null,null,null,null,null,null,null,null,null,null,null,null,null,null,null,null,null,null,null,null,null,null,null,null,null,null,null,null,null,null,null,null,null,null,null,null,null,null,null,null,null,null,null,null,null,null,null,null,null,null,null,null,null,null,null,null,null,null,null,null,null,null,null,null,null,null,null,null,null,null,null,null,null,null,null,null,null,null,null,null,null,null,null,""]
[null,null,null,null,null,null,null,null,null,null,null,null,null,null,null,null,null,null,null,null,null,null,null,null,null,null,null,null,null,null,null,null,null,null,null,null,null,null,null,null,null,null,null,null,null,null,null,null,null,null,null,null,null,null,null,null,null,null,null,null,null,null,null,null,null,null,null,null,null,null,null,null,null,null,null,null,null,null,null,null,null,null,null,null,null,null,null,null,null,null,null,null,null,null,null,null,null,null,null,null,null,null,null,null,null,null,null,null,null,null,null,null,null,null,null,null,null,null,null,null,null,""]
[null,null,null,null,null,null,null,null,null,null,null,null,null,null,null,null,null,null,null,null,null,null,null,null,null,null,null,null,null,null,null,null,null,null,null,null,null,null,null,null,null,null,null,null,null,null,null,null,null,null,null,null,null,null,null,null,null,null,null,null,null,null,null,null,null,null,null,null,null,null,null,null,null,null,null,null,null,null,null,null,null,null,null,null,null,null,null,null,null,null,null,null,null,null,null,null,null,null,null,null,null,null,null,null,null,null,null,null,null,null,null,null,null,null,null,null,null,null,null,null,null,""]
[null,null,null,null,null,null,null,null,null,null,null,null,null,null,null,null,null,null,null,null,null,null,null,null,null,null,null,null,null,null,null,null,null,null,null,null,null,null,null,null,null,null,null,null,null,null,null,null,null,null,null,null,null,null,null,null,null,null,null,null,null,null,null,null,null,null,null,null,null,null,null,null,null,null,null,null,null,null,null,null,null,null,null,null,null,null,null,null,null,null,null,null,null,null,null,null,null,null,null,null,null,null,null,null,null,null,null,null,null,null,null,null,null,null,null,null,null,null,null,null,null,""]
[null,null,null,null,null,null,null,null,null,null,null,null,null,null,null,null,null,null,null,null,null,null,null,null,null,null,null,null,null,null,null,null,null,null,null,null,null,null,null,null,null,null,null,null,null,null,null,null,null,null,null,null,null,null,null,null,null,null,null,null,null,null,null,null,null,null,null,null,null,null,null,null,null,null,null,null,null,null,null,null,null,null,null,null,null,null,null,null,null,null,null,null,null,null,null,null,null,null,null,null,null,null,null,null,null,null,null,null,null,null,null,null,null,null,null,null,null,null,null,null,null,""]
[null,null,null,null,null,null,null,null,null,null,null,null,null,null,null,null,null,null,null,null,null,null,null,null,null,null,null,null,null,null,null,null,null,null,null,null,null,null,null,null,null,null,null,null,null,null,null,null,null,null,null,null,null,null,null,null,null,null,null,null,null,null,null,null,null,null,null,null,null,null,null,null,null,null,null,null,null,null,null,null,null,null,null,null,null,null,null,null,null,null,null,null,null,null,null,null,null,null,null,null,null,null,null,null,null,null,null,null,null,null,null,null,null,null,null,null,null,null,null,null,null,""]
[null,null,null,null,null,null,null,null,null,null,null,null,null,null,null,null,null,null,null,null,null,null,null,null,null,null,null,null,null,null,null,null,null,null,null,null,null,null,null,null,null,null,null,null,null,null,null,null,null,null,null,null,null,null,null,null,null,null,null,null,null,null,null,null,null,null,null,null,null,null,null,null,null,null,null,null,null,null,null,null,null,null,null,null,null,null,null,null,null,null,null,null,null,null,null,null,null,null,null,null,null,null,null,null,null,null,null,null,null,null,null,null,null,null,null,null,null,null,null,null,null,""]
[null,null,null,null,null,null,null,null,null,null,null,null,null,null,null,null,null,null,null,null,null,null,null,null,null,null,null,null,null,null,null,null,null,null,null,null,null,null,null,null,null,null,null,null,null,null,null,null,null,null,null,null,null,null,null,null,null,null,null,null,null,null,null,null,null,null,null,null,null,null,null,null,null,null,null,null,null,null,null,null,null,null,null,null,null,null,null,null,null,null,null,null,null,null,null,null,null,null,null,null,null,null,null,null,null,null,null,null,null,null,null,null,null,null,null,null,null,null,null,null,null,""]
[null,null,null,null,null,null,null,null,null,null,null,null,null,null,null,null,null,null,null,null,null,null,null,null,null,null,null,null,null,null,null,null,null,null,null,null,null,null,null,null,null,null,null,null,null,null,null,null,null,null,null,null,null,null,null,null,null,null,null,null,null,null,null,null,null,null,null,null,null,null,null,null,null,null,null,null,null,null,null,null,null,null,null,null,null,null,null,null,null,null,null,null,null,null,null,null,null,null,null,null,null,null,null,null,null,null,null,null,null,null,null,null,null,null,null,null,null,null,null,null,null,""]
[null,null,null,null,null,null,null,null,null,null,null,null,null,null,null,null,null,null,null,null,null,null,null,null,null,null,null,null,null,null,null,null,null,null,null,null,null,null,null,null,null,null,null,null,null,null,null,null,null,null,null,null,null,null,null,null,null,null,null,null,null,null,null,null,null,null,null,null,null,null,null,null,null,null,null,null,null,null,null,null,null,null,null,null,null,null,null,null,null,null,null,null,null,null,null,null,null,null,null,null,null,null,null,null,null,null,null,null,null,null,null,null,null,null,null,null,null,null,null,null,null,""]
[null,null,null,null,null,null,null,null,null,null,null,null,null,null,null,null,null,null,null,null,null,null,null,null,null,null,null,null,null,null,null,null,null,null,null,null,null,null,null,null,null,null,null,null,null,null,null,null,null,null,null,null,null,null,null,null,null,null,null,null,null,null,null,null,null,null,null,null,null,null,null,null,null,null,null,null,null,null,null,null,null,null,null,null,null,null,null,null,null,null,null,null,null,null,null,null,null,null,null,null,null,null,null,null,null,null,null,null,null,null,null,null,null,null,null,null,null,null,null,null,null,""]
[null,null,null,null,null,null,null,null,null,null,null,null,null,null,null,null,null,null,null,null,null,null,null,null,null,null,null,null,null,null,null,null,null,null,null,null,null,null,null,null,null,null,null,null,null,null,null,null,null,null,null,null,null,null,null,null,null,null,null,null,null,null,null,null,null,null,null,null,null,null,null,null,null,null,null,null,null,null,null,null,null,null,null,null,null,null,null,null,null,null,null,null,null,null,null,null,null,null,null,null,null,null,null,null,null,null,null,null,null,null,null,null,null,null,null,null,null,null,null,null,null,""]
[null,null,null,null,null,null,null,null,null,null,null,null,null,null,null,null,null,null,null,null,null,null,null,null,null,null,null,null,null,null,null,null,null,null,null,null,null,null,null,null,null,null,null,null,null,null,null,null,null,null,null,null,null,null,null,null,null,null,null,null,null,null,null,null,null,null,null,null,null,null,null,null,null,null,null,null,null,null,null,null,null,null,null,null,null,null,null,null,null,null,null,null,null,null,null,null,null,null,null,null,null,null,null,null,null,null,null,null,null,null,null,null,null,null,null,null,null,null,null,null,null,""]
[null,null,null,null,null,null,null,null,null,null,null,null,null,null,null,null,null,null,null,null,null,null,null,null,null,null,null,null,null,null,null,null,null,null,null,null,null,null,null,null,null,null,null,null,null,null,null,null,null,null,null,null,null,null,null,null,null,null,null,null,null,null,null,null,null,null,null,null,null,null,null,null,null,null,null,null,null,null,null,null,null,null,null,null,null,null,null,null,null,null,null,null,null,null,null,null,null,null,null,null,null,null,null,null,null,null,null,null,null,null,null,null,null,null,null,null,null,null,null,null,null,""]
[null,null,null,null,null,null,null,null,null,null,null,null,null,null,null,null,null,null,null,null,null,null,null,null,null,null,null,null,null,null,null,null,null,null,null,null,null,null,null,null,null,null,null,null,null,null,null,null,null,null,null,null,null,null,null,null,null,null,null,null,null,null,null,null,null,null,null,null,null,null,null,null,null,null,null,null,null,null,null,null,null,null,null,null,null,null,null,null,null,null,null,null,null,null,null,null,null,null,null,null,null,null,null,null,null,null,null,null,null,null,null,null,null,null,null,null,null,null,null,null,null,""]
[null,null,null,null,null,null,null,null,null,null,null,null,null,null,null,null,null,null,null,null,null,null,null,null,null,null,null,null,null,null,null,null,null,null,null,null,null,null,null,null,null,null,null,null,null,null,null,null,null,null,null,null,null,null,null,null,null,null,null,null,null,null,null,null,null,null,null,null,null,null,null,null,null,null,null,null,null,null,null,null,null,null,null,null,null,null,null,null,null,null,null,null,null,null,null,null,null,null,null,null,null,null,null,null,null,null,null,null,null,null,null,null,null,null,null,null,null,null,null,null,null,""]
[null,null,null,null,null,null,null,null,null,null,null,null,null,null,null,null,null,null,null,null,null,null,null,null,null,null,null,null,null,null,null,null,null,null,null,null,null,null,null,null,null,null,null,null,null,null,null,null,null,null,null,null,null,null,null,null,null,null,null,null,null,null,null,null,null,null,null,null,null,null,null,null,null,null,null,null,null,null,null,null,null,null,null,null,null,null,null,null,null,null,null,null,null,null,null,null,null,null,null,null,null,null,null,null,null,null,null,null,null,null,null,null,null,null,null,null,null,null,null,null,null,""]
[null,null,null,null,null,null,null,null,null,null,null,null,null,null,null,null,null,null,null,null,null,null,null,null,null,null,null,null,null,null,null,null,null,null,null,null,null,null,null,null,null,null,null,null,null,null,null,null,null,null,null,null,null,null,null,null,null,null,null,null,null,null,null,null,null,null,null,null,null,null,null,null,null,null,null,null,null,null,null,null,null,null,null,null,null,null,null,null,null,null,null,null,null,null,null,null,null,null,null,null,null,null,null,null,null,null,null,null,null,null,null,null,null,null,null,null,null,null,null,null,null,""]
[null,null,null,null,null,null,null,null,null,null,null,null,null,null,null,null,null,null,null,null,null,null,null,null,null,null,null,null,null,null,null,null,null,null,null,null,null,null,null,null,null,null,null,null,null,null,null,null,null,null,null,null,null,null,null,null,null,null,null,null,null,null,null,null,null,null,null,null,null,null,null,null,null,null,null,null,null,null,null,null,null,null,null,null,null,null,null,null,null,null,null,null,null,null,null,null,null,null,null,null,null,null,null,null,null,null,null,null,null,null,null,null,null,null,null,null,null,null,null,null,null,""]
[null,null,null,null,null,null,null,null,null,null,null,null,null,null,null,null,null,null,null,null,null,null,null,null,null,null,null,null,null,null,null,null,null,null,null,null,null,null,null,null,null,null,null,null,null,null,null,null,null,null,null,null,null,null,null,null,null,null,null,null,null,null,null,null,null,null,null,null,null,null,null,null,null,null,null,null,null,null,null,null,null,null,null,null,null,null,null,null,null,null,null,null,null,null,null,null,null,null,null,null,null,null,null,null,null,null,null,null,null,null,null,null,null,null,null,null,null,null,null,null,null,""]
[null,null,null,null,null,null,null,null,null,null,null,null,null,null,null,null,null,null,null,null,null,null,null,null,null,null,null,null,null,null,null,null,null,null,null,null,null,null,null,null,null,null,null,null,null,null,null,null,null,null,null,null,null,null,null,null,null,null,null,null,null,null,null,null,null,null,null,null,null,null,null,null,null,null,null,null,null,null,null,null,null,null,null,null,null,null,null,null,null,null,null,null,null,null,null,null,null,null,null,null,null,null,null,null,null,null,null,null,null,null,null,null,null,null,null,null,null,null,null,null,null,""]
[null,null,null,null,null,null,null,null,null,null,null,null,null,null,null,null,null,null,null,null,null,null,null,null,null,null,null,null,null,null,null,null,null,null,null,null,null,null,null,null,null,null,null,null,null,null,null,null,null,null,null,null,null,null,null,null,null,null,null,null,null,null,null,null,null,null,null,null,null,null,null,null,null,null,null,null,null,null,null,null,null,null,null,null,null,null,null,null,null,null,null,null,null,null,null,null,null,null,null,null,null,null,null,null,null,null,null,null,null,null,null,null,null,null,null,null,null,null,null,null,null,""]
[null,null,null,null,null,null,null,null,null,null,null,null,null,null,null,null,null,null,null,null,null,null,null,null,null,null,null,null,null,null,null,null,null,null,null,null,null,null,null,null,null,null,null,null,null,null,null,null,null,null,null,null,null,null,null,null,null,null,null,null,null,null,null,null,null,null,null,null,null,null,null,null,null,null,null,null,null,null,null,null,null,null,null,null,null,null,null,null,null,null,null,null,null,null,null,null,null,null,null,null,null,null,null,null,null,null,null,null,null,null,null,null,null,null,null,null,null,null,null,null,null,""]
[null,null,null,null,null,null,null,null,null,null,null,null,null,null,null,null,null,null,null,null,null,null,null,null,null,null,null,null,null,null,null,null,null,null,null,null,null,null,null,null,null,null,null,null,null,null,null,null,null,null,null,null,null,null,null,null,null,null,null,null,null,null,null,null,null,null,null,null,null,null,null,null,null,null,null,null,null,null,null,null,null,null,null,null,null,null,null,null,null,null,null,null,null,null,null,null,null,null,null,null,null,null,null,null,null,null,null,null,null,null,null,null,null,null,null,null,null,null,null,null,null,""]
[null,null,null,null,null,null,null,null,null,null,null,null,null,null,null,null,null,null,null,null,null,null,null,null,null,null,null,null,null,null,null,null,null,null,null,null,null,null,null,null,null,null,null,null,null,null,null,null,null,null,null,null,null,null,null,null,null,null,null,null,null,null,null,null,null,null,null,null,null,null,null,null,null,null,null,null,null,null,null,null,null,null,null,null,null,null,null,null,null,null,null,null,null,null,null,null,null,null,null,null,null,null,null,null,null,null,null,null,null,null,null,null,null,null,null,null,null,null,null,null,null,""]
[null,null,null,null,null,null,null,null,null,null,null,null,null,null,null,null,null,null,null,null,null,null,null,null,null,null,null,null,null,null,null,null,null,null,null,null,null,null,null,null,null,null,null,null,null,null,null,null,null,null,null,null,null,null,null,null,null,null,null,null,null,null,null,null,null,null,null,null,null,null,null,null,null,null,null,null,null,null,null,null,null,null,null,null,null,null,null,null,null,null,null,null,null,null,null,null,null,null,null,null,null,null,null,null,null,null,null,null,null,null,null,null,null,null,null,null,null,null,null,null,null,""]
[null,null,null,null,null,null,null,null,null,null,null,null,null,null,null,null,null,null,null,null,null,null,null,null,null,null,null,null,null,null,null,null,null,null,null,null,null,null,null,null,null,null,null,null,null,null,null,null,null,null,null,null,null,null,null,null,null,null,null,null,null,null,null,null,null,null,null,null,null,null,null,null,null,null,null,null,null,null,null,null,null,null,null,null,null,null,null,null,null,null,null,null,null,null,null,null,null,null,null,null,null,null,null,null,null,null,null,null,null,null,null,null,null,null,null,null,null,null,null,null,null,""]
[null,null,null,null,null,null,null,null,null,null,null,null,null,null,null,null,null,null,null,null,null,null,null,null,null,null,null,null,null,null,null,null,null,null,null,null,null,null,null,null,null,null,null,null,null,null,null,null,null,null,null,null,null,null,null,null,null,null,null,null,null,null,null,null,null,null,null,null,null,null,null,null,null,null,null,null,null,null,null,null,null,null,null,null,null,null,null,null,null,null,null,null,null,null,null,null,null,null,null,null,null,null,null,null,null,null,null,null,null,null,null,null,null,null,null,null,null,null,null,null,null,""]
[null,null,null,null,null,null,null,null,null,null,null,null,null,null,null,null,null,null,null,null,null,null,null,null,null,null,null,null,null,null,null,null,null,null,null,null,null,null,null,null,null,null,null,null,null,null,null,null,null,null,null,null,null,null,null,null,null,null,null,null,null,null,null,null,null,null,null,null,null,null,null,null,null,null,null,null,null,null,null,null,null,null,null,null,null,null,null,null,null,null,null,null,null,null,null,null,null,null,null,null,null,null,null,null,null,null,null,null,null,null,null,null,null,null,null,null,null,null,null,null,null,""]
[null,null,null,null,null,null,null,null,null,null,null,null,null,null,null,null,null,null,null,null,null,null,null,null,null,null,null,null,null,null,null,null,null,null,null,null,null,null,null,null,null,null,null,null,null,null,null,null,null,null,null,null,null,null,null,null,null,null,null,null,null,null,null,null,null,null,null,null,null,null,null,null,null,null,null,null,null,null,null,null,null,null,null,null,null,null,null,null,null,null,null,null,null,null,null,null,null,null,null,null,null,null,null,null,null,null,null,null,null,null,null,null,null,null,null,null,null,null,null,null,null,""]
[null,null,null,null,null,null,null,null,null,null,null,null,null,null,null,null,null,null,null,null,null,null,null,null,null,null,null,null,null,null,null,null,null,null,null,null,null,null,null,null,null,null,null,null,null,null,null,null,null,null,null,null,null,null,null,null,null,null,null,null,null,null,null,null,null,null,null,null,null,null,null,null,null,null,null,null,null,null,null,null,null,null,null,null,null,null,null,null,null,null,null,null,null,null,null,null,null,null,null,null,null,null,null,null,null,null,null,null,null,null,null,null,null,null,null,null,null,null,null,null,null,""]
[null,null,null,null,null,null,null,null,null,null,null,null,null,null,null,null,null,null,null,null,null,null,null,null,null,null,null,null,null,null,null,null,null,null,null,null,null,null,null,null,null,null,null,null,null,null,null,null,null,null,null,null,null,null,null,null,null,null,null,null,null,null,null,null,null,null,null,null,null,null,null,null,null,null,null,null,null,null,null,null,null,null,null,null,null,null,null,null,null,null,null,null,null,null,null,null,null,null,null,null,null,null,null,null,null,null,null,null,null,null,null,null,null,null,null,null,null,null,null,null,null,""]
[null,null,null,null,null,null,null,null,null,null,null,null,null,null,null,null,null,null,null,null,null,null,null,null,null,null,null,null,null,null,null,null,null,null,null,null,null,null,null,null,null,null,null,null,null,null,null,null,null,null,null,null,null,null,null,null,null,null,null,null,null,null,null,null,null,null,null,null,null,null,null,null,null,null,null,null,null,null,null,null,null,null,null,null,null,null,null,null,null,null,null,null,null,null,null,null,null,null,null,null,null,null,null,null,null,null,null,null,null,null,null,null,null,null,null,null,null,null,null,null,null,""]
[null,null,null,null,null,null,null,null,null,null,null,null,null,null,null,null,null,null,null,null,null,null,null,null,null,null,null,null,null,null,null,null,null,null,null,null,null,null,null,null,null,null,null,null,null,null,null,null,null,null,null,null,null,null,null,null,null,null,null,null,null,null,null,null,null,null,null,null,null,null,null,null,null,null,null,null,null,null,null,null,null,null,null,null,null,null,null,null,null,null,null,null,null,null,null,null,null,null,null,null,null,null,null,null,null,null,null,null,null,null,null,null,null,null,null,null,null,null,null,null,null,""]
[null,null,null,null,null,null,null,null,null,null,null,null,null,null,null,null,null,null,null,null,null,null,null,null,null,null,null,null,null,null,null,null,null,null,null,null,null,null,null,null,null,null,null,null,null,null,null,null,null,null,null,null,null,null,null,null,null,null,null,null,null,null,null,null,null,null,null,null,null,null,null,null,null,null,null,null,null,null,null,null,null,null,null,null,null,null,null,null,null,null,null,null,null,null,null,null,null,null,null,null,null,null,null,null,null,null,null,null,null,null,null,null,null,null,null,null,null,null,null,null,null,""]
[null,null,null,null,null,null,null,null,null,null,null,null,null,null,null,null,null,null,null,null,null,null,null,null,null,null,null,null,null,null,null,null,null,null,null,null,null,null,null,null,null,null,null,null,null,null,null,null,null,null,null,null,null,null,null,null,null,null,null,null,null,null,null,null,null,null,null,null,null,null,null,null,null,null,null,null,null,null,null,null,null,null,null,null,null,null,null,null,null,null,null,null,null,null,null,null,null,null,null,null,null,null,null,null,null,null,null,null,null,null,null,null,null,null,null,null,null,null,null,null,null,""]
[null,null,null,null,null,null,null,null,null,null,null,null,null,null,null,null,null,null,null,null,null,null,null,null,null,null,null,null,null,null,null,null,null,null,null,null,null,null,null,null,null,null,null,null,null,null,null,null,null,null,null,null,null,null,null,null,null,null,null,null,null,null,null,null,null,null,null,null,null,null,null,null,null,null,null,null,null,null,null,null,null,null,null,null,null,null,null,null,null,null,null,null,null,null,null,null,null,null,null,null,null,null,null,null,null,null,null,null,null,null,null,null,null,null,null,null,null,null,null,null,null,""]
[null,null,null,null,null,null,null,null,null,null,null,null,null,null,null,null,null,null,null,null,null,null,null,null,null,null,null,null,null,null,null,null,null,null,null,null,null,null,null,null,null,null,null,null,null,null,null,null,null,null,null,null,null,null,null,null,null,null,null,null,null,null,null,null,null,null,null,null,null,null,null,null,null,null,null,null,null,null,null,null,null,null,null,null,null,null,null,null,null,null,null,null,null,null,null,null,null,null,null,null,null,null,null,null,null,null,null,null,null,null,null,null,null,null,null,null,null,null,null,null,null,""]
[null,null,null,null,null,null,null,null,null,null,null,null,null,null,null,null,null,null,null,null,null,null,null,null,null,null,null,null,null,null,null,null,null,null,null,null,null,null,null,null,null,null,null,null,null,null,null,null,null,null,null,null,null,null,null,null,null,null,null,null,null,null,null,null,null,null,null,null,null,null,null,null,null,null,null,null,null,null,null,null,null,null,null,null,null,null,null,null,null,null,null,null,null,null,null,null,null,null,null,null,null,null,null,null,null,null,null,null,null,null,null,null,null,null,null,null,null,null,null,null,null,""]
[null,null,null,null,null,null,null,null,null,null,null,null,null,null,null,null,null,null,null,null,null,null,null,null,null,null,null,null,null,null,null,null,null,null,null,null,null,null,null,null,null,null,null,null,null,null,null,null,null,null,null,null,null,null,null,null,null,null,null,null,null,null,null,null,null,null,null,null,null,null,null,null,null,null,null,null,null,null,null,null,null,null,null,null,null,null,null,null,null,null,null,null,null,null,null,null,null,null,null,null,null,null,null,null,null,null,null,null,null,null,null,null,null,null,null,null,null,null,null,null,null,""]
[null,null,null,null,null,null,null,null,null,null,null,null,null,null,null,null,null,null,null,null,null,null,null,null,null,null,null,null,null,null,null,null,null,null,null,null,null,null,null,null,null,null,null,null,null,null,null,null,null,null,null,null,null,null,null,null,null,null,null,null,null,null,null,null,null,null,null,null,null,null,null,null,null,null,null,null,null,null,null,null,null,null,null,null,null,null,null,null,null,null,null,null,null,null,null,null,null,null,null,null,null,null,null,null,null,null,null,null,null,null,null,null,null,null,null,null,null,null,null,null,null,""]
[null,null,null,null,null,null,null,null,null,null,null,null,null,null,null,null,null,null,null,null,null,null,null,null,null,null,null,null,null,null,null,null,null,null,null,null,null,null,null,null,null,null,null,null,null,null,null,null,null,null,null,null,null,null,null,null,null,null,null,null,null,null,null,null,null,null,null,null,null,null,null,null,null,null,null,null,null,null,null,null,null,null,null,null,null,null,null,null,null,null,null,null,null,null,null,null,null,null,null,null,null,null,null,null,null,null,null,null,null,null,null,null,null,null,null,null,null,null,null,null,null,""]
[null,null,null,null,null,null,null,null,null,null,null,null,null,null,null,null,null,null,null,null,null,null,null,null,null,null,null,null,null,null,null,null,null,null,null,null,null,null,null,null,null,null,null,null,null,null,null,null,null,null,null,null,null,null,null,null,null,null,null,null,null,null,null,null,null,null,null,null,null,null,null,null,null,null,null,null,null,null,null,null,null,null,null,null,null,null,null,null,null,null,null,null,null,null,null,null,null,null,null,null,null,null,null,null,null,null,null,null,null,null,null,null,null,null,null,null,null,null,null,null,null,""]
[null,null,null,null,null,null,null,null,null,null,null,null,null,null,null,null,null,null,null,null,null,null,null,null,null,null,null,null,null,null,null,null,null,null,null,null,null,null,null,null,null,null,null,null,null,null,null,null,null,null,null,null,null,null,null,null,null,null,null,null,null,null,null,null,null,null,null,null,null,null,null,null,null,null,null,null,null,null,null,null,null,null,null,null,null,null,null,null,null,null,null,null,null,null,null,null,null,null,null,null,null,null,null,null,null,null,null,null,null,null,null,null,null,null,null,null,null,null,null,null,null,""]
[null,null,null,null,null,null,null,null,null,null,null,null,null,null,null,null,null,null,null,null,null,null,null,null,null,null,null,null,null,null,null,null,null,null,null,null,null,null,null,null,null,null,null,null,null,null,null,null,null,null,null,null,null,null,null,null,null,null,null,null,null,null,null,null,null,null,null,null,null,null,null,null,null,null,null,null,null,null,null,null,null,null,null,null,null,null,null,null,null,null,null,null,null,null,null,null,null,null,null,null,null,null,null,null,null,null,null,null,null,null,null,null,null,null,null,null,null,null,null,null,null,""]
[null,null,null,null,null,null,null,null,null,null,null,null,null,null,null,null,null,null,null,null,null,null,null,null,null,null,null,null,null,null,null,null,null,null,null,null,null,null,null,null,null,null,null,null,null,null,null,null,null,null,null,null,null,null,null,null,null,null,null,null,null,null,null,null,null,null,null,null,null,null,null,null,null,null,null,null,null,null,null,null,null,null,null,null,null,null,null,null,null,null,null,null,null,null,null,null,null,null,null,null,null,null,null,null,null,null,null,null,null,null,null,null,null,null,null,null,null,null,null,null,null,""]
[null,null,null,null,null,null,null,null,null,null,null,null,null,null,null,null,null,null,null,null,null,null,null,null,null,null,null,null,null,null,null,null,null,null,null,null,null,null,null,null,null,null,null,null,null,null,null,null,null,null,null,null,null,null,null,null,null,null,null,null,null,null,null,null,null,null,null,null,null,null,null,null,null,null,null,null,null,null,null,null,null,null,null,null,null,null,null,null,null,null,null,null,null,null,null,null,null,null,null,null,null,null,null,null,null,null,null,null,null,null,null,null,null,null,null,null,null,null,null,null,null,""]
[null,null,null,null,null,null,null,null,null,null,null,null,null,null,null,null,null,null,null,null,null,null,null,null,null,null,null,null,null,null,null,null,null,null,null,null,null,null,null,null,null,null,null,null,null,null,null,null,null,null,null,null,null,null,null,null,null,null,null,null,null,null,null,null,null,null,null,null,null,null,null,null,null,null,null,null,null,null,null,null,null,null,null,null,null,null,null,null,null,null,null,null,null,null,null,null,null,null,null,null,null,null,null,null,null,null,null,null,null,null,null,null,null,null,null,null,null,null,null,null,null,""]
[null,null,null,null,null,null,null,null,null,null,null,null,null,null,null,null,null,null,null,null,null,null,null,null,null,null,null,null,null,null,null,null,null,null,null,null,null,null,null,null,null,null,null,null,null,null,null,null,null,null,null,null,null,null,null,null,null,null,null,null,null,null,null,null,null,null,null,null,null,null,null,null,null,null,null,null,null,null,null,null,null,null,null,null,null,null,null,null,null,null,null,null,null,null,null,null,null,null,null,null,null,null,null,null,null,null,null,null,null,null,null,null,null,null,null,null,null,null,null,null,null,""]
[null,null,null,null,null,null,null,null,null,null,null,null,null,null,null,null,null,null,null,null,null,null,null,null,null,null,null,null,null,null,null,null,null,null,null,null,null,null,null,null,null,null,null,null,null,null,null,null,null,null,null,null,null,null,null,null,null,null,null,null,null,null,null,null,null,null,null,null,null,null,null,null,null,null,null,null,null,null,null,null,null,null,null,null,null,null,null,null,null,null,null,null,null,null,null,null,null,null,null,null,null,null,null,null,null,null,null,null,null,null,null,null,null,null,null,null,null,null,null,null,null,""]
[null,null,null,null,null,null,null,null,null,null,null,null,null,null,null,null,null,null,null,null,null,null,null,null,null,null,null,null,null,null,null,null,null,null,null,null,null,null,null,null,null,null,null,null,null,null,null,null,null,null,null,null,null,null,null,null,null,null,null,null,null,null,null,null,null,null,null,null,null,null,null,null,null,null,null,null,null,null,null,null,null,null,null,null,null,null,null,null,null,null,null,null,null,null,null,null,null,null,null,null,null,null,null,null,null,null,null,null,null,null,null,null,null,null,null,null,null,null,null,null,null,""]
[null,null,null,null,null,null,null,null,null,null,null,null,null,null,null,null,null,null,null,null,null,null,null,null,null,null,null,null,null,null,null,null,null,null,null,null,null,null,null,null,null,null,null,null,null,null,null,null,null,null,null,null,null,null,null,null,null,null,null,null,null,null,null,null,null,null,null,null,null,null,null,null,null,null,null,null,null,null,null,null,null,null,null,null,null,null,null,null,null,null,null,null,null,null,null,null,null,null,null,null,null,null,null,null,null,null,null,null,null,null,null,null,null,null,null,null,null,null,null,null,null,{"$f":"IFERROR(IF(DR259+1>$DS$1,\"\",DR259+1),\"\")","v":""}]
[null,null,null,null,null,null,null,null,null,null,null,null,null,null,null,null,null,null,null,null,null,null,null,null,null,null,null,null,null,null,null,null,null,null,null,null,null,null,null,null,null,null,null,null,null,null,null,null,null,null,null,null,null,null,null,null,null,null,null,null,null,null,null,null,null,null,null,null,null,null,null,null,null,null,null,null,null,null,null,null,null,null,null,null,null,null,null,null,null,null,null,null,null,null,null,null,null,null,null,null,null,null,null,null,null,null,null,null,null,null,null,null,null,null,null,null,null,null,null,null,null,""]
[null,null,null,null,null,null,null,null,null,null,null,null,null,null,null,null,null,null,null,null,null,null,null,null,null,null,null,null,null,null,null,null,null,null,null,null,null,null,null,null,null,null,null,null,null,null,null,null,null,null,null,null,null,null,null,null,null,null,null,null,null,null,null,null,null,null,null,null,null,null,null,null,null,null,null,null,null,null,null,null,null,null,null,null,null,null,null,null,null,null,null,null,null,null,null,null,null,null,null,null,null,null,null,null,null,null,null,null,null,null,null,null,null,null,null,null,null,null,null,null,null,""]
[null,null,null,null,null,null,null,null,null,null,null,null,null,null,null,null,null,null,null,null,null,null,null,null,null,null,null,null,null,null,null,null,null,null,null,null,null,null,null,null,null,null,null,null,null,null,null,null,null,null,null,null,null,null,null,null,null,null,null,null,null,null,null,null,null,null,null,null,null,null,null,null,null,null,null,null,null,null,null,null,null,null,null,null,null,null,null,null,null,null,null,null,null,null,null,null,null,null,null,null,null,null,null,null,null,null,null,null,null,null,null,null,null,null,null,null,null,null,null,null,null,""]
[null,null,null,null,null,null,null,null,null,null,null,null,null,null,null,null,null,null,null,null,null,null,null,null,null,null,null,null,null,null,null,null,null,null,null,null,null,null,null,null,null,null,null,null,null,null,null,null,null,null,null,null,null,null,null,null,null,null,null,null,null,null,null,null,null,null,null,null,null,null,null,null,null,null,null,null,null,null,null,null,null,null,null,null,null,null,null,null,null,null,null,null,null,null,null,null,null,null,null,null,null,null,null,null,null,null,null,null,null,null,null,null,null,null,null,null,null,null,null,null,null,""]
[null,null,null,null,null,null,null,null,null,null,null,null,null,null,null,null,null,null,null,null,null,null,null,null,null,null,null,null,null,null,null,null,null,null,null,null,null,null,null,null,null,null,null,null,null,null,null,null,null,null,null,null,null,null,null,null,null,null,null,null,null,null,null,null,null,null,null,null,null,null,null,null,null,null,null,null,null,null,null,null,null,null,null,null,null,null,null,null,null,null,null,null,null,null,null,null,null,null,null,null,null,null,null,null,null,null,null,null,null,null,null,null,null,null,null,null,null,null,null,null,null,""]
[null,null,null,null,null,null,null,null,null,null,null,null,null,null,null,null,null,null,null,null,null,null,null,null,null,null,null,null,null,null,null,null,null,null,null,null,null,null,null,null,null,null,null,null,null,null,null,null,null,null,null,null,null,null,null,null,null,null,null,null,null,null,null,null,null,null,null,null,null,null,null,null,null,null,null,null,null,null,null,null,null,null,null,null,null,null,null,null,null,null,null,null,null,null,null,null,null,null,null,null,null,null,null,null,null,null,null,null,null,null,null,null,null,null,null,null,null,null,null,null,null,""]
[null,null,null,null,null,null,null,null,null,null,null,null,null,null,null,null,null,null,null,null,null,null,null,null,null,null,null,null,null,null,null,null,null,null,null,null,null,null,null,null,null,null,null,null,null,null,null,null,null,null,null,null,null,null,null,null,null,null,null,null,null,null,null,null,null,null,null,null,null,null,null,null,null,null,null,null,null,null,null,null,null,null,null,null,null,null,null,null,null,null,null,null,null,null,null,null,null,null,null,null,null,null,null,null,null,null,null,null,null,null,null,null,null,null,null,null,null,null,null,null,null,""]
[null,null,null,null,null,null,null,null,null,null,null,null,null,null,null,null,null,null,null,null,null,null,null,null,null,null,null,null,null,null,null,null,null,null,null,null,null,null,null,null,null,null,null,null,null,null,null,null,null,null,null,null,null,null,null,null,null,null,null,null,null,null,null,null,null,null,null,null,null,null,null,null,null,null,null,null,null,null,null,null,null,null,null,null,null,null,null,null,null,null,null,null,null,null,null,null,null,null,null,null,null,null,null,null,null,null,null,null,null,null,null,null,null,null,null,null,null,null,null,null,null,""]
[null,null,null,null,null,null,null,null,null,null,null,null,null,null,null,null,null,null,null,null,null,null,null,null,null,null,null,null,null,null,null,null,null,null,null,null,null,null,null,null,null,null,null,null,null,null,null,null,null,null,null,null,null,null,null,null,null,null,null,null,null,null,null,null,null,null,null,null,null,null,null,null,null,null,null,null,null,null,null,null,null,null,null,null,null,null,null,null,null,null,null,null,null,null,null,null,null,null,null,null,null,null,null,null,null,null,null,null,null,null,null,null,null,null,null,null,null,null,null,null,null,""]
[null,null,null,null,null,null,null,null,null,null,null,null,null,null,null,null,null,null,null,null,null,null,null,null,null,null,null,null,null,null,null,null,null,null,null,null,null,null,null,null,null,null,null,null,null,null,null,null,null,null,null,null,null,null,null,null,null,null,null,null,null,null,null,null,null,null,null,null,null,null,null,null,null,null,null,null,null,null,null,null,null,null,null,null,null,null,null,null,null,null,null,null,null,null,null,null,null,null,null,null,null,null,null,null,null,null,null,null,null,null,null,null,null,null,null,null,null,null,null,null,null,""]
[null,null,null,null,null,null,null,null,null,null,null,null,null,null,null,null,null,null,null,null,null,null,null,null,null,null,null,null,null,null,null,null,null,null,null,null,null,null,null,null,null,null,null,null,null,null,null,null,null,null,null,null,null,null,null,null,null,null,null,null,null,null,null,null,null,null,null,null,null,null,null,null,null,null,null,null,null,null,null,null,null,null,null,null,null,null,null,null,null,null,null,null,null,null,null,null,null,null,null,null,null,null,null,null,null,null,null,null,null,null,null,null,null,null,null,null,null,null,null,null,null,""]
[null,null,null,null,null,null,null,null,null,null,null,null,null,null,null,null,null,null,null,null,null,null,null,null,null,null,null,null,null,null,null,null,null,null,null,null,null,null,null,null,null,null,null,null,null,null,null,null,null,null,null,null,null,null,null,null,null,null,null,null,null,null,null,null,null,null,null,null,null,null,null,null,null,null,null,null,null,null,null,null,null,null,null,null,null,null,null,null,null,null,null,null,null,null,null,null,null,null,null,null,null,null,null,null,null,null,null,null,null,null,null,null,null,null,null,null,null,null,null,null,null,""]
[null,null,null,null,null,null,null,null,null,null,null,null,null,null,null,null,null,null,null,null,null,null,null,null,null,null,null,null,null,null,null,null,null,null,null,null,null,null,null,null,null,null,null,null,null,null,null,null,null,null,null,null,null,null,null,null,null,null,null,null,null,null,null,null,null,null,null,null,null,null,null,null,null,null,null,null,null,null,null,null,null,null,null,null,null,null,null,null,null,null,null,null,null,null,null,null,null,null,null,null,null,null,null,null,null,null,null,null,null,null,null,null,null,null,null,null,null,null,null,null,null,""]
[null,null,null,null,null,null,null,null,null,null,null,null,null,null,null,null,null,null,null,null,null,null,null,null,null,null,null,null,null,null,null,null,null,null,null,null,null,null,null,null,null,null,null,null,null,null,null,null,null,null,null,null,null,null,null,null,null,null,null,null,null,null,null,null,null,null,null,null,null,null,null,null,null,null,null,null,null,null,null,null,null,null,null,null,null,null,null,null,null,null,null,null,null,null,null,null,null,null,null,null,null,null,null,null,null,null,null,null,null,null,null,null,null,null,null,null,null,null,null,null,null,""]
[null,null,null,null,null,null,null,null,null,null,null,null,null,null,null,null,null,null,null,null,null,null,null,null,null,null,null,null,null,null,null,null,null,null,null,null,null,null,null,null,null,null,null,null,null,null,null,null,null,null,null,null,null,null,null,null,null,null,null,null,null,null,null,null,null,null,null,null,null,null,null,null,null,null,null,null,null,null,null,null,null,null,null,null,null,null,null,null,null,null,null,null,null,null,null,null,null,null,null,null,null,null,null,null,null,null,null,null,null,null,null,null,null,null,null,null,null,null,null,null,null,""]
[null,null,null,null,null,null,null,null,null,null,null,null,null,null,null,null,null,null,null,null,null,null,null,null,null,null,null,null,null,null,null,null,null,null,null,null,null,null,null,null,null,null,null,null,null,null,null,null,null,null,null,null,null,null,null,null,null,null,null,null,null,null,null,null,null,null,null,null,null,null,null,null,null,null,null,null,null,null,null,null,null,null,null,null,null,null,null,null,null,null,null,null,null,null,null,null,null,null,null,null,null,null,null,null,null,null,null,null,null,null,null,null,null,null,null,null,null,null,null,null,null,""]
[null,null,null,null,null,null,null,null,null,null,null,null,null,null,null,null,null,null,null,null,null,null,null,null,null,null,null,null,null,null,null,null,null,null,null,null,null,null,null,null,null,null,null,null,null,null,null,null,null,null,null,null,null,null,null,null,null,null,null,null,null,null,null,null,null,null,null,null,null,null,null,null,null,null,null,null,null,null,null,null,null,null,null,null,null,null,null,null,null,null,null,null,null,null,null,null,null,null,null,null,null,null,null,null,null,null,null,null,null,null,null,null,null,null,null,null,null,null,null,null,null,""]
[null,null,null,null,null,null,null,null,null,null,null,null,null,null,null,null,null,null,null,null,null,null,null,null,null,null,null,null,null,null,null,null,null,null,null,null,null,null,null,null,null,null,null,null,null,null,null,null,null,null,null,null,null,null,null,null,null,null,null,null,null,null,null,null,null,null,null,null,null,null,null,null,null,null,null,null,null,null,null,null,null,null,null,null,null,null,null,null,null,null,null,null,null,null,null,null,null,null,null,null,null,null,null,null,null,null,null,null,null,null,null,null,null,null,null,null,null,null,null,null,null,""]
[null,null,null,null,null,null,null,null,null,null,null,null,null,null,null,null,null,null,null,null,null,null,null,null,null,null,null,null,null,null,null,null,null,null,null,null,null,null,null,null,null,null,null,null,null,null,null,null,null,null,null,null,null,null,null,null,null,null,null,null,null,null,null,null,null,null,null,null,null,null,null,null,null,null,null,null,null,null,null,null,null,null,null,null,null,null,null,null,null,null,null,null,null,null,null,null,null,null,null,null,null,null,null,null,null,null,null,null,null,null,null,null,null,null,null,null,null,null,null,null,null,""]
[null,null,null,null,null,null,null,null,null,null,null,null,null,null,null,null,null,null,null,null,null,null,null,null,null,null,null,null,null,null,null,null,null,null,null,null,null,null,null,null,null,null,null,null,null,null,null,null,null,null,null,null,null,null,null,null,null,null,null,null,null,null,null,null,null,null,null,null,null,null,null,null,null,null,null,null,null,null,null,null,null,null,null,null,null,null,null,null,null,null,null,null,null,null,null,null,null,null,null,null,null,null,null,null,null,null,null,null,null,null,null,null,null,null,null,null,null,null,null,null,null,""]
[null,null,null,null,null,null,null,null,null,null,null,null,null,null,null,null,null,null,null,null,null,null,null,null,null,null,null,null,null,null,null,null,null,null,null,null,null,null,null,null,null,null,null,null,null,null,null,null,null,null,null,null,null,null,null,null,null,null,null,null,null,null,null,null,null,null,null,null,null,null,null,null,null,null,null,null,null,null,null,null,null,null,null,null,null,null,null,null,null,null,null,null,null,null,null,null,null,null,null,null,null,null,null,null,null,null,null,null,null,null,null,null,null,null,null,null,null,null,null,null,null,""]
[null,null,null,null,null,null,null,null,null,null,null,null,null,null,null,null,null,null,null,null,null,null,null,null,null,null,null,null,null,null,null,null,null,null,null,null,null,null,null,null,null,null,null,null,null,null,null,null,null,null,null,null,null,null,null,null,null,null,null,null,null,null,null,null,null,null,null,null,null,null,null,null,null,null,null,null,null,null,null,null,null,null,null,null,null,null,null,null,null,null,null,null,null,null,null,null,null,null,null,null,null,null,null,null,null,null,null,null,null,null,null,null,null,null,null,null,null,null,null,null,null,""]
[null,null,null,null,null,null,null,null,null,null,null,null,null,null,null,null,null,null,null,null,null,null,null,null,null,null,null,null,null,null,null,null,null,null,null,null,null,null,null,null,null,null,null,null,null,null,null,null,null,null,null,null,null,null,null,null,null,null,null,null,null,null,null,null,null,null,null,null,null,null,null,null,null,null,null,null,null,null,null,null,null,null,null,null,null,null,null,null,null,null,null,null,null,null,null,null,null,null,null,null,null,null,null,null,null,null,null,null,null,null,null,null,null,null,null,null,null,null,null,null,null,""]
[null,null,null,null,null,null,null,null,null,null,null,null,null,null,null,null,null,null,null,null,null,null,null,null,null,null,null,null,null,null,null,null,null,null,null,null,null,null,null,null,null,null,null,null,null,null,null,null,null,null,null,null,null,null,null,null,null,null,null,null,null,null,null,null,null,null,null,null,null,null,null,null,null,null,null,null,null,null,null,null,null,null,null,null,null,null,null,null,null,null,null,null,null,null,null,null,null,null,null,null,null,null,null,null,null,null,null,null,null,null,null,null,null,null,null,null,null,null,null,null,null,""]
[null,null,null,null,null,null,null,null,null,null,null,null,null,null,null,null,null,null,null,null,null,null,null,null,null,null,null,null,null,null,null,null,null,null,null,null,null,null,null,null,null,null,null,null,null,null,null,null,null,null,null,null,null,null,null,null,null,null,null,null,null,null,null,null,null,null,null,null,null,null,null,null,null,null,null,null,null,null,null,null,null,null,null,null,null,null,null,null,null,null,null,null,null,null,null,null,null,null,null,null,null,null,null,null,null,null,null,null,null,null,null,null,null,null,null,null,null,null,null,null,null,""]
[null,null,null,null,null,null,null,null,null,null,null,null,null,null,null,null,null,null,null,null,null,null,null,null,null,null,null,null,null,null,null,null,null,null,null,null,null,null,null,null,null,null,null,null,null,null,null,null,null,null,null,null,null,null,null,null,null,null,null,null,null,null,null,null,null,null,null,null,null,null,null,null,null,null,null,null,null,null,null,null,null,null,null,null,null,null,null,null,null,null,null,null,null,null,null,null,null,null,null,null,null,null,null,null,null,null,null,null,null,null,null,null,null,null,null,null,null,null,null,null,null,""]
[null,null,null,null,null,null,null,null,null,null,null,null,null,null,null,null,null,null,null,null,null,null,null,null,null,null,null,null,null,null,null,null,null,null,null,null,null,null,null,null,null,null,null,null,null,null,null,null,null,null,null,null,null,null,null,null,null,null,null,null,null,null,null,null,null,null,null,null,null,null,null,null,null,null,null,null,null,null,null,null,null,null,null,null,null,null,null,null,null,null,null,null,null,null,null,null,null,null,null,null,null,null,null,null,null,null,null,null,null,null,null,null,null,null,null,null,null,null,null,null,null,""]
[null,null,null,null,null,null,null,null,null,null,null,null,null,null,null,null,null,null,null,null,null,null,null,null,null,null,null,null,null,null,null,null,null,null,null,null,null,null,null,null,null,null,null,null,null,null,null,null,null,null,null,null,null,null,null,null,null,null,null,null,null,null,null,null,null,null,null,null,null,null,null,null,null,null,null,null,null,null,null,null,null,null,null,null,null,null,null,null,null,null,null,null,null,null,null,null,null,null,null,null,null,null,null,null,null,null,null,null,null,null,null,null,null,null,null,null,null,null,null,null,null,""]
[null,null,null,null,null,null,null,null,null,null,null,null,null,null,null,null,null,null,null,null,null,null,null,null,null,null,null,null,null,null,null,null,null,null,null,null,null,null,null,null,null,null,null,null,null,null,null,null,null,null,null,null,null,null,null,null,null,null,null,null,null,null,null,null,null,null,null,null,null,null,null,null,null,null,null,null,null,null,null,null,null,null,null,null,null,null,null,null,null,null,null,null,null,null,null,null,null,null,null,null,null,null,null,null,null,null,null,null,null,null,null,null,null,null,null,null,null,null,null,null,null,""]
[null,null,null,null,null,null,null,null,null,null,null,null,null,null,null,null,null,null,null,null,null,null,null,null,null,null,null,null,null,null,null,null,null,null,null,null,null,null,null,null,null,null,null,null,null,null,null,null,null,null,null,null,null,null,null,null,null,null,null,null,null,null,null,null,null,null,null,null,null,null,null,null,null,null,null,null,null,null,null,null,null,null,null,null,null,null,null,null,null,null,null,null,null,null,null,null,null,null,null,null,null,null,null,null,null,null,null,null,null,null,null,null,null,null,null,null,null,null,null,null,null,""]
[null,null,null,null,null,null,null,null,null,null,null,null,null,null,null,null,null,null,null,null,null,null,null,null,null,null,null,null,null,null,null,null,null,null,null,null,null,null,null,null,null,null,null,null,null,null,null,null,null,null,null,null,null,null,null,null,null,null,null,null,null,null,null,null,null,null,null,null,null,null,null,null,null,null,null,null,null,null,null,null,null,null,null,null,null,null,null,null,null,null,null,null,null,null,null,null,null,null,null,null,null,null,null,null,null,null,null,null,null,null,null,null,null,null,null,null,null,null,null,null,null,""]
[null,null,null,null,null,null,null,null,null,null,null,null,null,null,null,null,null,null,null,null,null,null,null,null,null,null,null,null,null,null,null,null,null,null,null,null,null,null,null,null,null,null,null,null,null,null,null,null,null,null,null,null,null,null,null,null,null,null,null,null,null,null,null,null,null,null,null,null,null,null,null,null,null,null,null,null,null,null,null,null,null,null,null,null,null,null,null,null,null,null,null,null,null,null,null,null,null,null,null,null,null,null,null,null,null,null,null,null,null,null,null,null,null,null,null,null,null,null,null,null,null,""]
[null,null,null,null,null,null,null,null,null,null,null,null,null,null,null,null,null,null,null,null,null,null,null,null,null,null,null,null,null,null,null,null,null,null,null,null,null,null,null,null,null,null,null,null,null,null,null,null,null,null,null,null,null,null,null,null,null,null,null,null,null,null,null,null,null,null,null,null,null,null,null,null,null,null,null,null,null,null,null,null,null,null,null,null,null,null,null,null,null,null,null,null,null,null,null,null,null,null,null,null,null,null,null,null,null,null,null,null,null,null,null,null,null,null,null,null,null,null,null,null,null,""]
[null,null,null,null,null,null,null,null,null,null,null,null,null,null,null,null,null,null,null,null,null,null,null,null,null,null,null,null,null,null,null,null,null,null,null,null,null,null,null,null,null,null,null,null,null,null,null,null,null,null,null,null,null,null,null,null,null,null,null,null,null,null,null,null,null,null,null,null,null,null,null,null,null,null,null,null,null,null,null,null,null,null,null,null,null,null,null,null,null,null,null,null,null,null,null,null,null,null,null,null,null,null,null,null,null,null,null,null,null,null,null,null,null,null,null,null,null,null,null,null,null,""]
[null,null,null,null,null,null,null,null,null,null,null,null,null,null,null,null,null,null,null,null,null,null,null,null,null,null,null,null,null,null,null,null,null,null,null,null,null,null,null,null,null,null,null,null,null,null,null,null,null,null,null,null,null,null,null,null,null,null,null,null,null,null,null,null,null,null,null,null,null,null,null,null,null,null,null,null,null,null,null,null,null,null,null,null,null,null,null,null,null,null,null,null,null,null,null,null,null,null,null,null,null,null,null,null,null,null,null,null,null,null,null,null,null,null,null,null,null,null,null,null,null,""]
[null,null,null,null,null,null,null,null,null,null,null,null,null,null,null,null,null,null,null,null,null,null,null,null,null,null,null,null,null,null,null,null,null,null,null,null,null,null,null,null,null,null,null,null,null,null,null,null,null,null,null,null,null,null,null,null,null,null,null,null,null,null,null,null,null,null,null,null,null,null,null,null,null,null,null,null,null,null,null,null,null,null,null,null,null,null,null,null,null,null,null,null,null,null,null,null,null,null,null,null,null,null,null,null,null,null,null,null,null,null,null,null,null,null,null,null,null,null,null,null,null,""]
[null,null,null,null,null,null,null,null,null,null,null,null,null,null,null,null,null,null,null,null,null,null,null,null,null,null,null,null,null,null,null,null,null,null,null,null,null,null,null,null,null,null,null,null,null,null,null,null,null,null,null,null,null,null,null,null,null,null,null,null,null,null,null,null,null,null,null,null,null,null,null,null,null,null,null,null,null,null,null,null,null,null,null,null,null,null,null,null,null,null,null,null,null,null,null,null,null,null,null,null,null,null,null,null,null,null,null,null,null,null,null,null,null,null,null,null,null,null,null,null,null,""]
[null,null,null,null,null,null,null,null,null,null,null,null,null,null,null,null,null,null,null,null,null,null,null,null,null,null,null,null,null,null,null,null,null,null,null,null,null,null,null,null,null,null,null,null,null,null,null,null,null,null,null,null,null,null,null,null,null,null,null,null,null,null,null,null,null,null,null,null,null,null,null,null,null,null,null,null,null,null,null,null,null,null,null,null,null,null,null,null,null,null,null,null,null,null,null,null,null,null,null,null,null,null,null,null,null,null,null,null,null,null,null,null,null,null,null,null,null,null,null,null,null,""]
[null,null,null,null,null,null,null,null,null,null,null,null,null,null,null,null,null,null,null,null,null,null,null,null,null,null,null,null,null,null,null,null,null,null,null,null,null,null,null,null,null,null,null,null,null,null,null,null,null,null,null,null,null,null,null,null,null,null,null,null,null,null,null,null,null,null,null,null,null,null,null,null,null,null,null,null,null,null,null,null,null,null,null,null,null,null,null,null,null,null,null,null,null,null,null,null,null,null,null,null,null,null,null,null,null,null,null,null,null,null,null,null,null,null,null,null,null,null,null,null,null,""]
[null,null,null,null,null,null,null,null,null,null,null,null,null,null,null,null,null,null,null,null,null,null,null,null,null,null,null,null,null,null,null,null,null,null,null,null,null,null,null,null,null,null,null,null,null,null,null,null,null,null,null,null,null,null,null,null,null,null,null,null,null,null,null,null,null,null,null,null,null,null,null,null,null,null,null,null,null,null,null,null,null,null,null,null,null,null,null,null,null,null,null,null,null,null,null,null,null,null,null,null,null,null,null,null,null,null,null,null,null,null,null,null,null,null,null,null,null,null,null,null,null,""]
[null,null,null,null,null,null,null,null,null,null,null,null,null,null,null,null,null,null,null,null,null,null,null,null,null,null,null,null,null,null,null,null,null,null,null,null,null,null,null,null,null,null,null,null,null,null,null,null,null,null,null,null,null,null,null,null,null,null,null,null,null,null,null,null,null,null,null,null,null,null,null,null,null,null,null,null,null,null,null,null,null,null,null,null,null,null,null,null,null,null,null,null,null,null,null,null,null,null,null,null,null,null,null,null,null,null,null,null,null,null,null,null,null,null,null,null,null,null,null,null,null,""]
[null,null,null,null,null,null,null,null,null,null,null,null,null,null,null,null,null,null,null,null,null,null,null,null,null,null,null,null,null,null,null,null,null,null,null,null,null,null,null,null,null,null,null,null,null,null,null,null,null,null,null,null,null,null,null,null,null,null,null,null,null,null,null,null,null,null,null,null,null,null,null,null,null,null,null,null,null,null,null,null,null,null,null,null,null,null,null,null,null,null,null,null,null,null,null,null,null,null,null,null,null,null,null,null,null,null,null,null,null,null,null,null,null,null,null,null,null,null,null,null,null,""]
[null,null,null,null,null,null,null,null,null,null,null,null,null,null,null,null,null,null,null,null,null,null,null,null,null,null,null,null,null,null,null,null,null,null,null,null,null,null,null,null,null,null,null,null,null,null,null,null,null,null,null,null,null,null,null,null,null,null,null,null,null,null,null,null,null,null,null,null,null,null,null,null,null,null,null,null,null,null,null,null,null,null,null,null,null,null,null,null,null,null,null,null,null,null,null,null,null,null,null,null,null,null,null,null,null,null,null,null,null,null,null,null,null,null,null,null,null,null,null,null,null,""]
[null,null,null,null,null,null,null,null,null,null,null,null,null,null,null,null,null,null,null,null,null,null,null,null,null,null,null,null,null,null,null,null,null,null,null,null,null,null,null,null,null,null,null,null,null,null,null,null,null,null,null,null,null,null,null,null,null,null,null,null,null,null,null,null,null,null,null,null,null,null,null,null,null,null,null,null,null,null,null,null,null,null,null,null,null,null,null,null,null,null,null,null,null,null,null,null,null,null,null,null,null,null,null,null,null,null,null,null,null,null,null,null,null,null,null,null,null,null,null,null,null,""]
[null,null,null,null,null,null,null,null,null,null,null,null,null,null,null,null,null,null,null,null,null,null,null,null,null,null,null,null,null,null,null,null,null,null,null,null,null,null,null,null,null,null,null,null,null,null,null,null,null,null,null,null,null,null,null,null,null,null,null,null,null,null,null,null,null,null,null,null,null,null,null,null,null,null,null,null,null,null,null,null,null,null,null,null,null,null,null,null,null,null,null,null,null,null,null,null,null,null,null,null,null,null,null,null,null,null,null,null,null,null,null,null,null,null,null,null,null,null,null,null,null,""]
[null,null,null,null,null,null,null,null,null,null,null,null,null,null,null,null,null,null,null,null,null,null,null,null,null,null,null,null,null,null,null,null,null,null,null,null,null,null,null,null,null,null,null,null,null,null,null,null,null,null,null,null,null,null,null,null,null,null,null,null,null,null,null,null,null,null,null,null,null,null,null,null,null,null,null,null,null,null,null,null,null,null,null,null,null,null,null,null,null,null,null,null,null,null,null,null,null,null,null,null,null,null,null,null,null,null,null,null,null,null,null,null,null,null,null,null,null,null,null,null,null,""]
[null,null,null,null,null,null,null,null,null,null,null,null,null,null,null,null,null,null,null,null,null,null,null,null,null,null,null,null,null,null,null,null,null,null,null,null,null,null,null,null,null,null,null,null,null,null,null,null,null,null,null,null,null,null,null,null,null,null,null,null,null,null,null,null,null,null,null,null,null,null,null,null,null,null,null,null,null,null,null,null,null,null,null,null,null,null,null,null,null,null,null,null,null,null,null,null,null,null,null,null,null,null,null,null,null,null,null,null,null,null,null,null,null,null,null,null,null,null,null,null,null,""]
[null,null,null,null,null,null,null,null,null,null,null,null,null,null,null,null,null,null,null,null,null,null,null,null,null,null,null,null,null,null,null,null,null,null,null,null,null,null,null,null,null,null,null,null,null,null,null,null,null,null,null,null,null,null,null,null,null,null,null,null,null,null,null,null,null,null,null,null,null,null,null,null,null,null,null,null,null,null,null,null,null,null,null,null,null,null,null,null,null,null,null,null,null,null,null,null,null,null,null,null,null,null,null,null,null,null,null,null,null,null,null,null,null,null,null,null,null,null,null,null,null,""]
[null,null,null,null,null,null,null,null,null,null,null,null,null,null,null,null,null,null,null,null,null,null,null,null,null,null,null,null,null,null,null,null,null,null,null,null,null,null,null,null,null,null,null,null,null,null,null,null,null,null,null,null,null,null,null,null,null,null,null,null,null,null,null,null,null,null,null,null,null,null,null,null,null,null,null,null,null,null,null,null,null,null,null,null,null,null,null,null,null,null,null,null,null,null,null,null,null,null,null,null,null,null,null,null,null,null,null,null,null,null,null,null,null,null,null,null,null,null,null,null,null,""]
[null,null,null,null,null,null,null,null,null,null,null,null,null,null,null,null,null,null,null,null,null,null,null,null,null,null,null,null,null,null,null,null,null,null,null,null,null,null,null,null,null,null,null,null,null,null,null,null,null,null,null,null,null,null,null,null,null,null,null,null,null,null,null,null,null,null,null,null,null,null,null,null,null,null,null,null,null,null,null,null,null,null,null,null,null,null,null,null,null,null,null,null,null,null,null,null,null,null,null,null,null,null,null,null,null,null,null,null,null,null,null,null,null,null,null,null,null,null,null,null,null,""]
[null,null,null,null,null,null,null,null,null,null,null,null,null,null,null,null,null,null,null,null,null,null,null,null,null,null,null,null,null,null,null,null,null,null,null,null,null,null,null,null,null,null,null,null,null,null,null,null,null,null,null,null,null,null,null,null,null,null,null,null,null,null,null,null,null,null,null,null,null,null,null,null,null,null,null,null,null,null,null,null,null,null,null,null,null,null,null,null,null,null,null,null,null,null,null,null,null,null,null,null,null,null,null,null,null,null,null,null,null,null,null,null,null,null,null,null,null,null,null,null,null,""]
[null,null,null,null,null,null,null,null,null,null,null,null,null,null,null,null,null,null,null,null,null,null,null,null,null,null,null,null,null,null,null,null,null,null,null,null,null,null,null,null,null,null,null,null,null,null,null,null,null,null,null,null,null,null,null,null,null,null,null,null,null,null,null,null,null,null,null,null,null,null,null,null,null,null,null,null,null,null,null,null,null,null,null,null,null,null,null,null,null,null,null,null,null,null,null,null,null,null,null,null,null,null,null,null,null,null,null,null,null,null,null,null,null,null,null,null,null,null,null,null,null,""]
[null,null,null,null,null,null,null,null,null,null,null,null,null,null,null,null,null,null,null,null,null,null,null,null,null,null,null,null,null,null,null,null,null,null,null,null,null,null,null,null,null,null,null,null,null,null,null,null,null,null,null,null,null,null,null,null,null,null,null,null,null,null,null,null,null,null,null,null,null,null,null,null,null,null,null,null,null,null,null,null,null,null,null,null,null,null,null,null,null,null,null,null,null,null,null,null,null,null,null,null,null,null,null,null,null,null,null,null,null,null,null,null,null,null,null,null,null,null,null,null,null,""]
[null,null,null,null,null,null,null,null,null,null,null,null,null,null,null,null,null,null,null,null,null,null,null,null,null,null,null,null,null,null,null,null,null,null,null,null,null,null,null,null,null,null,null,null,null,null,null,null,null,null,null,null,null,null,null,null,null,null,null,null,null,null,null,null,null,null,null,null,null,null,null,null,null,null,null,null,null,null,null,null,null,null,null,null,null,null,null,null,null,null,null,null,null,null,null,null,null,null,null,null,null,null,null,null,null,null,null,null,null,null,null,null,null,null,null,null,null,null,null,null,null,""]
[null,null,null,null,null,null,null,null,null,null,null,null,null,null,null,null,null,null,null,null,null,null,null,null,null,null,null,null,null,null,null,null,null,null,null,null,null,null,null,null,null,null,null,null,null,null,null,null,null,null,null,null,null,null,null,null,null,null,null,null,null,null,null,null,null,null,null,null,null,null,null,null,null,null,null,null,null,null,null,null,null,null,null,null,null,null,null,null,null,null,null,null,null,null,null,null,null,null,null,null,null,null,null,null,null,null,null,null,null,null,null,null,null,null,null,null,null,null,null,null,null,""]
[null,null,null,null,null,null,null,null,null,null,null,null,null,null,null,null,null,null,null,null,null,null,null,null,null,null,null,null,null,null,null,null,null,null,null,null,null,null,null,null,null,null,null,null,null,null,null,null,null,null,null,null,null,null,null,null,null,null,null,null,null,null,null,null,null,null,null,null,null,null,null,null,null,null,null,null,null,null,null,null,null,null,null,null,null,null,null,null,null,null,null,null,null,null,null,null,null,null,null,null,null,null,null,null,null,null,null,null,null,null,null,null,null,null,null,null,null,null,null,null,null,""]
[null,null,null,null,null,null,null,null,null,null,null,null,null,null,null,null,null,null,null,null,null,null,null,null,null,null,null,null,null,null,null,null,null,null,null,null,null,null,null,null,null,null,null,null,null,null,null,null,null,null,null,null,null,null,null,null,null,null,null,null,null,null,null,null,null,null,null,null,null,null,null,null,null,null,null,null,null,null,null,null,null,null,null,null,null,null,null,null,null,null,null,null,null,null,null,null,null,null,null,null,null,null,null,null,null,null,null,null,null,null,null,null,null,null,null,null,null,null,null,null,null,""]
[null,null,null,null,null,null,null,null,null,null,null,null,null,null,null,null,null,null,null,null,null,null,null,null,null,null,null,null,null,null,null,null,null,null,null,null,null,null,null,null,null,null,null,null,null,null,null,null,null,null,null,null,null,null,null,null,null,null,null,null,null,null,null,null,null,null,null,null,null,null,null,null,null,null,null,null,null,null,null,null,null,null,null,null,null,null,null,null,null,null,null,null,null,null,null,null,null,null,null,null,null,null,null,null,null,null,null,null,null,null,null,null,null,null,null,null,null,null,null,null,null,""]
[null,null,null,null,null,null,null,null,null,null,null,null,null,null,null,null,null,null,null,null,null,null,null,null,null,null,null,null,null,null,null,null,null,null,null,null,null,null,null,null,null,null,null,null,null,null,null,null,null,null,null,null,null,null,null,null,null,null,null,null,null,null,null,null,null,null,null,null,null,null,null,null,null,null,null,null,null,null,null,null,null,null,null,null,null,null,null,null,null,null,null,null,null,null,null,null,null,null,null,null,null,null,null,null,null,null,null,null,null,null,null,null,null,null,null,null,null,null,null,null,null,""]
[null,null,null,null,null,null,null,null,null,null,null,null,null,null,null,null,null,null,null,null,null,null,null,null,null,null,null,null,null,null,null,null,null,null,null,null,null,null,null,null,null,null,null,null,null,null,null,null,null,null,null,null,null,null,null,null,null,null,null,null,null,null,null,null,null,null,null,null,null,null,null,null,null,null,null,null,null,null,null,null,null,null,null,null,null,null,null,null,null,null,null,null,null,null,null,null,null,null,null,null,null,null,null,null,null,null,null,null,null,null,null,null,null,null,null,null,null,null,null,null,null,""]
[null,null,null,null,null,null,null,null,null,null,null,null,null,null,null,null,null,null,null,null,null,null,null,null,null,null,null,null,null,null,null,null,null,null,null,null,null,null,null,null,null,null,null,null,null,null,null,null,null,null,null,null,null,null,null,null,null,null,null,null,null,null,null,null,null,null,null,null,null,null,null,null,null,null,null,null,null,null,null,null,null,null,null,null,null,null,null,null,null,null,null,null,null,null,null,null,null,null,null,null,null,null,null,null,null,null,null,null,null,null,null,null,null,null,null,null,null,null,null,null,null,""]
[null,null,null,null,null,null,null,null,null,null,null,null,null,null,null,null,null,null,null,null,null,null,null,null,null,null,null,null,null,null,null,null,null,null,null,null,null,null,null,null,null,null,null,null,null,null,null,null,null,null,null,null,null,null,null,null,null,null,null,null,null,null,null,null,null,null,null,null,null,null,null,null,null,null,null,null,null,null,null,null,null,null,null,null,null,null,null,null,null,null,null,null,null,null,null,null,null,null,null,null,null,null,null,null,null,null,null,null,null,null,null,null,null,null,null,null,null,null,null,null,null,""]
[null,null,null,null,null,null,null,null,null,null,null,null,null,null,null,null,null,null,null,null,null,null,null,null,null,null,null,null,null,null,null,null,null,null,null,null,null,null,null,null,null,null,null,null,null,null,null,null,null,null,null,null,null,null,null,null,null,null,null,null,null,null,null,null,null,null,null,null,null,null,null,null,null,null,null,null,null,null,null,null,null,null,null,null,null,null,null,null,null,null,null,null,null,null,null,null,null,null,null,null,null,null,null,null,null,null,null,null,null,null,null,null,null,null,null,null,null,null,null,null,null,""]
[null,null,null,null,null,null,null,null,null,null,null,null,null,null,null,null,null,null,null,null,null,null,null,null,null,null,null,null,null,null,null,null,null,null,null,null,null,null,null,null,null,null,null,null,null,null,null,null,null,null,null,null,null,null,null,null,null,null,null,null,null,null,null,null,null,null,null,null,null,null,null,null,null,null,null,null,null,null,null,null,null,null,null,null,null,null,null,null,null,null,null,null,null,null,null,null,null,null,null,null,null,null,null,null,null,null,null,null,null,null,null,null,null,null,null,null,null,null,null,null,null,{"$f":"IFERROR(IF(DR323+1>$DS$1,\"\",DR323+1),\"\")","v":""}]
[null,null,null,null,null,null,null,null,null,null,null,null,null,null,null,null,null,null,null,null,null,null,null,null,null,null,null,null,null,null,null,null,null,null,null,null,null,null,null,null,null,null,null,null,null,null,null,null,null,null,null,null,null,null,null,null,null,null,null,null,null,null,null,null,null,null,null,null,null,null,null,null,null,null,null,null,null,null,null,null,null,null,null,null,null,null,null,null,null,null,null,null,null,null,null,null,null,null,null,null,null,null,null,null,null,null,null,null,null,null,null,null,null,null,null,null,null,null,null,null,null,""]
[null,null,null,null,null,null,null,null,null,null,null,null,null,null,null,null,null,null,null,null,null,null,null,null,null,null,null,null,null,null,null,null,null,null,null,null,null,null,null,null,null,null,null,null,null,null,null,null,null,null,null,null,null,null,null,null,null,null,null,null,null,null,null,null,null,null,null,null,null,null,null,null,null,null,null,null,null,null,null,null,null,null,null,null,null,null,null,null,null,null,null,null,null,null,null,null,null,null,null,null,null,null,null,null,null,null,null,null,null,null,null,null,null,null,null,null,null,null,null,null,null,""]
[null,null,null,null,null,null,null,null,null,null,null,null,null,null,null,null,null,null,null,null,null,null,null,null,null,null,null,null,null,null,null,null,null,null,null,null,null,null,null,null,null,null,null,null,null,null,null,null,null,null,null,null,null,null,null,null,null,null,null,null,null,null,null,null,null,null,null,null,null,null,null,null,null,null,null,null,null,null,null,null,null,null,null,null,null,null,null,null,null,null,null,null,null,null,null,null,null,null,null,null,null,null,null,null,null,null,null,null,null,null,null,null,null,null,null,null,null,null,null,null,null,""]
[null,null,null,null,null,null,null,null,null,null,null,null,null,null,null,null,null,null,null,null,null,null,null,null,null,null,null,null,null,null,null,null,null,null,null,null,null,null,null,null,null,null,null,null,null,null,null,null,null,null,null,null,null,null,null,null,null,null,null,null,null,null,null,null,null,null,null,null,null,null,null,null,null,null,null,null,null,null,null,null,null,null,null,null,null,null,null,null,null,null,null,null,null,null,null,null,null,null,null,null,null,null,null,null,null,null,null,null,null,null,null,null,null,null,null,null,null,null,null,null,null,""]
[null,null,null,null,null,null,null,null,null,null,null,null,null,null,null,null,null,null,null,null,null,null,null,null,null,null,null,null,null,null,null,null,null,null,null,null,null,null,null,null,null,null,null,null,null,null,null,null,null,null,null,null,null,null,null,null,null,null,null,null,null,null,null,null,null,null,null,null,null,null,null,null,null,null,null,null,null,null,null,null,null,null,null,null,null,null,null,null,null,null,null,null,null,null,null,null,null,null,null,null,null,null,null,null,null,null,null,null,null,null,null,null,null,null,null,null,null,null,null,null,null,""]
[null,null,null,null,null,null,null,null,null,null,null,null,null,null,null,null,null,null,null,null,null,null,null,null,null,null,null,null,null,null,null,null,null,null,null,null,null,null,null,null,null,null,null,null,null,null,null,null,null,null,null,null,null,null,null,null,null,null,null,null,null,null,null,null,null,null,null,null,null,null,null,null,null,null,null,null,null,null,null,null,null,null,null,null,null,null,null,null,null,null,null,null,null,null,null,null,null,null,null,null,null,null,null,null,null,null,null,null,null,null,null,null,null,null,null,null,null,null,null,null,null,""]
[null,null,null,null,null,null,null,null,null,null,null,null,null,null,null,null,null,null,null,null,null,null,null,null,null,null,null,null,null,null,null,null,null,null,null,null,null,null,null,null,null,null,null,null,null,null,null,null,null,null,null,null,null,null,null,null,null,null,null,null,null,null,null,null,null,null,null,null,null,null,null,null,null,null,null,null,null,null,null,null,null,null,null,null,null,null,null,null,null,null,null,null,null,null,null,null,null,null,null,null,null,null,null,null,null,null,null,null,null,null,null,null,null,null,null,null,null,null,null,null,null,""]
[null,null,null,null,null,null,null,null,null,null,null,null,null,null,null,null,null,null,null,null,null,null,null,null,null,null,null,null,null,null,null,null,null,null,null,null,null,null,null,null,null,null,null,null,null,null,null,null,null,null,null,null,null,null,null,null,null,null,null,null,null,null,null,null,null,null,null,null,null,null,null,null,null,null,null,null,null,null,null,null,null,null,null,null,null,null,null,null,null,null,null,null,null,null,null,null,null,null,null,null,null,null,null,null,null,null,null,null,null,null,null,null,null,null,null,null,null,null,null,null,null,""]
[null,null,null,null,null,null,null,null,null,null,null,null,null,null,null,null,null,null,null,null,null,null,null,null,null,null,null,null,null,null,null,null,null,null,null,null,null,null,null,null,null,null,null,null,null,null,null,null,null,null,null,null,null,null,null,null,null,null,null,null,null,null,null,null,null,null,null,null,null,null,null,null,null,null,null,null,null,null,null,null,null,null,null,null,null,null,null,null,null,null,null,null,null,null,null,null,null,null,null,null,null,null,null,null,null,null,null,null,null,null,null,null,null,null,null,null,null,null,null,null,null,""]
[null,null,null,null,null,null,null,null,null,null,null,null,null,null,null,null,null,null,null,null,null,null,null,null,null,null,null,null,null,null,null,null,null,null,null,null,null,null,null,null,null,null,null,null,null,null,null,null,null,null,null,null,null,null,null,null,null,null,null,null,null,null,null,null,null,null,null,null,null,null,null,null,null,null,null,null,null,null,null,null,null,null,null,null,null,null,null,null,null,null,null,null,null,null,null,null,null,null,null,null,null,null,null,null,null,null,null,null,null,null,null,null,null,null,null,null,null,null,null,null,null,""]
[null,null,null,null,null,null,null,null,null,null,null,null,null,null,null,null,null,null,null,null,null,null,null,null,null,null,null,null,null,null,null,null,null,null,null,null,null,null,null,null,null,null,null,null,null,null,null,null,null,null,null,null,null,null,null,null,null,null,null,null,null,null,null,null,null,null,null,null,null,null,null,null,null,null,null,null,null,null,null,null,null,null,null,null,null,null,null,null,null,null,null,null,null,null,null,null,null,null,null,null,null,null,null,null,null,null,null,null,null,null,null,null,null,null,null,null,null,null,null,null,null,""]
[null,null,null,null,null,null,null,null,null,null,null,null,null,null,null,null,null,null,null,null,null,null,null,null,null,null,null,null,null,null,null,null,null,null,null,null,null,null,null,null,null,null,null,null,null,null,null,null,null,null,null,null,null,null,null,null,null,null,null,null,null,null,null,null,null,null,null,null,null,null,null,null,null,null,null,null,null,null,null,null,null,null,null,null,null,null,null,null,null,null,null,null,null,null,null,null,null,null,null,null,null,null,null,null,null,null,null,null,null,null,null,null,null,null,null,null,null,null,null,null,null,""]
[null,null,null,null,null,null,null,null,null,null,null,null,null,null,null,null,null,null,null,null,null,null,null,null,null,null,null,null,null,null,null,null,null,null,null,null,null,null,null,null,null,null,null,null,null,null,null,null,null,null,null,null,null,null,null,null,null,null,null,null,null,null,null,null,null,null,null,null,null,null,null,null,null,null,null,null,null,null,null,null,null,null,null,null,null,null,null,null,null,null,null,null,null,null,null,null,null,null,null,null,null,null,null,null,null,null,null,null,null,null,null,null,null,null,null,null,null,null,null,null,null,""]
[null,null,null,null,null,null,null,null,null,null,null,null,null,null,null,null,null,null,null,null,null,null,null,null,null,null,null,null,null,null,null,null,null,null,null,null,null,null,null,null,null,null,null,null,null,null,null,null,null,null,null,null,null,null,null,null,null,null,null,null,null,null,null,null,null,null,null,null,null,null,null,null,null,null,null,null,null,null,null,null,null,null,null,null,null,null,null,null,null,null,null,null,null,null,null,null,null,null,null,null,null,null,null,null,null,null,null,null,null,null,null,null,null,null,null,null,null,null,null,null,null,""]
[null,null,null,null,null,null,null,null,null,null,null,null,null,null,null,null,null,null,null,null,null,null,null,null,null,null,null,null,null,null,null,null,null,null,null,null,null,null,null,null,null,null,null,null,null,null,null,null,null,null,null,null,null,null,null,null,null,null,null,null,null,null,null,null,null,null,null,null,null,null,null,null,null,null,null,null,null,null,null,null,null,null,null,null,null,null,null,null,null,null,null,null,null,null,null,null,null,null,null,null,null,null,null,null,null,null,null,null,null,null,null,null,null,null,null,null,null,null,null,null,null,""]
[null,null,null,null,null,null,null,null,null,null,null,null,null,null,null,null,null,null,null,null,null,null,null,null,null,null,null,null,null,null,null,null,null,null,null,null,null,null,null,null,null,null,null,null,null,null,null,null,null,null,null,null,null,null,null,null,null,null,null,null,null,null,null,null,null,null,null,null,null,null,null,null,null,null,null,null,null,null,null,null,null,null,null,null,null,null,null,null,null,null,null,null,null,null,null,null,null,null,null,null,null,null,null,null,null,null,null,null,null,null,null,null,null,null,null,null,null,null,null,null,null,""]
[null,null,null,null,null,null,null,null,null,null,null,null,null,null,null,null,null,null,null,null,null,null,null,null,null,null,null,null,null,null,null,null,null,null,null,null,null,null,null,null,null,null,null,null,null,null,null,null,null,null,null,null,null,null,null,null,null,null,null,null,null,null,null,null,null,null,null,null,null,null,null,null,null,null,null,null,null,null,null,null,null,null,null,null,null,null,null,null,null,null,null,null,null,null,null,null,null,null,null,null,null,null,null,null,null,null,null,null,null,null,null,null,null,null,null,null,null,null,null,null,null,""]
[null,null,null,null,null,null,null,null,null,null,null,null,null,null,null,null,null,null,null,null,null,null,null,null,null,null,null,null,null,null,null,null,null,null,null,null,null,null,null,null,null,null,null,null,null,null,null,null,null,null,null,null,null,null,null,null,null,null,null,null,null,null,null,null,null,null,null,null,null,null,null,null,null,null,null,null,null,null,null,null,null,null,null,null,null,null,null,null,null,null,null,null,null,null,null,null,null,null,null,null,null,null,null,null,null,null,null,null,null,null,null,null,null,null,null,null,null,null,null,null,null,""]
[null,null,null,null,null,null,null,null,null,null,null,null,null,null,null,null,null,null,null,null,null,null,null,null,null,null,null,null,null,null,null,null,null,null,null,null,null,null,null,null,null,null,null,null,null,null,null,null,null,null,null,null,null,null,null,null,null,null,null,null,null,null,null,null,null,null,null,null,null,null,null,null,null,null,null,null,null,null,null,null,null,null,null,null,null,null,null,null,null,null,null,null,null,null,null,null,null,null,null,null,null,null,null,null,null,null,null,null,null,null,null,null,null,null,null,null,null,null,null,null,null,""]
[null,null,null,null,null,null,null,null,null,null,null,null,null,null,null,null,null,null,null,null,null,null,null,null,null,null,null,null,null,null,null,null,null,null,null,null,null,null,null,null,null,null,null,null,null,null,null,null,null,null,null,null,null,null,null,null,null,null,null,null,null,null,null,null,null,null,null,null,null,null,null,null,null,null,null,null,null,null,null,null,null,null,null,null,null,null,null,null,null,null,null,null,null,null,null,null,null,null,null,null,null,null,null,null,null,null,null,null,null,null,null,null,null,null,null,null,null,null,null,null,null,""]
[null,null,null,null,null,null,null,null,null,null,null,null,null,null,null,null,null,null,null,null,null,null,null,null,null,null,null,null,null,null,null,null,null,null,null,null,null,null,null,null,null,null,null,null,null,null,null,null,null,null,null,null,null,null,null,null,null,null,null,null,null,null,null,null,null,null,null,null,null,null,null,null,null,null,null,null,null,null,null,null,null,null,null,null,null,null,null,null,null,null,null,null,null,null,null,null,null,null,null,null,null,null,null,null,null,null,null,null,null,null,null,null,null,null,null,null,null,null,null,null,null,""]
[null,null,null,null,null,null,null,null,null,null,null,null,null,null,null,null,null,null,null,null,null,null,null,null,null,null,null,null,null,null,null,null,null,null,null,null,null,null,null,null,null,null,null,null,null,null,null,null,null,null,null,null,null,null,null,null,null,null,null,null,null,null,null,null,null,null,null,null,null,null,null,null,null,null,null,null,null,null,null,null,null,null,null,null,null,null,null,null,null,null,null,null,null,null,null,null,null,null,null,null,null,null,null,null,null,null,null,null,null,null,null,null,null,null,null,null,null,null,null,null,null,""]
[null,null,null,null,null,null,null,null,null,null,null,null,null,null,null,null,null,null,null,null,null,null,null,null,null,null,null,null,null,null,null,null,null,null,null,null,null,null,null,null,null,null,null,null,null,null,null,null,null,null,null,null,null,null,null,null,null,null,null,null,null,null,null,null,null,null,null,null,null,null,null,null,null,null,null,null,null,null,null,null,null,null,null,null,null,null,null,null,null,null,null,null,null,null,null,null,null,null,null,null,null,null,null,null,null,null,null,null,null,null,null,null,null,null,null,null,null,null,null,null,null,""]
[null,null,null,null,null,null,null,null,null,null,null,null,null,null,null,null,null,null,null,null,null,null,null,null,null,null,null,null,null,null,null,null,null,null,null,null,null,null,null,null,null,null,null,null,null,null,null,null,null,null,null,null,null,null,null,null,null,null,null,null,null,null,null,null,null,null,null,null,null,null,null,null,null,null,null,null,null,null,null,null,null,null,null,null,null,null,null,null,null,null,null,null,null,null,null,null,null,null,null,null,null,null,null,null,null,null,null,null,null,null,null,null,null,null,null,null,null,null,null,null,null,""]
[null,null,null,null,null,null,null,null,null,null,null,null,null,null,null,null,null,null,null,null,null,null,null,null,null,null,null,null,null,null,null,null,null,null,null,null,null,null,null,null,null,null,null,null,null,null,null,null,null,null,null,null,null,null,null,null,null,null,null,null,null,null,null,null,null,null,null,null,null,null,null,null,null,null,null,null,null,null,null,null,null,null,null,null,null,null,null,null,null,null,null,null,null,null,null,null,null,null,null,null,null,null,null,null,null,null,null,null,null,null,null,null,null,null,null,null,null,null,null,null,null,""]
[null,null,null,null,null,null,null,null,null,null,null,null,null,null,null,null,null,null,null,null,null,null,null,null,null,null,null,null,null,null,null,null,null,null,null,null,null,null,null,null,null,null,null,null,null,null,null,null,null,null,null,null,null,null,null,null,null,null,null,null,null,null,null,null,null,null,null,null,null,null,null,null,null,null,null,null,null,null,null,null,null,null,null,null,null,null,null,null,null,null,null,null,null,null,null,null,null,null,null,null,null,null,null,null,null,null,null,null,null,null,null,null,null,null,null,null,null,null,null,null,null,""]
[null,null,null,null,null,null,null,null,null,null,null,null,null,null,null,null,null,null,null,null,null,null,null,null,null,null,null,null,null,null,null,null,null,null,null,null,null,null,null,null,null,null,null,null,null,null,null,null,null,null,null,null,null,null,null,null,null,null,null,null,null,null,null,null,null,null,null,null,null,null,null,null,null,null,null,null,null,null,null,null,null,null,null,null,null,null,null,null,null,null,null,null,null,null,null,null,null,null,null,null,null,null,null,null,null,null,null,null,null,null,null,null,null,null,null,null,null,null,null,null,null,""]
[null,null,null,null,null,null,null,null,null,null,null,null,null,null,null,null,null,null,null,null,null,null,null,null,null,null,null,null,null,null,null,null,null,null,null,null,null,null,null,null,null,null,null,null,null,null,null,null,null,null,null,null,null,null,null,null,null,null,null,null,null,null,null,null,null,null,null,null,null,null,null,null,null,null,null,null,null,null,null,null,null,null,null,null,null,null,null,null,null,null,null,null,null,null,null,null,null,null,null,null,null,null,null,null,null,null,null,null,null,null,null,null,null,null,null,null,null,null,null,null,null,""]
[null,null,null,null,null,null,null,null,null,null,null,null,null,null,null,null,null,null,null,null,null,null,null,null,null,null,null,null,null,null,null,null,null,null,null,null,null,null,null,null,null,null,null,null,null,null,null,null,null,null,null,null,null,null,null,null,null,null,null,null,null,null,null,null,null,null,null,null,null,null,null,null,null,null,null,null,null,null,null,null,null,null,null,null,null,null,null,null,null,null,null,null,null,null,null,null,null,null,null,null,null,null,null,null,null,null,null,null,null,null,null,null,null,null,null,null,null,null,null,null,null,""]
[null,null,null,null,null,null,null,null,null,null,null,null,null,null,null,null,null,null,null,null,null,null,null,null,null,null,null,null,null,null,null,null,null,null,null,null,null,null,null,null,null,null,null,null,null,null,null,null,null,null,null,null,null,null,null,null,null,null,null,null,null,null,null,null,null,null,null,null,null,null,null,null,null,null,null,null,null,null,null,null,null,null,null,null,null,null,null,null,null,null,null,null,null,null,null,null,null,null,null,null,null,null,null,null,null,null,null,null,null,null,null,null,null,null,null,null,null,null,null,null,null,""]
[null,null,null,null,null,null,null,null,null,null,null,null,null,null,null,null,null,null,null,null,null,null,null,null,null,null,null,null,null,null,null,null,null,null,null,null,null,null,null,null,null,null,null,null,null,null,null,null,null,null,null,null,null,null,null,null,null,null,null,null,null,null,null,null,null,null,null,null,null,null,null,null,null,null,null,null,null,null,null,null,null,null,null,null,null,null,null,null,null,null,null,null,null,null,null,null,null,null,null,null,null,null,null,null,null,null,null,null,null,null,null,null,null,null,null,null,null,null,null,null,null,""]
[null,null,null,null,null,null,null,null,null,null,null,null,null,null,null,null,null,null,null,null,null,null,null,null,null,null,null,null,null,null,null,null,null,null,null,null,null,null,null,null,null,null,null,null,null,null,null,null,null,null,null,null,null,null,null,null,null,null,null,null,null,null,null,null,null,null,null,null,null,null,null,null,null,null,null,null,null,null,null,null,null,null,null,null,null,null,null,null,null,null,null,null,null,null,null,null,null,null,null,null,null,null,null,null,null,null,null,null,null,null,null,null,null,null,null,null,null,null,null,null,null,""]
[null,null,null,null,null,null,null,null,null,null,null,null,null,null,null,null,null,null,null,null,null,null,null,null,null,null,null,null,null,null,null,null,null,null,null,null,null,null,null,null,null,null,null,null,null,null,null,null,null,null,null,null,null,null,null,null,null,null,null,null,null,null,null,null,null,null,null,null,null,null,null,null,null,null,null,null,null,null,null,null,null,null,null,null,null,null,null,null,null,null,null,null,null,null,null,null,null,null,null,null,null,null,null,null,null,null,null,null,null,null,null,null,null,null,null,null,null,null,null,null,null,""]
[null,null,null,null,null,null,null,null,null,null,null,null,null,null,null,null,null,null,null,null,null,null,null,null,null,null,null,null,null,null,null,null,null,null,null,null,null,null,null,null,null,null,null,null,null,null,null,null,null,null,null,null,null,null,null,null,null,null,null,null,null,null,null,null,null,null,null,null,null,null,null,null,null,null,null,null,null,null,null,null,null,null,null,null,null,null,null,null,null,null,null,null,null,null,null,null,null,null,null,null,null,null,null,null,null,null,null,null,null,null,null,null,null,null,null,null,null,null,null,null,null,""]
[null,null,null,null,null,null,null,null,null,null,null,null,null,null,null,null,null,null,null,null,null,null,null,null,null,null,null,null,null,null,null,null,null,null,null,null,null,null,null,null,null,null,null,null,null,null,null,null,null,null,null,null,null,null,null,null,null,null,null,null,null,null,null,null,null,null,null,null,null,null,null,null,null,null,null,null,null,null,null,null,null,null,null,null,null,null,null,null,null,null,null,null,null,null,null,null,null,null,null,null,null,null,null,null,null,null,null,null,null,null,null,null,null,null,null,null,null,null,null,null,null,""]
[null,null,null,null,null,null,null,null,null,null,null,null,null,null,null,null,null,null,null,null,null,null,null,null,null,null,null,null,null,null,null,null,null,null,null,null,null,null,null,null,null,null,null,null,null,null,null,null,null,null,null,null,null,null,null,null,null,null,null,null,null,null,null,null,null,null,null,null,null,null,null,null,null,null,null,null,null,null,null,null,null,null,null,null,null,null,null,null,null,null,null,null,null,null,null,null,null,null,null,null,null,null,null,null,null,null,null,null,null,null,null,null,null,null,null,null,null,null,null,null,null,""]
[null,null,null,null,null,null,null,null,null,null,null,null,null,null,null,null,null,null,null,null,null,null,null,null,null,null,null,null,null,null,null,null,null,null,null,null,null,null,null,null,null,null,null,null,null,null,null,null,null,null,null,null,null,null,null,null,null,null,null,null,null,null,null,null,null,null,null,null,null,null,null,null,null,null,null,null,null,null,null,null,null,null,null,null,null,null,null,null,null,null,null,null,null,null,null,null,null,null,null,null,null,null,null,null,null,null,null,null,null,null,null,null,null,null,null,null,null,null,null,null,null,""]
[null,null,null,null,null,null,null,null,null,null,null,null,null,null,null,null,null,null,null,null,null,null,null,null,null,null,null,null,null,null,null,null,null,null,null,null,null,null,null,null,null,null,null,null,null,null,null,null,null,null,null,null,null,null,null,null,null,null,null,null,null,null,null,null,null,null,null,null,null,null,null,null,null,null,null,null,null,null,null,null,null,null,null,null,null,null,null,null,null,null,null,null,null,null,null,null,null,null,null,null,null,null,null,null,null,null,null,null,null,null,null,null,null,null,null,null,null,null,null,null,null,""]
[null,null,null,null,null,null,null,null,null,null,null,null,null,null,null,null,null,null,null,null,null,null,null,null,null,null,null,null,null,null,null,null,null,null,null,null,null,null,null,null,null,null,null,null,null,null,null,null,null,null,null,null,null,null,null,null,null,null,null,null,null,null,null,null,null,null,null,null,null,null,null,null,null,null,null,null,null,null,null,null,null,null,null,null,null,null,null,null,null,null,null,null,null,null,null,null,null,null,null,null,null,null,null,null,null,null,null,null,null,null,null,null,null,null,null,null,null,null,null,null,null,""]
[null,null,null,null,null,null,null,null,null,null,null,null,null,null,null,null,null,null,null,null,null,null,null,null,null,null,null,null,null,null,null,null,null,null,null,null,null,null,null,null,null,null,null,null,null,null,null,null,null,null,null,null,null,null,null,null,null,null,null,null,null,null,null,null,null,null,null,null,null,null,null,null,null,null,null,null,null,null,null,null,null,null,null,null,null,null,null,null,null,null,null,null,null,null,null,null,null,null,null,null,null,null,null,null,null,null,null,null,null,null,null,null,null,null,null,null,null,null,null,null,null,""]
[null,null,null,null,null,null,null,null,null,null,null,null,null,null,null,null,null,null,null,null,null,null,null,null,null,null,null,null,null,null,null,null,null,null,null,null,null,null,null,null,null,null,null,null,null,null,null,null,null,null,null,null,null,null,null,null,null,null,null,null,null,null,null,null,null,null,null,null,null,null,null,null,null,null,null,null,null,null,null,null,null,null,null,null,null,null,null,null,null,null,null,null,null,null,null,null,null,null,null,null,null,null,null,null,null,null,null,null,null,null,null,null,null,null,null,null,null,null,null,null,null,""]
[null,null,null,null,null,null,null,null,null,null,null,null,null,null,null,null,null,null,null,null,null,null,null,null,null,null,null,null,null,null,null,null,null,null,null,null,null,null,null,null,null,null,null,null,null,null,null,null,null,null,null,null,null,null,null,null,null,null,null,null,null,null,null,null,null,null,null,null,null,null,null,null,null,null,null,null,null,null,null,null,null,null,null,null,null,null,null,null,null,null,null,null,null,null,null,null,null,null,null,null,null,null,null,null,null,null,null,null,null,null,null,null,null,null,null,null,null,null,null,null,null,""]

{"sheet":"FORM KVV 6 11","index":2,"n_rows":80,"n_cols":20,"rows_kept":80,"cut":false,"hidden":true,"merged":[[0,15,0,16],[1,0,1,16],[2,0,2,16],[3,0,3,16],[8,0,8,5],[8,6,12,6],[8,7,8,9],[8,10,8,13],[8,14,12,14],[8,15,12,15],[39,0,39,16],[8,16,12,16],[9,0,9,2],[9,3,9,5],[9,7,12,7],[9,8,12,8],[9,9,12,9],[9,10,11,12],[9,13,11,13],[10,0,12,0],[10,1,12,1],[10,2,12,2],[10,3,12,3],[10,4,12,4],[10,5,12,5],[34,0,34,16],[73,0,73,16],[41,0,41,16],[45,0,45,16],[53,0,53,16],[55,0,55,16],[57,0,57,16],[61,0,61,16],[62,0,62,16],[65,0,65,16],[67,0,67,16],[68,0,68,16],[72,0,72,16]]}
[null,null,null,null,null,null,null,null,null,null,null,null,null,null,null,"FORM KVV 6 11"]
["C.S.K. HIMACHAL PRADESH KRISHI VISHVAVIDYALAYA"]
["(See Rule 6.22 Part-I of the Account Manual)"]
["TRAVELLING ALLOWANCE BILL"]
["District               :",{"$f":"IF(Journey!U1=\"\",\"\",Journey!U1)","v":"Kangra"},null,null,null,null,"Name         :     ",null,{"$f":"IF(Journey!C3=\"\",\"\",Journey!C3)","v":"Madan"},null,null,null,null,null,"Month:",{"$f":"IF(Journey!M3=\"\",Journey!L3,Journey!L3&\"-\"&Journey!M3)","v":"Jun14-Jul14"}]
["Head Quarters    :",{"$f":"IF(Journey!U3=\"\",\"\",Journey!U3)","v":"Palampur"},null,null,null,null,"Designation :",null,{"$f":"IF(Journey!C4=\"\",\"\",Journey!C4)","v":"AP"}]
[null,null,null,null,null,null,"Pay            :",null,{"$f":"\"Rs. \"&Journey!H4&\"/-\"&\"+ Grade Pay Rs.\"&Journey!K4&\"/-\"","v":"Rs. 40210/-+ Grade Pay Rs.8600/-"},null,null,null,null,null,{"$f":"\"Head of service chargeable :\"","v":"Head of service chargeable :"},null,{"$f":"IF(Journey!F47=\"\",\"\",Journey!F47)","v":""}]
[]
["Particulars of journeys & halts",null,null,null,null,null,"Mode of conveyance used","Actual air,rail,bus fare",null,null,"Distance traveled by road or other means",null,null,null,"Total amount","Purpose of journey or halts","Remarks"]
["Departure",null,null,"Arrival",null,null,null,"Class","No. of fares","Amount","For which mileage is admissible",null,null,"Daily allowance claimed/No. of days"]
["Station","Date","Hour","Station","Date","Hour"]
[]
[null,null,null,null,null,null,null,null,null,null,"Kms","Rate","Amount","Amount"]
[1,2,3,4,5,6,7,8,9,10,11,12,13,14,15,16,17]
[null,null,null,null,null,null,null,null,null,"Rs","Kms.","Rate","Amount","Rs","Rs"]
[{"$f":"IF(Journey!B7=\"Halt\",\"Halt at \",IF(Journey!B7=\"To & Fro\",Journey!K7&\" to \"&Journey!L7&\" & back to HQ\",IF(Journey!B7=\"Room_rent\",\"Room rent\",IF(Journey!B7=\"LTA\",\"Local Transport Allowance\",IF(Journey!B7=\"TTA\",\"Terminal Transport Allowance\",Journey!K7)))))","v":"Palampur"},{"$f":"IF(Journey!B7=\"Halt\",Journey!K7,IF(Journey!B7=\"Room_rent\",\"From\",IF(Journey!B7=\"LTA\",\"From\",IF(Journey!B7=\"TTA\",Journey!E7,Journey!AI7))))","v":"2014-06-01"},{"$f":"IF(Journey!B7=\"Halt\",\"From\",IF(Journey!B7=\"Room_rent\",Journey!E7,IF(Journey!B7=\"LTA\",Journey!E7,IF(Journey!B7=\"TTA\",\"\",Journey!AJ7))))","v":"4:00"},{"$f":"IF(Journey!B7=\"Halt\",Journey!E7,IF(Journey!B7=\"Room_rent\",\"to\",IF(Journey!B7=\"LTA\",\"to\",IF(Journey!B7=\"TTA\",Journey!K7,IF(Journey!B7=\"To & Fro\",\"\",Journey!L7)))))","v":"Dharamshala"},{"$f":"Journey!H7","v":"2014-06-02"},{"$f":"IF(OR(Journey!B7=\"LTA\",Journey!B7=\"TTA\",Journey!B7=\"Room_rent\",Journey!B7=\"Halt\"),\"\",Journey!AP7)","v":"4:05"},{"$f":"IF(Journey!O7=\"\",\"\",Journey!O7)","v":"Bus"},{"$f":"IF(Journey!P7=\"\",\"\",Journey!P7)","v":"Ordinary"},null,{"$f":"IF(Journey!Q7=\"\",\"\",Journey!Q7)","v":40},{"$f":"IF(Journey!BI7=\"\",\"\",Journey!BI7)","v":0},{"$f":"IF(Journey!BJ7=\"\",\"\",Journey!BJ7)","v":0},{"$f":"IF(Journey!BK7=\"\",\"\",Journey!BK7)","v":0},{"$f":"IF(OR(Journey!B7=\"Room_rent\",Journey!B7=\"LTA\",Journey!B7=\"TTA\"),Journey!V7,IF(Journey!T7=0,\"\",Journey!T7&\"/\"&Journey!AW7))","v":"96/1 daily"},{"$f":"Journey!V7","v":136},{"$f":"IF(Journey!U7=\"\",\"\",Journey!U7)","v":"Attend Conference"},null,null,null,{"$f":"IF(OR(Journey!B7=\"Halt\",Journey!B7=\"Start\",),0,Journey!B7)","v":0}]
[{"$f":"IF(Journey!B8=\"Halt\",\"Halt at \",IF(Journey!B8=\"To & Fro\",Journey!K8&\" to \"&Journey!L8&\" & back to HQ\",IF(Journey!B8=\"Room_rent\",\"Room rent\",IF(Journey!B8=\"LTA\",\"Local Transport Allowance\",IF(Journey!B8=\"TTA\",\"Terminal Transport Allowance\",Journey!K8)))))","v":0},{"$f":"IF(Journey!B8=\"Halt\",Journey!K8,IF(Journey!B8=\"Room_rent\",\"From\",IF(Journey!B8=\"LTA\",\"From\",IF(Journey!B8=\"TTA\",Journey!E8,Journey!AI8))))","v":"00:00:00"},{"$f":"IF(Journey!B8=\"Halt\",\"From\",IF(Journey!B8=\"Room_rent\",Journey!E8,IF(Journey!B8=\"LTA\",Journey!E8,IF(Journey!B8=\"TTA\",\"\",Journey!AJ8))))","v":"00:00:00"},{"$f":"IF(Journey!B8=\"Halt\",Journey!E8,IF(Journey!B8=\"Room_rent\",\"to\",IF(Journey!B8=\"LTA\",\"to\",IF(Journey!B8=\"TTA\",Journey!K8,IF(Journey!B8=\"To & Fro\",\"\",Journey!L8)))))","v":"00:00:00"},{"$f":"Journey!H8","v":"00:00:00"},{"$f":"IF(OR(Journey!B8=\"LTA\",Journey!B8=\"TTA\",Journey!B8=\"Room_rent\",Journey!B8=\"Halt\"),\"\",Journey!AP8)","v":0},{"$f":"IF(Journey!O8=\"\",\"\",Journey!O8)","v":""},{"$f":"IF(Journey!P8=\"\",\"\",Journey!P8)","v":""},0,{"$f":"IF(Journey!Q8=\"\",\"\",Journey!Q8)","v":""},{"$f":"IF(Journey!BI8=\"\",\"\",Journey!BI8)","v":0},{"$f":"IF(Journey!BJ8=\"\",\"\",Journey!BJ8)","v":0},{"$f":"IF(Journey!BK8=\"\",\"\",Journey!BK8)","v":0},{"$f":"IF(OR(Journey!B8=\"Room_rent\",Journey!B8=\"LTA\",Journey!B8=\"TTA\"),Journey!V8,IF(Journey!T8=0,\"\",Journey!T8&\"/\"&Journey!AW8))","v":""},{"$f":"Journey!V8","v":0},{"$f":"IF(Journey!U8=\"\",\"\",Journey!U8)","v":""},null,null,null,{"$f":"IF(OR(Journey!B8=\"Halt\",Journey!B8=\"Start\",),0,Journey!B8)","v":0}]
[{"$f":"IF(Journey!B9=\"Halt\",\"Halt at \",IF(Journey!B9=\"To & Fro\",Journey!K9&\" to \"&Journey!L9&\" & back to HQ\",IF(Journey!B9=\"Room_rent\",\"Room rent\",IF(Journey!B9=\"LTA\",\"Local Transport Allowance\",IF(Journey!B9=\"TTA\",\"Terminal Transport Allowance\",Journey!K9)))))","v":0},{"$f":"IF(Journey!B9=\"Halt\",Journey!K9,IF(Journey!B9=\"Room_rent\",\"From\",IF(Journey!B9=\"LTA\",\"From\",IF(Journey!B9=\"TTA\",Journey!E9,Journey!AI9))))","v":"00:00:00"},{"$f":"IF(Journey!B9=\"Halt\",\"From\",IF(Journey!B9=\"Room_rent\",Journey!E9,IF(Journey!B9=\"LTA\",Journey!E9,IF(Journey!B9=\"TTA\",\"\",Journey!AJ9))))","v":"00:00:00"},{"$f":"IF(Journey!B9=\"Halt\",Journey!E9,IF(Journey!B9=\"Room_rent\",\"to\",IF(Journey!B9=\"LTA\",\"to\",IF(Journey!B9=\"TTA\",Journey!K9,IF(Journey!B9=\"To & Fro\",\"\",Journey!L9)))))","v":"00:00:00"},{"$f":"Journey!H9","v":"00:00:00"},{"$f":"IF(OR(Journey!B9=\"LTA\",Journey!B9=\"TTA\",Journey!B9=\"Room_rent\",Journey!B9=\"Halt\"),\"\",Journey!AP9)","v":0},{"$f":"IF(Journey!O9=\"\",\"\",Journey!O9)","v":""},{"$f":"IF(Journey!P9=\"\",\"\",Journey!P9)","v":""},0,{"$f":"IF(Journey!Q9=\"\",\"\",Journey!Q9)","v":""},{"$f":"IF(Journey!BI9=\"\",\"\",Journey!BI9)","v":0},{"$f":"IF(Journey!BJ9=\"\",\"\",Journey!BJ9)","v":0},{"$f":"IF(Journey!BK9=\"\",\"\",Journey!BK9)","v":0},{"$f":"IF(OR(Journey!B9=\"Room_rent\",Journey!B9=\"LTA\",Journey!B9=\"TTA\"),Journey!V9,IF(Journey!T9=0,\"\",Journey!T9&\"/\"&Journey!AW9))","v":""},{"$f":"Journey!V9","v":0},{"$f":"IF(Journey!U9=\"\",\"\",Journey!U9)","v":""},null,null,null,{"$f":"IF(OR(Journey!B9=\"Halt\",Journey!B9=\"Start\",),0,Journey!B9)","v":0}]
[{"$f":"IF(Journey!B10=\"Halt\",\"Halt at \",IF(Journey!B10=\"To & Fro\",Journey!K10&\" to \"&Journey!L10&\" & back to HQ\",IF(Journey!B10=\"Room_rent\",\"Room rent\",IF(Journey!B10=\"LTA\",\"Local Transport Allowance\",IF(Journey!B10=\"TTA\",\"Terminal Transport Allowance\",Journey!K10)))))","v":0},{"$f":"IF(Journey!B10=\"Halt\",Journey!K10,IF(Journey!B10=\"Room_rent\",\"From\",IF(Journey!B10=\"LTA\",\"From\",IF(Journey!B10=\"TTA\",Journey!E10,Journey!AI10))))","v":"00:00:00"},{"$f":"IF(Journey!B10=\"Halt\",\"From\",IF(Journey!B10=\"Room_rent\",Journey!E10,IF(Journey!B10=\"LTA\",Journey!E10,IF(Journey!B10=\"TTA\",\"\",Journey!AJ10))))","v":"00:00:00"},{"$f":"IF(Journey!B10=\"Halt\",Journey!E10,IF(Journey!B10=\"Room_rent\",\"to\",IF(Journey!B10=\"LTA\",\"to\",IF(Journey!B10=\"TTA\",Journey!K10,IF(Journey!B10=\"To & Fro\",\"\",Journey!L10)))))","v":"00:00:00"},{"$f":"Journey!H10","v":"00:00:00"},{"$f":"IF(OR(Journey!B10=\"LTA\",Journey!B10=\"TTA\",Journey!B10=\"Room_rent\",Journey!B10=\"Halt\"),\"\",Journey!AP10)","v":0},{"$f":"IF(Journey!O10=\"\",\"\",Journey!O10)","v":""},{"$f":"IF(Journey!P10=\"\",\"\",Journey!P10)","v":""},0,{"$f":"IF(Journey!Q10=\"\",\"\",Journey!Q10)","v":""},{"$f":"IF(Journey!BI10=\"\",\"\",Journey!BI10)","v":0},{"$f":"IF(Journey!BJ10=\"\",\"\",Journey!BJ10)","v":0},{"$f":"IF(Journey!BK10=\"\",\"\",Journey!BK10)","v":0},{"$f":"IF(OR(Journey!B10=\"Room_rent\",Journey!B10=\"LTA\",Journey!B10=\"TTA\"),Journey!V10,IF(Journey!T10=0,\"\",Journey!T10&\"/\"&Journey!AW10))","v":""},{"$f":"Journey!V10","v":0},{"$f":"IF(Journey!U10=\"\",\"\",Journey!U10)","v":""},null,null,null,{"$f":"IF(OR(Journey!B10=\"Halt\",Journey!B10=\"Start\",),0,Journey!B10)","v":0}]
[{"$f":"IF(Journey!B11=\"Halt\",\"Halt at \",IF(Journey!B11=\"To & Fro\",Journey!K11&\" to \"&Journey!L11&\" & back to HQ\",IF(Journey!B11=\"Room_rent\",\"Room rent\",IF(Journey!B11=\"LTA\",\"Local Transport Allowance\",IF(Journey!B11=\"TTA\",\"Terminal Transport Allowance\",Journey!K11)))))","v":0},{"$f":"IF(Journey!B11=\"Halt\",Journey!K11,IF(Journey!B11=\"Room_rent\",\"From\",IF(Journey!B11=\"LTA\",\"From\",IF(Journey!B11=\"TTA\",Journey!E11,Journey!AI11))))","v":"00:00:00"},{"$f":"IF(Journey!B11=\"Halt\",\"From\",IF(Journey!B11=\"Room_rent\",Journey!E11,IF(Journey!B11=\"LTA\",Journey!E11,IF(Journey!B11=\"TTA\",\"\",Journey!AJ11))))","v":"00:00:00"},{"$f":"IF(Journey!B11=\"Halt\",Journey!E11,IF(Journey!B11=\"Room_rent\",\"to\",IF(Journey!B11=\"LTA\",\"to\",IF(Journey!B11=\"TTA\",Journey!K11,IF(Journey!B11=\"To & Fro\",\"\",Journey!L11)))))","v":"00:00:00"},{"$f":"Journey!H11","v":"00:00:00"},{"$f":"IF(OR(Journey!B11=\"LTA\",Journey!B11=\"TTA\",Journey!B11=\"Room_rent\",Journey!B11=\"Halt\"),\"\",Journey!AP11)","v":0},{"$f":"IF(Journey!O11=\"\",\"\",Journey!O11)","v":""},{"$f":"IF(Journey!P11=\"\",\"\",Journey!P11)","v":""},0,{"$f":"IF(Journey!Q11=\"\",\"\",Journey!Q11)","v":""},{"$f":"IF(Journey!BI11=\"\",\"\",Journey!BI11)","v":0},{"$f":"IF(Journey!BJ11=\"\",\"\",Journey!BJ11)","v":0},{"$f":"IF(Journey!BK11=\"\",\"\",Journey!BK11)","v":0},{"$f":"IF(OR(Journey!B11=\"Room_rent\",Journey!B11=\"LTA\",Journey!B11=\"TTA\"),Journey!V11,IF(Journey!T11=0,\"\",Journey!T11&\"/\"&Journey!AW11))","v":""},{"$f":"Journey!V11","v":0},{"$f":"IF(Journey!U11=\"\",\"\",Journey!U11)","v":""},null,null,null,{"$f":"IF(OR(Journey!B11=\"Halt\",Journey!B11=\"Start\",),0,Journey!B11)","v":0}]
[{"$f":"IF(Journey!B12=\"Halt\",\"Halt at \",IF(Journey!B12=\"To & Fro\",Journey!K12&\" to \"&Journey!L12&\" & back to HQ\",IF(Journey!B12=\"Room_rent\",\"Room rent\",IF(Journey!B12=\"LTA\",\"Local Transport Allowance\",IF(Journey!B12=\"TTA\",\"Terminal Transport Allowance\",Journey!K12)))))","v":0},{"$f":"IF(Journey!B12=\"Halt\",Journey!K12,IF(Journey!B12=\"Room_rent\",\"From\",IF(Journey!B12=\"LTA\",\"From\",IF(Journey!B12=\"TTA\",Journey!E12,Journey!AI12))))","v":"00:00:00"},{"$f":"IF(Journey!B12=\"Halt\",\"From\",IF(Journey!B12=\"Room_rent\",Journey!E12,IF(Journey!B12=\"LTA\",Journey!E12,IF(Journey!B12=\"TTA\",\"\",Journey!AJ12))))","v":"00:00:00"},{"$f":"IF(Journey!B12=\"Halt\",Journey!E12,IF(Journey!B12=\"Room_rent\",\"to\",IF(Journey!B12=\"LTA\",\"to\",IF(Journey!B12=\"TTA\",Journey!K12,IF(Journey!B12=\"To & Fro\",\"\",Journey!L12)))))","v":"00:00:00"},{"$f":"Journey!H12","v":"00:00:00"},{"$f":"IF(OR(Journey!B12=\"LTA\",Journey!B12=\"TTA\",Journey!B12=\"Room_rent\",Journey!B12=\"Halt\"),\"\",Journey!AP12)","v":0},{"$f":"IF(Journey!O12=\"\",\"\",Journey!O12)","v":""},{"$f":"IF(Journey!P12=\"\",\"\",Journey!P12)","v":""},0,{"$f":"IF(Journey!Q12=\"\",\"\",Journey!Q12)","v":""},{"$f":"IF(Journey!BI12=\"\",\"\",Journey!BI12)","v":0},{"$f":"IF(Journey!BJ12=\"\",\"\",Journey!BJ12)","v":0},{"$f":"IF(Journey!BK12=\"\",\"\",Journey!BK12)","v":0},{"$f":"IF(OR(Journey!B12=\"Room_rent\",Journey!B12=\"LTA\",Journey!B12=\"TTA\"),Journey!V12,IF(Journey!T12=0,\"\",Journey!T12&\"/\"&Journey!AW12))","v":""},{"$f":"Journey!V12","v":0},{"$f":"IF(Journey!U12=\"\",\"\",Journey!U12)","v":""},null,null,null,{"$f":"IF(OR(Journey!B12=\"Halt\",Journey!B12=\"Start\",),0,Journey!B12)","v":0}]
[{"$f":"IF(Journey!B13=\"Halt\",\"Halt at \",IF(Journey!B13=\"To & Fro\",Journey!K13&\" to \"&Journey!L13&\" & back to HQ\",IF(Journey!B13=\"Room_rent\",\"Room rent\",IF(Journey!B13=\"LTA\",\"Local Transport Allowance\",IF(Journey!B13=\"TTA\",\"Terminal Transport Allowance\",Journey!K13)))))","v":0},{"$f":"IF(Journey!B13=\"Halt\",Journey!K13,IF(Journey!B13=\"Room_rent\",\"From\",IF(Journey!B13=\"LTA\",\"From\",IF(Journey!B13=\"TTA\",Journey!E13,Journey!AI13))))","v":"00:00:00"},{"$f":"IF(Journey!B13=\"Halt\",\"From\",IF(Journey!B13=\"Room_rent\",Journey!E13,IF(Journey!B13=\"LTA\",Journey!E13,IF(Journey!B13=\"TTA\",\"\",Journey!AJ13))))","v":"00:00:00"},{"$f":"IF(Journey!B13=\"Halt\",Journey!E13,IF(Journey!B13=\"Room_rent\",\"to\",IF(Journey!B13=\"LTA\",\"to\",IF(Journey!B13=\"TTA\",Journey!K13,IF(Journey!B13=\"To & Fro\",\"\",Journey!L13)))))","v":"00:00:00"},{"$f":"Journey!H13","v":"00:00:00"},{"$f":"IF(OR(Journey!B13=\"LTA\",Journey!B13=\"TTA\",Journey!B13=\"Room_rent\",Journey!B13=\"Halt\"),\"\",Journey!AP13)","v":0},{"$f":"IF(Journey!O13=\"\",\"\",Journey!O13)","v":""},{"$f":"IF(Journey!P13=\"\",\"\",Journey!P13)","v":""},0,{"$f":"IF(Journey!Q13=\"\",\"\",Journey!Q13)","v":""},{"$f":"IF(Journey!BI13=\"\",\"\",Journey!BI13)","v":0},{"$f":"IF(Journey!BJ13=\"\",\"\",Journey!BJ13)","v":0},{"$f":"IF(Journey!BK13=\"\",\"\",Journey!BK13)","v":0},{"$f":"IF(OR(Journey!B13=\"Room_rent\",Journey!B13=\"LTA\",Journey!B13=\"TTA\"),Journey!V13,IF(Journey!T13=0,\"\",Journey!T13&\"/\"&Journey!AW13))","v":""},{"$f":"Journey!V13","v":0},{"$f":"IF(Journey!U13=\"\",\"\",Journey!U13)","v":""},null,null,null,{"$f":"IF(OR(Journey!B13=\"Halt\",Journey!B13=\"Start\",),0,Journey!B13)","v":0}]
[{"$f":"IF(Journey!B14=\"Halt\",\"Halt at \",IF(Journey!B14=\"To & Fro\",Journey!K14&\" to \"&Journey!L14&\" & back to HQ\",IF(Journey!B14=\"Room_rent\",\"Room rent\",IF(Journey!B14=\"LTA\",\"Local Transport Allowance\",IF(Journey!B14=\"TTA\",\"Terminal Transport Allowance\",Journey!K14)))))","v":0},{"$f":"IF(Journey!B14=\"Halt\",Journey!K14,IF(Journey!B14=\"Room_rent\",\"From\",IF(Journey!B14=\"LTA\",\"From\",IF(Journey!B14=\"TTA\",Journey!E14,Journey!AI14))))","v":"00:00:00"},{"$f":"IF(Journey!B14=\"Halt\",\"From\",IF(Journey!B14=\"Room_rent\",Journey!E14,IF(Journey!B14=\"LTA\",Journey!E14,IF(Journey!B14=\"TTA\",\"\",Journey!AJ14))))","v":"00:00:00"},{"$f":"IF(Journey!B14=\"Halt\",Journey!E14,IF(Journey!B14=\"Room_rent\",\"to\",IF(Journey!B14=\"LTA\",\"to\",IF(Journey!B14=\"TTA\",Journey!K14,IF(Journey!B14=\"To & Fro\",\"\",Journey!L14)))))","v":"00:00:00"},{"$f":"Journey!H14","v":"00:00:00"},{"$f":"IF(OR(Journey!B14=\"LTA\",Journey!B14=\"TTA\",Journey!B14=\"Room_rent\",Journey!B14=\"Halt\"),\"\",Journey!AP14)","v":0},{"$f":"IF(Journey!O14=\"\",\"\",Journey!O14)","v":""},{"$f":"IF(Journey!P14=\"\",\"\",Journey!P14)","v":""},0,{"$f":"IF(Journey!Q14=\"\",\"\",Journey!Q14)","v":""},{"$f":"IF(Journey!BI14=\"\",\"\",Journey!BI14)","v":0},{"$f":"IF(Journey!BJ14=\"\",\"\",Journey!BJ14)","v":0},{"$f":"IF(Journey!BK14=\"\",\"\",Journey!BK14)","v":0},{"$f":"IF(OR(Journey!B14=\"Room_rent\",Journey!B14=\"LTA\",Journey!B14=\"TTA\"),Journey!V14,IF(Journey!T14=0,\"\",Journey!T14&\"/\"&Journey!AW14))","v":""},{"$f":"Journey!V14","v":0},{"$f":"IF(Journey!U14=\"\",\"\",Journey!U14)","v":""},null,null,null,{"$f":"IF(OR(Journey!B14=\"Halt\",Journey!B14=\"Start\",),0,Journey!B14)","v":0}]
[{"$f":"IF(Journey!B15=\"Halt\",\"Halt at \",IF(Journey!B15=\"To & Fro\",Journey!K15&\" to \"&Journey!L15&\" & back to HQ\",IF(Journey!B15=\"Room_rent\",\"Room rent\",IF(Journey!B15=\"LTA\",\"Local Transport Allowance\",IF(Journey!B15=\"TTA\",\"Terminal Transport Allowance\",Journey!K15)))))","v":0},{"$f":"IF(Journey!B15=\"Halt\",Journey!K15,IF(Journey!B15=\"Room_rent\",\"From\",IF(Journey!B15=\"LTA\",\"From\",IF(Journey!B15=\"TTA\",Journey!E15,Journey!AI15))))","v":"00:00:00"},{"$f":"IF(Journey!B15=\"Halt\",\"From\",IF(Journey!B15=\"Room_rent\",Journey!E15,IF(Journey!B15=\"LTA\",Journey!E15,IF(Journey!B15=\"TTA\",\"\",Journey!AJ15))))","v":"00:00:00"},{"$f":"IF(Journey!B15=\"Halt\",Journey!E15,IF(Journey!B15=\"Room_rent\",\"to\",IF(Journey!B15=\"LTA\",\"to\",IF(Journey!B15=\"TTA\",Journey!K15,IF(Journey!B15=\"To & Fro\",\"\",Journey!L15)))))","v":"00:00:00"},{"$f":"Journey!H15","v":"00:00:00"},{"$f":"IF(OR(Journey!B15=\"LTA\",Journey!B15=\"TTA\",Journey!B15=\"Room_rent\",Journey!B15=\"Halt\"),\"\",Journey!AP15)","v":0},{"$f":"IF(Journey!O15=\"\",\"\",Journey!O15)","v":""},{"$f":"IF(Journey!P15=\"\",\"\",Journey!P15)","v":""},0,{"$f":"IF(Journey!Q15=\"\",\"\",Journey!Q15)","v":""},{"$f":"IF(Journey!BI15=\"\",\"\",Journey!BI15)","v":0},{"$f":"IF(Journey!BJ15=\"\",\"\",Journey!BJ15)","v":0},{"$f":"IF(Journey!BK15=\"\",\"\",Journey!BK15)","v":0},{"$f":"IF(OR(Journey!B15=\"Room_rent\",Journey!B15=\"LTA\",Journey!B15=\"TTA\"),Journey!V15,IF(Journey!T15=0,\"\",Journey!T15&\"/\"&Journey!AW15))","v":""},{"$f":"Journey!V15","v":0},{"$f":"IF(Journey!U15=\"\",\"\",Journey!U15)","v":""},null,null,null,{"$f":"IF(OR(Journey!B15=\"Halt\",Journey!B15=\"Start\",),0,Journey!B15)","v":0}]
[{"$f":"IF(Journey!B16=\"Halt\",\"Halt at \",IF(Journey!B16=\"To & Fro\",Journey!K16&\" to \"&Journey!L16&\" & back to HQ\",IF(Journey!B16=\"Room_rent\",\"Room rent\",IF(Journey!B16=\"LTA\",\"Local Transport Allowance\",IF(Journey!B16=\"TTA\",\"Terminal Transport Allowance\",Journey!K16)))))","v":0},{"$f":"IF(Journey!B16=\"Halt\",Journey!K16,IF(Journey!B16=\"Room_rent\",\"From\",IF(Journey!B16=\"LTA\",\"From\",IF(Journey!B16=\"TTA\",Journey!E16,Journey!AI16))))","v":"00:00:00"},{"$f":"IF(Journey!B16=\"Halt\",\"From\",IF(Journey!B16=\"Room_rent\",Journey!E16,IF(Journey!B16=\"LTA\",Journey!E16,IF(Journey!B16=\"TTA\",\"\",Journey!AJ16))))","v":"00:00:00"},{"$f":"IF(Journey!B16=\"Halt\",Journey!E16,IF(Journey!B16=\"Room_rent\",\"to\",IF(Journey!B16=\"LTA\",\"to\",IF(Journey!B16=\"TTA\",Journey!K16,IF(Journey!B16=\"To & Fro\",\"\",Journey!L16)))))","v":"00:00:00"},{"$f":"Journey!H16","v":"00:00:00"},{"$f":"IF(OR(Journey!B16=\"LTA\",Journey!B16=\"TTA\",Journey!B16=\"Room_rent\",Journey!B16=\"Halt\"),\"\",Journey!AP16)","v":0},{"$f":"IF(Journey!O16=\"\",\"\",Journey!O16)","v":""},{"$f":"IF(Journey!P16=\"\",\"\",Journey!P16)","v":""},0,{"$f":"IF(Journey!Q16=\"\",\"\",Journey!Q16)","v":""},{"$f":"IF(Journey!BI16=\"\",\"\",Journey!BI16)","v":0},{"$f":"IF(Journey!BJ16=\"\",\"\",Journey!BJ16)","v":0},{"$f":"IF(Journey!BK16=\"\",\"\",Journey!BK16)","v":0},{"$f":"IF(OR(Journey!B16=\"Room_rent\",Journey!B16=\"LTA\",Journey!B16=\"TTA\"),Journey!V16,IF(Journey!T16=0,\"\",Journey!T16&\"/\"&Journey!AW16))","v":""},{"$f":"Journey!V16","v":0},{"$f":"IF(Journey!U16=\"\",\"\",Journey!U16)","v":""},null,null,null,{"$f":"IF(OR(Journey!B16=\"Halt\",Journey!B16=\"Start\",),0,Journey!B16)","v":0}]
[{"$f":"IF(Journey!B17=\"Halt\",\"Halt at \",IF(Journey!B17=\"To & Fro\",Journey!K17&\" to \"&Journey!L17&\" & back to HQ\",IF(Journey!B17=\"Room_rent\",\"Room rent\",IF(Journey!B17=\"LTA\",\"Local Transport Allowance\",IF(Journey!B17=\"TTA\",\"Terminal Transport Allowance\",Journey!K17)))))","v":0},{"$f":"IF(Journey!B17=\"Halt\",Journey!K17,IF(Journey!B17=\"Room_rent\",\"From\",IF(Journey!B17=\"LTA\",\"From\",IF(Journey!B17=\"TTA\",Journey!E17,Journey!AI17))))","v":"00:00:00"},{"$f":"IF(Journey!B17=\"Halt\",\"From\",IF(Journey!B17=\"Room_rent\",Journey!E17,IF(Journey!B17=\"LTA\",Journey!E17,IF(Journey!B17=\"TTA\",\"\",Journey!AJ17))))","v":"00:00:00"},{"$f":"IF(Journey!B17=\"Halt\",Journey!E17,IF(Journey!B17=\"Room_rent\",\"to\",IF(Journey!B17=\"LTA\",\"to\",IF(Journey!B17=\"TTA\",Journey!K17,IF(Journey!B17=\"To & Fro\",\"\",Journey!L17)))))","v":"00:00:00"},{"$f":"Journey!H17","v":"00:00:00"},{"$f":"IF(OR(Journey!B17=\"LTA\",Journey!B17=\"TTA\",Journey!B17=\"Room_rent\",Journey!B17=\"Halt\"),\"\",Journey!AP17)","v":0},{"$f":"IF(Journey!O17=\"\",\"\",Journey!O17)","v":""},{"$f":"IF(Journey!P17=\"\",\"\",Journey!P17)","v":""},0,{"$f":"Journey!Q17","v":0},{"$f":"Journey!BI17","v":0},{"$f":"Journey!BJ17","v":0},{"$f":"Journey!BK17","v":0},{"$f":"IF(OR(Journey!B17=\"Room_rent\",Journey!B17=\"LTA\",Journey!B17=\"TTA\"),Journey!V17,IF(Journey!T17=0,\"\",Journey!T17&\"/\"&Journey!AW17))","v":""},{"$f":"Journey!V17","v":0},{"$f":"IF(Journey!U17=\"\",\"\",Journey!U17)","v":""},null,null,null,{"$f":"IF(OR(Journey!B17=\"Halt\",Journey!B17=\"Start\",),0,Journey!B17)","v":0}]
[null,null,null,null,null,null,null,null,null,{"$f":"SUM(J16:J26)","v":40},null,null,null,null,{"$f":"SUM(O16:O26)","v":136}]
["TRAVELLING by road Includes TRAVELLING by Car, river in steam launch or any vessel other than a steamer and TRAVELLING by canal (the particular kind should be specified "]
["in the bills). In case when the Steamer Company has two rates of fare one inclusive and one exclusive of diet the word ‘fare’ should be hold to mean “fare exclusive of diet”."]
["CERTIFICATE"]
["1. Certified that I have satisfied myself that the amounts included in the bills drawn previous to this date with the exception of those detailed below (of which the total amount "]
["has been refunded by education from this bill), have been disbursed to the officers therein named and their receipts taken in the Acquaintance Roll or the office copies of the "]
["TRAVELLING Allowance."]
["Bill filled in my office and receipt stamps duly cancelled for every payment excess of Rs. 20."]
["2. Certified that the journey beyond jurisdiction was performed under authority."]
["3. Certified that an entry of the journey for which TRAVELLING Allowance has been claimed in this bill has been made in proper Check Register prescribed in the rules."]
["Passed for Rs……………………………………",null,null,null,null,null,null,null,null,null,null,null,null,null,null,"(Head of Office)"]
["Dated ……………………………………………..",null,null,null,null,null,null,null,null,null,null,null,null,null,null,"(Controlling Officer)"]
[null,null,null,null,null,null,null,null,{"$f":"SUM(I16:I37)","v":0},null,null,null,null,null,null,{"$f":"SUM(P16:P37)","v":0}]
["INSTRUCTION FOR PREPARING TRAVELLING ALLOWANCE BILLS"]
["1. Journeys of different kinds and journeys and halts should not be entered on the same line."]
["2. Number of miles travelled should be entered in column 7 in all cases of Journey by road or by Boat.  They may not be entered in case of journey by rail."]
["3. Permanent travelling conveyance and horse allowance should be drawn along-with the pay of the Govt. servant and not travelling bills."]
["4. Fractions of a mile in the total of bill for any one journey should not be charged for."]
["5. When the first item of a travelling allowance bill is half, the date of commencement of this half should be stated in the “Remarks” column."]
["6. A suitable note should always be made in remarks column against the relevant entries of days for which daily allowance at enhanced rate (including hill track,"]
[" ordinary or special) is claimed."]
["7. Hours of journey should be mentioned only:-"]
["   a) When for an absence from headquarters of not more than two consecutive days daily allowance is claimed for two days."]
["   b) When mileage or actual expenses in lieu there of are claimed."]
["   c) When both Rail or Steamer fare and daily allowance are claimed in respect of journey by Rail or Steamer immediately proceeded or followed by road of halt."]
["8. A certificate of attendance given by the court of authority should be attached to the bill."]
[]
["CERTIFICATE FOR JOURNEY ON TOUR"]
["CERTIFIED THAT:-"]
["1. The mileage and fares shown for and rail journey in the bill are correct to the best of my knowledge and belief."]
["2. The distances shown in the T. A. Bill are correct to the best of my knowledge and belief."]
["3. I did not perform the road journey for which mileage has been claimed at the higher rates prescribed in the S. R. 46 by taking a single seat in a taxi, motor, "]
["omnibus or motor lorry paying or hire."]
["4. No mileage is claimed for road journeys conducted in Government/University Vehicles."]
["5. No. T. A. advance taken by my in connection with the journeys for which claim is preferred in this bill."]
["6. The T. A. advance taken by me has been adjusted in this bill and claim preferred in this bill is for the balance amount only."]
["7. I was actually and not merely constructively in camp on Sundays and holidays for which D. A. is claimed in this bill."]
["8. The distances shown in the bill tally with the log book of the vehicle."]
["9. The halts shown in the bill were necessary in the public interest both as regards the place of halt and the duration of halt."]
["10. The journey beyond jurisdiction was performed under proper authority."]
["11. I was not absent on casual leave during the period for which daily allowance has been claimed."]
["12. I have travelled in public interest."]
["13. I was not treated as State Guest during the period of halt."]
["14. That have actually travelled in the class of accommodation in train as claimed in this T. A. bill and to which I am entitled."]
["15. The journey by rail or express train as shown in the bill were actually performed."]
["16. The journey was performed by the shortest and cheapest route."]
["17. Family member for whom T. A. is claimed are dependent upon me and were actually taken along with me on transfer."]
["18. This claim has not been preferred in any shape previously."]
["19. Certified that the actual expense incurred towards the cost of transportation of the personal effects was not less that the sum claimed."]
["20. I have transported ………………qtls. of luggage on my transfer."]
[]
[]
[]
["COUNTER SIGNATURE",null,null,null,null,null,null,null,null,null,null,null,null,null,"SIGNATURE OF CLAIMANT"]

{"sheet":"Tour Report","index":3,"n_rows":24,"n_cols":6,"rows_kept":24,"cut":false,"hidden":true,"merged":[[14,5,15,5],[16,5,17,5],[18,5,19,5],[20,5,21,5],[22,5,23,5],[4,5,5,5],[6,5,7,5],[8,5,9,5],[10,5,11,5],[12,5,13,5],[14,4,15,4],[16,0,17,0],[18,0,19,0],[20,0,21,0],[22,0,23,0],[16,2,17,2],[18,2,19,2],[20,2,21,2],[22,2,23,2],[16,4,17,4],[18,4,19,4],[20,4,21,4],[22,4,23,4],[14,0,15,0],[14,2,15,2],[4,4,5,4],[6,4,7,4],[8,4,9,4],[10,4,11,4],[12,4,13,4],[4,2,5,2],[6,2,7,2],[8,2,9,2],[10,2,11,2],[12,2,13,2],[4,0,5,0],[6,0,7,0],[8,0,9,0],[10,0,11,0],[12,0,13,0],[0,0,0,5],[1,0,1,5],[2,0,2,1],[2,2,2,3],[2,4,3,4],[2,5,3,5]]}
[{"$f":"Journey!S4&\" Tour programme of \"&Journey!C3 &\", \"&Journey!C4&\", \" &\"Dept. of \"&Journey!C1","v":"Tentative Tour programme of Madan, AP, Dept. of Physiology"}]
[{"$f":"\"for the month of \"&'FORM KVV 6 11'!P5","v":"for the month of Jun14-Jul14"}]
["FROM",null,"TO",null,"Mode of travel","Purpose of journey"]
["Place","Date & Time","Place","Date & Time"]
[{"$f":"'FORM KVV 6 11'!A16","v":"Palampur"},{"$f":"IF('FORM KVV 6 11'!B16=0,\"\",'FORM KVV 6 11'!B16)","v":"2014-06-01"},{"$f":"'FORM KVV 6 11'!D16","v":"Dharamshala"},{"$f":"IF('FORM KVV 6 11'!E16=0,\"\",'FORM KVV 6 11'!E16)","v":"2014-06-02"},{"$f":"'FORM KVV 6 11'!G16","v":"Bus"},{"$f":"'FORM KVV 6 11'!P16","v":"Attend Conference"}]
[null,{"$f":"IF('FORM KVV 6 11'!C16=0,\"\",'FORM KVV 6 11'!C16)","v":"4:00"},null,{"$f":"IF('FORM KVV 6 11'!F16=0,\"\",'FORM KVV 6 11'!F16)","v":"4:05"}]
[{"$f":"'FORM KVV 6 11'!A17","v":0},{"$f":"IF('FORM KVV 6 11'!B17=0,\"\",'FORM KVV 6 11'!B17)","v":""},{"$f":"'FORM KVV 6 11'!D17","v":0},{"$f":"IF('FORM KVV 6 11'!E17=0,\"\",'FORM KVV 6 11'!E17)","v":""},{"$f":"'FORM KVV 6 11'!G17","v":""},{"$f":"'FORM KVV 6 11'!P17","v":""}]
[null,{"$f":"IF('FORM KVV 6 11'!C17=0,\"\",'FORM KVV 6 11'!C17)","v":""},null,{"$f":"IF('FORM KVV 6 11'!F17=0,\"\",'FORM KVV 6 11'!F17)","v":""}]
[{"$f":"'FORM KVV 6 11'!A18","v":0},{"$f":"IF('FORM KVV 6 11'!B18=0,\"\",'FORM KVV 6 11'!B18)","v":""},{"$f":"'FORM KVV 6 11'!D18","v":0},{"$f":"IF('FORM KVV 6 11'!E18=0,\"\",'FORM KVV 6 11'!E18)","v":""},{"$f":"'FORM KVV 6 11'!G18","v":""},{"$f":"'FORM KVV 6 11'!P18","v":""}]
[null,{"$f":"IF('FORM KVV 6 11'!C18=0,\"\",'FORM KVV 6 11'!C18)","v":""},null,{"$f":"IF('FORM KVV 6 11'!F18=0,\"\",'FORM KVV 6 11'!F18)","v":""}]
[{"$f":"'FORM KVV 6 11'!A19","v":0},{"$f":"IF('FORM KVV 6 11'!B19=0,\"\",'FORM KVV 6 11'!B19)","v":""},{"$f":"'FORM KVV 6 11'!D19","v":0},{"$f":"IF('FORM KVV 6 11'!E19=0,\"\",'FORM KVV 6 11'!E19)","v":""},{"$f":"'FORM KVV 6 11'!G19","v":""},{"$f":"'FORM KVV 6 11'!P19","v":""}]
[null,{"$f":"IF('FORM KVV 6 11'!C19=0,\"\",'FORM KVV 6 11'!C19)","v":""},null,{"$f":"IF('FORM KVV 6 11'!F19=0,\"\",'FORM KVV 6 11'!F19)","v":""}]
[{"$f":"'FORM KVV 6 11'!A20","v":0},{"$f":"IF('FORM KVV 6 11'!B20=0,\"\",'FORM KVV 6 11'!B20)","v":""},{"$f":"'FORM KVV 6 11'!D20","v":0},{"$f":"IF('FORM KVV 6 11'!E20=0,\"\",'FORM KVV 6 11'!E20)","v":""},{"$f":"'FORM KVV 6 11'!G20","v":""},{"$f":"'FORM KVV 6 11'!P20","v":""}]
[null,{"$f":"IF('FORM KVV 6 11'!C20=0,\"\",'FORM KVV 6 11'!C20)","v":""},null,{"$f":"IF('FORM KVV 6 11'!F20=0,\"\",'FORM KVV 6 11'!F20)","v":""}]
[{"$f":"'FORM KVV 6 11'!A21","v":0},{"$f":"IF('FORM KVV 6 11'!B21=0,\"\",'FORM KVV 6 11'!B21)","v":""},{"$f":"'FORM KVV 6 11'!D21","v":0},{"$f":"IF('FORM KVV 6 11'!E21=0,\"\",'FORM KVV 6 11'!E21)","v":""},{"$f":"'FORM KVV 6 11'!G21","v":""},{"$f":"'FORM KVV 6 11'!P21","v":""}]
[null,{"$f":"IF('FORM KVV 6 11'!C21=0,\"\",'FORM KVV 6 11'!C21)","v":""},null,{"$f":"IF('FORM KVV 6 11'!F21=0,\"\",'FORM KVV 6 11'!F21)","v":""}]
[{"$f":"'FORM KVV 6 11'!A22","v":0},{"$f":"IF('FORM KVV 6 11'!B22=0,\"\",'FORM KVV 6 11'!B22)","v":""},{"$f":"'FORM KVV 6 11'!D22","v":0},{"$f":"IF('FORM KVV 6 11'!E22=0,\"\",'FORM KVV 6 11'!E22)","v":""},{"$f":"'FORM KVV 6 11'!G22","v":""},{"$f":"'FORM KVV 6 11'!P22","v":""}]
[null,{"$f":"IF('FORM KVV 6 11'!C22=0,\"\",'FORM KVV 6 11'!C22)","v":""},null,{"$f":"IF('FORM KVV 6 11'!F22=0,\"\",'FORM KVV 6 11'!F22)","v":""}]
[{"$f":"'FORM KVV 6 11'!A23","v":0},{"$f":"IF('FORM KVV 6 11'!B23=0,\"\",'FORM KVV 6 11'!B23)","v":""},{"$f":"'FORM KVV 6 11'!D23","v":0},{"$f":"IF('FORM KVV 6 11'!E23=0,\"\",'FORM KVV 6 11'!E23)","v":""},{"$f":"'FORM KVV 6 11'!G23","v":""},{"$f":"'FORM KVV 6 11'!P23","v":""}]
[null,{"$f":"IF('FORM KVV 6 11'!C23=0,\"\",'FORM KVV 6 11'!C23)","v":""},null,{"$f":"IF('FORM KVV 6 11'!F23=0,\"\",'FORM KVV 6 11'!F23)","v":""}]
[{"$f":"'FORM KVV 6 11'!A24","v":0},{"$f":"IF('FORM KVV 6 11'!B24=0,\"\",'FORM KVV 6 11'!B24)","v":""},{"$f":"'FORM KVV 6 11'!D24","v":0},{"$f":"IF('FORM KVV 6 11'!E24=0,\"\",'FORM KVV 6 11'!E24)","v":""},{"$f":"'FORM KVV 6 11'!G24","v":""},{"$f":"'FORM KVV 6 11'!P24","v":""}]
[null,{"$f":"IF('FORM KVV 6 11'!C24=0,\"\",'FORM KVV 6 11'!C24)","v":""},null,{"$f":"IF('FORM KVV 6 11'!F24=0,\"\",'FORM KVV 6 11'!F24)","v":""}]
[{"$f":"'FORM KVV 6 11'!A25","v":0},{"$f":"IF('FORM KVV 6 11'!B25=0,\"\",'FORM KVV 6 11'!B25)","v":""},{"$f":"'FORM KVV 6 11'!D25","v":0},{"$f":"IF('FORM KVV 6 11'!E25=0,\"\",'FORM KVV 6 11'!E25)","v":""},{"$f":"'FORM KVV 6 11'!G25","v":""},{"$f":"'FORM KVV 6 11'!P25","v":""}]
[null,{"$f":"IF('FORM KVV 6 11'!C25=0,\"\",'FORM KVV 6 11'!C25)","v":""},null,{"$f":"IF('FORM KVV 6 11'!F25=0,\"\",'FORM KVV 6 11'!F25)","v":""}]

{"sheet":"FareChart","index":4,"n_rows":28,"n_cols":28,"rows_kept":28,"cut":false,"hidden":true,"merged":[]}
[]
[null,"Customise Your Regular Journey points with Distance (kM) and Fare (Rs)"]
[null,"              Rs\n\nKm             ",{"$f":"B4","v":"Palampur"},{"$f":"B5","v":"Dharamshala"},{"$f":"B6","v":"Baijnath"},{"$f":"B7","v":"Paprola"},{"$f":"B8","v":"Nagrota"},{"$f":"B9","v":"Bajaura"},{"$f":"B10","v":"Dhaulakuan"},{"$f":"B11","v":"Berthin"},{"$f":"B12","v":"Shimla"},{"$f":"B13","v":"Kukumseri"},{"$f":"B14","v":"Delhi"},{"$f":"B15","v":"Chamba"},{"$f":"B16","v":"Mandi"},{"$f":"B17","v":"Solan"},{"$f":"B18","v":"Hamirpur"},{"$f":"B19","v":"Una"},{"$f":"B20","v":"Pathankot"},{"$f":"B21","v":"Bilaspur"},{"$f":"B22","v":"Nahan"},{"$f":"B23","v":0},{"$f":"B24","v":0},{"$f":"B25","v":0},{"$f":"B26","v":0},{"$f":"B27","v":0},{"$f":"B28","v":0}]
[null,"Palampur",0,40,18,16,20,null,null,null,210,null,500,null,null,null,null,null,null,null,null,null,null,null,null,null,null,1]
[null,"Dharamshala",40,0,null,null,null,null,null,null,null,null,null,null,null,null,null,null,null,null,null,null,null,null,null,null,null,2]
[null,"Baijnath",18,null,0,null,null,30,20,40,50,80,null,564,null,null,null,null,null,null,null,null,null,null,null,null,null,3]
[null,"Paprola",16,50,null,0,null,null,null,null,null,null,null,null,null,null,null,null,null,null,null,null,null,null,null,null,null,4]
[null,"Nagrota",20,null,null,null,0,null,null,null,null,null,null,null,null,null,null,null,null,null,null,null,null,null,null,null,null,5]
[null,"Bajaura",120,null,null,null,null,0,null,null,null,null,null,null,null,null,null,null,null,null,null,null,null,null,null,null,null,6]
[null,"Dhaulakuan",250,null,null,null,null,null,0,null,null,null,null,null,null,null,null,null,null,null,null,null,null,null,null,null,null,7]
[null,"Berthin",80,null,null,null,null,null,null,0,null,null,null,null,null,null,null,null,null,null,null,null,null,null,null,null,null,8]
[null,"Shimla",210,null,135,null,null,null,null,null,0,null,null,null,null,null,null,null,null,null,null,null,null,null,null,null,null,9]
[null,"Kukumseri",null,null,235,null,null,null,null,null,null,0,null,null,null,null,null,null,null,null,null,null,null,null,null,null,null,10]
[null,"Delhi",500,null,null,null,null,null,null,null,null,null,0,null,null,null,null,null,null,null,null,null,null,null,null,null,null,11]
[null,"Chamba",null,null,358,null,null,null,null,null,null,null,null,0,null,null,null,null,null,null,null,null,null,null,null,null,null,12]
[null,"Mandi",null,null,null,null,null,null,null,null,null,null,null,null,0,null,null,null,null,null,null,null,null,null,null,null,null,13]
[null,"Solan",null,null,null,null,null,null,null,null,null,null,null,null,null,0,null,null,null,null,null,null,null,null,null,null,null,14]
[null,"Hamirpur",null,null,null,null,null,null,null,null,null,null,null,null,null,null,0,null,null,null,null,null,null,null,null,null,null,15]
[null,"Una",null,null,null,null,null,null,null,null,null,null,null,null,null,null,null,0,null,null,null,null,null,null,null,null,null,16]
[null,"Pathankot",null,null,null,null,null,null,null,null,null,null,null,null,null,null,null,null,0,null,null,null,null,null,null,null,null,17]
[null,"Bilaspur",null,null,null,null,null,null,null,null,null,null,null,null,null,null,null,null,null,0,null,null,null,null,null,null,null,18]
[null,"Nahan",null,null,null,null,null,null,null,null,null,null,null,null,null,null,null,null,null,null,0,null,null,null,null,null,null,19]
[null,null,null,null,null,null,null,null,null,null,null,null,null,null,null,null,null,null,null,null,null,0,null,null,null,null,null,20]
[null,null,null,null,null,null,null,null,null,null,null,null,null,null,null,null,null,null,null,null,null,null,0,null,null,null,null,21]
[null,null,null,null,null,null,null,null,null,null,null,null,null,null,null,null,null,null,null,null,null,null,null,0,null,null,null,22]
[null,null,null,null,null,null,null,null,null,null,null,null,null,null,null,null,null,null,null,null,null,null,null,null,0,null,null,23]
[null,null,null,null,null,null,null,null,null,null,null,null,null,null,null,null,null,null,null,null,null,null,null,null,null,0,null,24]
[null,null,null,null,null,null,null,null,null,null,null,null,null,null,null,null,null,null,null,null,null,null,null,null,null,null,0,25]